BODY,BODY NAME,SERVICE CODE,ORGANISATIONAL UNIT,ORGANISATIONAL UNIT CODE,EXPENDITURE CATEGORY,EXPENDITURE CODE,DATE (POSTING DATE),TRANSACTION NUMBER,AMOUNT,SUPPLIER NAME,SUPPLIER ID
WARRINGTON BOROUGH COUNCIL,http://opendatacommunities.org/id/unitary-authority/warrington ,RSC,ICT & Business Improvement,23020,ICT Comms - Line Rental,450200,08-Sep-15,1700012554,1200,Virgin Media Business,106824
WARRINGTON BOROUGH COUNCIL,http://opendatacommunities.org/id/unitary-authority/warrington ,RSC,ICT & Business Improvement,23020,ICT Comms - Line Rental,450200,08-Sep-15,1700012555,808,Virgin Media Business,106824
WARRINGTON BOROUGH COUNCIL,http://opendatacommunities.org/id/unitary-authority/warrington ,RSC,ICT Networks,23400,ICT Comms - Line Rental,450200,10-Sep-15,1700012588,1680,Virgin Media Business,106824
WARRINGTON BOROUGH COUNCIL,http://opendatacommunities.org/id/unitary-authority/warrington ,RSC,ICT Networks,23400,ICT Comms - Line Rental,450200,17-Sep-15,1700012663,520,Cdn Networks,101189
WARRINGTON BOROUGH COUNCIL,http://opendatacommunities.org/id/unitary-authority/warrington ,RSC,ICT Networks,23400,ICT Comms - Line Rental,450200,17-Sep-15,1700012664,520,Cdn Networks,101189
WARRINGTON BOROUGH COUNCIL,http://opendatacommunities.org/id/unitary-authority/warrington ,EE0,Project Delivery,43830,ICT Comms - Line Rental,450200,23-Sep-15,1700012713,6076,Virgin Media Business,106824
WARRINGTON BOROUGH COUNCIL,http://opendatacommunities.org/id/unitary-authority/warrington ,RSC,Schools & Libraries Internet Project,23030,ICT Comms - Line Rental,450200,23-Sep-15,1700012713,4950,Virgin Media Business,106824
WARRINGTON BOROUGH COUNCIL,http://opendatacommunities.org/id/unitary-authority/warrington ,RSC,Coroners Service,11100,Post Mortem Fees-Rep,440250,01-Sep-15,1900181066,1883,Dr Cheng Li,107950
WARRINGTON BOROUGH COUNCIL,http://opendatacommunities.org/id/unitary-authority/warrington ,RSC,Coroners Service,11100,Post Mortem Fees-Rep,440250,01-Sep-15,1900181067,1404,Dr C M Manson,100080
WARRINGTON BOROUGH COUNCIL,http://opendatacommunities.org/id/unitary-authority/warrington ,FWB,Foster Allowances,31106,Fostering Allowance,550050,01-Sep-15,1900181074,548,REDACTED PERSONAL DATA,460828
WARRINGTON BOROUGH COUNCIL,http://opendatacommunities.org/id/unitary-authority/warrington ,FWB,Care Purchase - PD,54440,CP-Nursing Care-External,441200,01-Sep-15,1900181075,4136,Abbey Lawns Care Home Ltd,101816
WARRINGTON BOROUGH COUNCIL,http://opendatacommunities.org/id/unitary-authority/warrington ,FWB,Foster Allowances,31106,Fostering Allowance,550050,01-Sep-15,1900181076,506,REDACTED PERSONAL DATA,460828
WARRINGTON BOROUGH COUNCIL,http://opendatacommunities.org/id/unitary-authority/warrington ,FWB,Care Purchase AMH,54135,CP-Domicil.External,440950,01-Sep-15,1900181077,3140,Alternative Futures Group,104468
WARRINGTON BOROUGH COUNCIL,http://opendatacommunities.org/id/unitary-authority/warrington ,FWB,Care Purchase AMH,54135,CP-Domicil.External,440950,01-Sep-15,1900181078,1080,Alternative Futures Group,104468
WARRINGTON BOROUGH COUNCIL,http://opendatacommunities.org/id/unitary-authority/warrington ,FWB,Older Peoples South Team,54421,CP-Domicil.External,440950,01-Sep-15,1900181079,6280,Alternative Futures Group,104468
WARRINGTON BOROUGH COUNCIL,http://opendatacommunities.org/id/unitary-authority/warrington ,FWB,Care Purchase AMH,54135,CP-Domicil.External,440950,01-Sep-15,1900181080,1295,Alternative Futures Group,104468
WARRINGTON BOROUGH COUNCIL,http://opendatacommunities.org/id/unitary-authority/warrington ,FWB,Care Purchase AMH,54135,CP-Domicil.External,440950,01-Sep-15,1900181082,3140,Alternative Futures Group,104468
WARRINGTON BOROUGH COUNCIL,http://opendatacommunities.org/id/unitary-authority/warrington ,FWB,Care Purchase AMH,54135,CP-Domicil.External,440950,01-Sep-15,1900181083,3140,Alternative Futures Group,104468
WARRINGTON BOROUGH COUNCIL,http://opendatacommunities.org/id/unitary-authority/warrington ,FWB,Care Purchase - Learning Disability,54450,CP-Domicil.External,440950,01-Sep-15,1900181084,5918,Alternative Futures Group,104468
WARRINGTON BOROUGH COUNCIL,http://opendatacommunities.org/id/unitary-authority/warrington ,FWB,Care Purchase AMH,54135,CP-Domicil.External,440950,01-Sep-15,1900181085,5025,Alternative Futures Group,104468
WARRINGTON BOROUGH COUNCIL,http://opendatacommunities.org/id/unitary-authority/warrington ,FWB,Care Purchase AMH,54135,CP-Domicil.External,440950,01-Sep-15,1900181086,5523,Alternative Futures Group,104468
WARRINGTON BOROUGH COUNCIL,http://opendatacommunities.org/id/unitary-authority/warrington ,FWB,Care Purchase AMH,54135,CP-Domicil.External,440950,01-Sep-15,1900181087,5323,Alternative Futures Group,104468
WARRINGTON BOROUGH COUNCIL,http://opendatacommunities.org/id/unitary-authority/warrington ,FWB,Care Purchase AMH,54135,CP-Domicil.External,440950,01-Sep-15,1900181088,3140,Alternative Futures Group,104468
WARRINGTON BOROUGH COUNCIL,http://opendatacommunities.org/id/unitary-authority/warrington ,FWB,Older Peoples North Team,54422,CP-Nursing Care-External,441200,01-Sep-15,1900181089,1600,Bowerfield House MMCG,111713
WARRINGTON BOROUGH COUNCIL,http://opendatacommunities.org/id/unitary-authority/warrington ,FWB,Older Peoples North Team,54422,CP-LongStayExternal,441150,01-Sep-15,1900181090,2700,Chase House Limited,110786
WARRINGTON BOROUGH COUNCIL,http://opendatacommunities.org/id/unitary-authority/warrington ,FWB,Care Purchase - Learning Disability,54450,CP-LongStayExternal,441150,01-Sep-15,1900181091,19951,Craegmoor Oxen Barn Priory,112933
WARRINGTON BOROUGH COUNCIL,http://opendatacommunities.org/id/unitary-authority/warrington ,FWB,Care Purchase Budget,54490,CP - Cont Care - External,441350,01-Sep-15,1900181092,10356,Craegmoor Oxen Barn Priory,112933
WARRINGTON BOROUGH COUNCIL,http://opendatacommunities.org/id/unitary-authority/warrington ,FWB,Care Purchase Budget,54490,CP - Cont Care - External,441350,01-Sep-15,1900181093,2991,Extracare Charitable Trust Service,114725
WARRINGTON BOROUGH COUNCIL,http://opendatacommunities.org/id/unitary-authority/warrington ,FWB,Older Peoples South Team,54421,CP - Housing with Care - External,494450,01-Sep-15,1900181093,19559,Extracare Charitable Trust Service,114725
WARRINGTON BOROUGH COUNCIL,http://opendatacommunities.org/id/unitary-authority/warrington ,FWB,Care Purchase - PD,54440,CP - Housing with Care - External,494450,01-Sep-15,1900181093,1196,Extracare Charitable Trust Service,114725
WARRINGTON BOROUGH COUNCIL,http://opendatacommunities.org/id/unitary-authority/warrington ,FWB,Care Purchase Budget,54490,CP - Cont Care - External,441350,01-Sep-15,1900181094,530,The Extracare Charitable Trust Resi,100497
WARRINGTON BOROUGH COUNCIL,http://opendatacommunities.org/id/unitary-authority/warrington ,FWB,Care Purchase Budget,54490,CP - Cont Care - External,441350,01-Sep-15,1900181095,530,The Extracare Charitable Trust Resi,100497
WARRINGTON BOROUGH COUNCIL,http://opendatacommunities.org/id/unitary-authority/warrington ,FWB,Care Purchase - Learning Disability,54450,CP-Nursing Care-External,441200,01-Sep-15,1900181096,4800,Health & Social Care Partnerships,107996
WARRINGTON BOROUGH COUNCIL,http://opendatacommunities.org/id/unitary-authority/warrington ,FWB,Care Purchase - Learning Disability,54450,CP-Nursing Care-External,441200,01-Sep-15,1900181097,4200,Health & Social Care Partnerships,107996
WARRINGTON BOROUGH COUNCIL,http://opendatacommunities.org/id/unitary-authority/warrington ,FWB,Care Purchase - Learning Disability,54450,CP-Nursing Care-External,441200,01-Sep-15,1900181098,4800,Health & Social Care Partnerships,107996
WARRINGTON BOROUGH COUNCIL,http://opendatacommunities.org/id/unitary-authority/warrington ,FWB,Care Purchase - Learning Disability,54450,CP-Nursing Care-External,441200,01-Sep-15,1900181099,7200,Health & Social Care Partnerships,107996
WARRINGTON BOROUGH COUNCIL,http://opendatacommunities.org/id/unitary-authority/warrington ,FWB,Care Purchase - Learning Disability,54450,CP-Nursing Care-External,441200,01-Sep-15,1900181100,4200,Health & Social Care Partnerships,107996
WARRINGTON BOROUGH COUNCIL,http://opendatacommunities.org/id/unitary-authority/warrington ,FWB,Care Purchase - Learning Disability,54450,CP-Nursing Care-External,441200,01-Sep-15,1900181101,6600,Health & Social Care Partnerships,107996
WARRINGTON BOROUGH COUNCIL,http://opendatacommunities.org/id/unitary-authority/warrington ,FWB,Care Purchase - Learning Disability,54450,CP-Nursing Care-External,441200,01-Sep-15,1900181102,9240,Health & Social Care Partnerships,107996
WARRINGTON BOROUGH COUNCIL,http://opendatacommunities.org/id/unitary-authority/warrington ,FWB,Care Purchase - Learning Disability,54450,CP-Nursing Care-External,441200,01-Sep-15,1900181103,4200,Health & Social Care Partnerships,107996
WARRINGTON BOROUGH COUNCIL,http://opendatacommunities.org/id/unitary-authority/warrington ,FWB,Care Purchase - Learning Disability,54450,CP-Nursing Care-External,441200,01-Sep-15,1900181104,6000,Health & Social Care Partnerships,107996
WARRINGTON BOROUGH COUNCIL,http://opendatacommunities.org/id/unitary-authority/warrington ,FWB,Care Purchase - Learning Disability,54450,CP-Nursing Care-External,441200,01-Sep-15,1900181105,4800,Health & Social Care Partnerships,107996
WARRINGTON BOROUGH COUNCIL,http://opendatacommunities.org/id/unitary-authority/warrington ,FWB,Care Purchase - Learning Disability,54450,CP-LongStayExternal,441150,01-Sep-15,1900181106,4200,Health & Social Care Partnerships,107996
WARRINGTON BOROUGH COUNCIL,http://opendatacommunities.org/id/unitary-authority/warrington ,FWB,Care Purchase - Learning Disability,54450,CP-LongStayExternal,441150,01-Sep-15,1900181107,3606,Manor Care Centre,103831
WARRINGTON BOROUGH COUNCIL,http://opendatacommunities.org/id/unitary-authority/warrington ,FWB,Care Purchase AMH,54135,CP-LongStayExternal,441150,01-Sep-15,1900181108,7470,Mental Health Care UK Ltd,114128
WARRINGTON BOROUGH COUNCIL,http://opendatacommunities.org/id/unitary-authority/warrington ,FWB,Care Purchase - Learning Disability,54450,CP-LongStayExternal,441150,01-Sep-15,1900181109,12400,Nugent Care,111375
WARRINGTON BOROUGH COUNCIL,http://opendatacommunities.org/id/unitary-authority/warrington ,FWB,Older Peoples North Team,54422,CP-LongStayExternal,441150,01-Sep-15,1900181110,1700,Orchard Care Homes,102524
WARRINGTON BOROUGH COUNCIL,http://opendatacommunities.org/id/unitary-authority/warrington ,FWB,Older Peoples North Team,54422,CP-LongStayExternal,441150,01-Sep-15,1900181111,1540,Abbeydale Residential Home,104446
WARRINGTON BOROUGH COUNCIL,http://opendatacommunities.org/id/unitary-authority/warrington ,FWB,Older Peoples South Team,54421,CP-LongStayExternal,441150,01-Sep-15,1900181113,1912,Sanctuary Care Limited,109765
WARRINGTON BOROUGH COUNCIL,http://opendatacommunities.org/id/unitary-authority/warrington ,FWB,Older Peoples North Team,54422,CP-LongStayExternal,441150,01-Sep-15,1900181114,2012,St Georges Residential Care Home,110495
WARRINGTON BOROUGH COUNCIL,http://opendatacommunities.org/id/unitary-authority/warrington ,FWB,Care Purchase - ABI,54260,CP-Nursing Care-External,441200,01-Sep-15,1900181115,5075,St Marys Care Centre,101503
WARRINGTON BOROUGH COUNCIL,http://opendatacommunities.org/id/unitary-authority/warrington ,FWB,Older Peoples South Team,54421,CP-LongStayExternal,441150,01-Sep-15,1900181116,1728,The Belmont Care Home,110487
WARRINGTON BOROUGH COUNCIL,http://opendatacommunities.org/id/unitary-authority/warrington ,FWB,Care Purchase - Learning Disability,54450,CP-Domicil.External,440950,01-Sep-15,1900181117,11824,Zeno Limited,111080
WARRINGTON BOROUGH COUNCIL,http://opendatacommunities.org/id/unitary-authority/warrington ,FWB,Care Purchase - Learning Disability,54450,CP-Nursing Care-External,441200,01-Sep-15,1900181118,2576,Chadderton Total-Care Unit Ltd,100425
WARRINGTON BOROUGH COUNCIL,http://opendatacommunities.org/id/unitary-authority/warrington ,FWB,Care Purchase - Learning Disability,54450,CP-Domicil.External,440950,01-Sep-15,1900181119,9534,Zeno Limited,111080
WARRINGTON BOROUGH COUNCIL,http://opendatacommunities.org/id/unitary-authority/warrington ,COR,Corporate Planning Items,61020,Consult.& Prof. Serv,440000,01-Sep-15,1900181131,4477,Liberata UK Ltd,112182
WARRINGTON BOROUGH COUNCIL,http://opendatacommunities.org/id/unitary-authority/warrington ,RSC,CRB Checks,52122,CRB Checks,190050,02-Sep-15,1900181134,21956,Disclosure & Barring Service,440085
WARRINGTON BOROUGH COUNCIL,http://opendatacommunities.org/id/unitary-authority/warrington ,EE0,Markets,43711,Resaleables,400600,02-Sep-15,1900181135,3277,National Express Ltd,104957
WARRINGTON BOROUGH COUNCIL,http://opendatacommunities.org/id/unitary-authority/warrington ,FWB,Safeguarding Team 3,31003,Sect 17 (Child Act),490950,02-Sep-15,1900181141,650,Cellmark,109099
WARRINGTON BOROUGH COUNCIL,http://opendatacommunities.org/id/unitary-authority/warrington ,FWB,Safeguarding Team 3,31003,Sect 17 (Child Act),490950,02-Sep-15,1900181143,799,Cellmark,109099
WARRINGTON BOROUGH COUNCIL,http://opendatacommunities.org/id/unitary-authority/warrington ,FWB,Safeguarding Team 2,31002,Sect 17 (Child Act),490950,02-Sep-15,1900181145,1227,Progressive Care Ltd,103275
WARRINGTON BOROUGH COUNCIL,http://opendatacommunities.org/id/unitary-authority/warrington ,FWB,Safeguarding Team 2,31002,Sect 17 (Child Act),490950,02-Sep-15,1900181146,842,Progressive Care Ltd,103275
WARRINGTON BOROUGH COUNCIL,http://opendatacommunities.org/id/unitary-authority/warrington ,FWB,Safeguarding Team 3,31003,Sect 17 (Child Act),490950,02-Sep-15,1900181149,1000,Parenthesis Holistic Parenting,111030
WARRINGTON BOROUGH COUNCIL,http://opendatacommunities.org/id/unitary-authority/warrington ,FWB,Safeguarding Team 3,31003,Sect 17 (Child Act),490950,02-Sep-15,1900181150,1000,Parenthesis Holistic Parenting,111030
WARRINGTON BOROUGH COUNCIL,http://opendatacommunities.org/id/unitary-authority/warrington ,EE0,Other Commercial Prop.,43560,Consult.& Prof. Serv,440000,02-Sep-15,1900181153,556,Debt Squared Group Limited,114593
WARRINGTON BOROUGH COUNCIL,http://opendatacommunities.org/id/unitary-authority/warrington ,FWB,Contracts - SM Commissioning Team 1,55910,Public Health Contract Payments,540000,02-Sep-15,1900181156,27000,Warrington District CAB,440159
WARRINGTON BOROUGH COUNCIL,http://opendatacommunities.org/id/unitary-authority/warrington ,COR,Car Leasing Scheme - Salary Sacrifice,52126,Car Leasing Charges,350000,02-Sep-15,1900181157,4170,NHS Foundation Trust,110359
WARRINGTON BOROUGH COUNCIL,http://opendatacommunities.org/id/unitary-authority/warrington ,COR,Car Leasing Scheme - Salary Sacrifice,52126,Car Leasing Charges,350000,02-Sep-15,1900181157,739,NHS Foundation Trust,110359
WARRINGTON BOROUGH COUNCIL,http://opendatacommunities.org/id/unitary-authority/warrington ,COR,Car Leasing Scheme - Salary Sacrifice,52126,Car Leasing Charges,350000,02-Sep-15,1900181158,2233,NHS Foundation Trust,110359
WARRINGTON BOROUGH COUNCIL,http://opendatacommunities.org/id/unitary-authority/warrington ,COR,Car Leasing Scheme - Salary Sacrifice,52126,Car Leasing Charges,350000,02-Sep-15,1900181158,739,NHS Foundation Trust,110359
WARRINGTON BOROUGH COUNCIL,http://opendatacommunities.org/id/unitary-authority/warrington ,COR,Car Leasing Scheme - Salary Sacrifice,52126,Car Leasing Charges,350000,02-Sep-15,1900181159,2933,NHS Foundation Trust,110359
WARRINGTON BOROUGH COUNCIL,http://opendatacommunities.org/id/unitary-authority/warrington ,COR,Car Leasing Scheme - Salary Sacrifice,52126,Car Leasing Charges,350000,02-Sep-15,1900181159,739,NHS Foundation Trust,110359
WARRINGTON BOROUGH COUNCIL,http://opendatacommunities.org/id/unitary-authority/warrington ,COR,Car Leasing Scheme - Salary Sacrifice,52126,Car Leasing Charges,350000,02-Sep-15,1900181160,2512,NHS Foundation Trust,110359
WARRINGTON BOROUGH COUNCIL,http://opendatacommunities.org/id/unitary-authority/warrington ,COR,Car Leasing Scheme - Salary Sacrifice,52126,Car Leasing Charges,350000,02-Sep-15,1900181160,739,NHS Foundation Trust,110359
WARRINGTON BOROUGH COUNCIL,http://opendatacommunities.org/id/unitary-authority/warrington ,COR,Car Leasing Scheme - Salary Sacrifice,52126,Car Leasing Charges,350000,02-Sep-15,1900181161,3564,NHS Foundation Trust,110359
WARRINGTON BOROUGH COUNCIL,http://opendatacommunities.org/id/unitary-authority/warrington ,COR,Car Leasing Scheme - Salary Sacrifice,52126,Car Leasing Charges,350000,02-Sep-15,1900181161,739,NHS Foundation Trust,110359
WARRINGTON BOROUGH COUNCIL,http://opendatacommunities.org/id/unitary-authority/warrington ,COR,Car Leasing Scheme - Salary Sacrifice,52126,Car Leasing Charges,350000,02-Sep-15,1900181162,3307,NHS Foundation Trust,110359
WARRINGTON BOROUGH COUNCIL,http://opendatacommunities.org/id/unitary-authority/warrington ,COR,Car Leasing Scheme - Salary Sacrifice,52126,Car Leasing Charges,350000,02-Sep-15,1900181162,739,NHS Foundation Trust,110359
WARRINGTON BOROUGH COUNCIL,http://opendatacommunities.org/id/unitary-authority/warrington ,COR,Car Leasing Scheme - Salary Sacrifice,52126,Car Leasing Charges,350000,02-Sep-15,1900181163,3072,NHS Foundation Trust,110359
WARRINGTON BOROUGH COUNCIL,http://opendatacommunities.org/id/unitary-authority/warrington ,COR,Car Leasing Scheme - Salary Sacrifice,52126,Car Leasing Charges,350000,02-Sep-15,1900181163,739,NHS Foundation Trust,110359
WARRINGTON BOROUGH COUNCIL,http://opendatacommunities.org/id/unitary-authority/warrington ,COR,Car Leasing Scheme - Salary Sacrifice,52126,Car Leasing Charges,350000,02-Sep-15,1900181164,2850,NHS Foundation Trust,110359
WARRINGTON BOROUGH COUNCIL,http://opendatacommunities.org/id/unitary-authority/warrington ,COR,Car Leasing Scheme - Salary Sacrifice,52126,Car Leasing Charges,350000,02-Sep-15,1900181164,739,NHS Foundation Trust,110359
WARRINGTON BOROUGH COUNCIL,http://opendatacommunities.org/id/unitary-authority/warrington ,COR,Car Leasing Scheme - Salary Sacrifice,52126,Car Leasing Charges,350000,02-Sep-15,1900181165,3372,NHS Foundation Trust,110359
WARRINGTON BOROUGH COUNCIL,http://opendatacommunities.org/id/unitary-authority/warrington ,COR,Car Leasing Scheme - Salary Sacrifice,52126,Car Leasing Charges,350000,02-Sep-15,1900181165,739,NHS Foundation Trust,110359
WARRINGTON BOROUGH COUNCIL,http://opendatacommunities.org/id/unitary-authority/warrington ,COR,Car Leasing Scheme - Salary Sacrifice,52126,Car Leasing Charges,350000,02-Sep-15,1900181166,2965,NHS Foundation Trust,110359
WARRINGTON BOROUGH COUNCIL,http://opendatacommunities.org/id/unitary-authority/warrington ,COR,Car Leasing Scheme - Salary Sacrifice,52126,Car Leasing Charges,350000,02-Sep-15,1900181166,739,NHS Foundation Trust,110359
WARRINGTON BOROUGH COUNCIL,http://opendatacommunities.org/id/unitary-authority/warrington ,RSC,Print Services (Enveloping etc),23090,Postages,450000,02-Sep-15,1900181167,1849,Royal Mail,101445
WARRINGTON BOROUGH COUNCIL,http://opendatacommunities.org/id/unitary-authority/warrington ,CYP,Special,81003,Consult.& Prof. Serv,440000,02-Sep-15,1900181170,2991,J Lyons Removals,113390
WARRINGTON BOROUGH COUNCIL,http://opendatacommunities.org/id/unitary-authority/warrington ,RSC,Civic,11440,"Campaigns,  Projects and Events",491950,02-Sep-15,1900181171,752,York Insignia,105258
WARRINGTON BOROUGH COUNCIL,http://opendatacommunities.org/id/unitary-authority/warrington ,FWB,Older Peoples South Team,54421,CP-LongStayExternal,441150,02-Sep-15,1900181172,1540,Alexandra Care Home,100708
WARRINGTON BOROUGH COUNCIL,http://opendatacommunities.org/id/unitary-authority/warrington ,FWB,Care Purchase - Learning Disability,54450,CP-Day Care-External,441100,02-Sep-15,1900181174,720,Great Opportunities Together CIC,110076
WARRINGTON BOROUGH COUNCIL,http://opendatacommunities.org/id/unitary-authority/warrington ,FWB,Care Purchase - Learning Disability,54450,CP-LongStayExternal,441150,02-Sep-15,1900181175,12348,Griffin Care Ltd,101672
WARRINGTON BOROUGH COUNCIL,http://opendatacommunities.org/id/unitary-authority/warrington ,FWB,Care Purchase - Learning Disability,54450,CP-LongStayExternal,441150,02-Sep-15,1900181177,12348,Griffin Care Ltd,101672
WARRINGTON BOROUGH COUNCIL,http://opendatacommunities.org/id/unitary-authority/warrington ,FWB,Older Peoples North Team,54422,CP-Domicil.External,440950,02-Sep-15,1900181179,5672,Hannahs Homecare Ltd,114443
WARRINGTON BOROUGH COUNCIL,http://opendatacommunities.org/id/unitary-authority/warrington ,FWB,Older Peoples South Team,54421,CP-Domicil.External,440950,02-Sep-15,1900181179,1598,Hannahs Homecare Ltd,114443
WARRINGTON BOROUGH COUNCIL,http://opendatacommunities.org/id/unitary-authority/warrington ,FWB,Care Purchase - PD,54440,CP-Domicil.External,440950,02-Sep-15,1900181179,2599,Hannahs Homecare Ltd,114443
WARRINGTON BOROUGH COUNCIL,http://opendatacommunities.org/id/unitary-authority/warrington ,FWB,Older Peoples South Team,54421,CP-LongStayExternal,441150,02-Sep-15,1900181181,1640,Ideal Carehomes (Number One) Ltd,108328
WARRINGTON BOROUGH COUNCIL,http://opendatacommunities.org/id/unitary-authority/warrington ,FWB,Older Peoples South Team,54421,CP-LongStayExternal,441150,02-Sep-15,1900181182,645,Kingsview Homes Ltd,100614
WARRINGTON BOROUGH COUNCIL,http://opendatacommunities.org/id/unitary-authority/warrington ,FWB,Care Purchase - PD,54440,CP-Nursing Care-External,441200,02-Sep-15,1900181183,4899,Leonard Cheshire Disability,100370
WARRINGTON BOROUGH COUNCIL,http://opendatacommunities.org/id/unitary-authority/warrington ,FWB,Older Peoples South Team,54421,CP-Nursing Care-External,441200,02-Sep-15,1900181184,1960,Four Seasons Health Care,100629
WARRINGTON BOROUGH COUNCIL,http://opendatacommunities.org/id/unitary-authority/warrington ,FWB,Care Purchase - PD,54440,CP-Nursing Care-External,441200,02-Sep-15,1900181185,2780,Leonard Cheshire Disability,100370
WARRINGTON BOROUGH COUNCIL,http://opendatacommunities.org/id/unitary-authority/warrington ,FWB,Older Peoples North Team,54422,CP-Nursing Care-External,441200,02-Sep-15,1900181188,1427,Four Seasons Ta Cherry Trees,103592
WARRINGTON BOROUGH COUNCIL,http://opendatacommunities.org/id/unitary-authority/warrington ,FWB,Care Purchase - Learning Disability,54450,CP-Day Care-External,441100,02-Sep-15,1900181189,2217,Deafness Support Network,104657
WARRINGTON BOROUGH COUNCIL,http://opendatacommunities.org/id/unitary-authority/warrington ,FWB,Care Purchase - Learning Disability,54450,CP-Nursing Care-External,441200,02-Sep-15,1900181192,27620,Community Care Matters Limited,102791
WARRINGTON BOROUGH COUNCIL,http://opendatacommunities.org/id/unitary-authority/warrington ,FWB,Care Purchase AMH,54135,CP-Domicil.External,440950,02-Sep-15,1900181193,900,My Space Housing Solutions,113559
WARRINGTON BOROUGH COUNCIL,http://opendatacommunities.org/id/unitary-authority/warrington ,FWB,Care Purchase AMH,54135,Supporting People - External,441250,02-Sep-15,1900181193,540,My Space Housing Solutions,113559
WARRINGTON BOROUGH COUNCIL,http://opendatacommunities.org/id/unitary-authority/warrington ,FWB,Older Peoples North Team,54422,CP-Nursing Care-External,441200,02-Sep-15,1900181194,2095,Pendine Park Care Organisation,112763
WARRINGTON BOROUGH COUNCIL,http://opendatacommunities.org/id/unitary-authority/warrington ,FWB,Older Peoples North Team,54422,CP-Nursing Care-External,441200,02-Sep-15,1900181196,1712,St Nicholas Nursing Home,110287
WARRINGTON BOROUGH COUNCIL,http://opendatacommunities.org/id/unitary-authority/warrington ,FWB,Care Purchase AMH,54135,CP-Domicil.External,440950,02-Sep-15,1900181198,1394,Caring Alternatives limited,110164
WARRINGTON BOROUGH COUNCIL,http://opendatacommunities.org/id/unitary-authority/warrington ,FWB,Older Peoples South Team,54421,CP-LongStayExternal,441150,02-Sep-15,1900181199,1954,Bondcare (Spinney),102023
WARRINGTON BOROUGH COUNCIL,http://opendatacommunities.org/id/unitary-authority/warrington ,FWB,Care Purchase - Learning Disability,54450,CP-LongStayExternal,441150,02-Sep-15,1900181200,5240,Potens Ltd TA Heath Lodge,102481
WARRINGTON BOROUGH COUNCIL,http://opendatacommunities.org/id/unitary-authority/warrington ,FWB,Older Peoples North Team,54422,CP-Domicil.External,440950,02-Sep-15,1900181201,539,Care Solution Trading as Together C,114526
WARRINGTON BOROUGH COUNCIL,http://opendatacommunities.org/id/unitary-authority/warrington ,FWB,Care Purchase - Learning Disability,54450,CP-LongStayExternal,441150,02-Sep-15,1900181205,3508,Potens Ltd TA Heath Lodge,102481
WARRINGTON BOROUGH COUNCIL,http://opendatacommunities.org/id/unitary-authority/warrington ,FWB,Care Purchase - Learning Disability,54450,CP-LongStayExternal,441150,02-Sep-15,1900181206,11238,Progress Adult Services Ltd,101817
WARRINGTON BOROUGH COUNCIL,http://opendatacommunities.org/id/unitary-authority/warrington ,FWB,Care Purchase - Learning Disability,54450,CP-LongStayExternal,441150,02-Sep-15,1900181207,8464,Community Care Matters Limited,102791
WARRINGTON BOROUGH COUNCIL,http://opendatacommunities.org/id/unitary-authority/warrington ,FWB,Care Purchase - Learning Disability,54450,CP-Nursing Care-External,441200,02-Sep-15,1900181208,2445,Thornton Manor,107806
WARRINGTON BOROUGH COUNCIL,http://opendatacommunities.org/id/unitary-authority/warrington ,FWB,Care Purchase - Learning Disability,54450,CP-LongStayExternal,441150,02-Sep-15,1900181209,11896,Progress Care and Education Ltd,108888
WARRINGTON BOROUGH COUNCIL,http://opendatacommunities.org/id/unitary-authority/warrington ,FWB,Care Purchase - Learning Disability,54450,CP-Domicil.External,440950,02-Sep-15,1900181210,3325,Progress Adult Services Ltd,101817
WARRINGTON BOROUGH COUNCIL,http://opendatacommunities.org/id/unitary-authority/warrington ,FWB,Care Purchase - Learning Disability,54450,CP-LongStayExternal,441150,02-Sep-15,1900181210,11238,Progress Adult Services Ltd,101817
WARRINGTON BOROUGH COUNCIL,http://opendatacommunities.org/id/unitary-authority/warrington ,FWB,Care Purchase - Learning Disability,54450,CP-Domicil.External,440950,02-Sep-15,1900181211,3325,Progress Adult Services Ltd,101817
WARRINGTON BOROUGH COUNCIL,http://opendatacommunities.org/id/unitary-authority/warrington ,FWB,Care Purchase - Learning Disability,54450,CP-LongStayExternal,441150,02-Sep-15,1900181211,11238,Progress Adult Services Ltd,101817
WARRINGTON BOROUGH COUNCIL,http://opendatacommunities.org/id/unitary-authority/warrington ,FWB,Care Purchase - Learning Disability,54450,CP-LongStayExternal,441150,02-Sep-15,1900181212,2880,Thornton Manor,107806
WARRINGTON BOROUGH COUNCIL,http://opendatacommunities.org/id/unitary-authority/warrington ,FWB,Care Purchase - Learning Disability,54450,CP-Domicil.External,440950,02-Sep-15,1900181213,1820,Potens Ltd TA Heath Lodge,102481
WARRINGTON BOROUGH COUNCIL,http://opendatacommunities.org/id/unitary-authority/warrington ,FWB,Care Purchase - Learning Disability,54450,CP-LongStayExternal,441150,02-Sep-15,1900181213,2580,Potens Ltd TA Heath Lodge,102481
WARRINGTON BOROUGH COUNCIL,http://opendatacommunities.org/id/unitary-authority/warrington ,FWB,Older Peoples South Team,54421,CP-Nursing Care-External,441200,02-Sep-15,1900181215,1628,BUPA - Bedford Res,104569
WARRINGTON BOROUGH COUNCIL,http://opendatacommunities.org/id/unitary-authority/warrington ,FWB,Older Peoples North Team,54422,CP-Nursing Care-External,441200,02-Sep-15,1900181217,1679,BUPA - Bedford Res,104569
WARRINGTON BOROUGH COUNCIL,http://opendatacommunities.org/id/unitary-authority/warrington ,FWB,Care Purchase - ABI,54260,CP-Nursing Care-External,441200,02-Sep-15,1900181218,6780,Berkeley House,113955
WARRINGTON BOROUGH COUNCIL,http://opendatacommunities.org/id/unitary-authority/warrington ,FWB,Care Purchase AMH,54135,CP-LongStayExternal,441150,02-Sep-15,1900181219,1700,Bellefield Residential Home,113998
WARRINGTON BOROUGH COUNCIL,http://opendatacommunities.org/id/unitary-authority/warrington ,CYP,Childrens Other,81004,Specific Work,200200,03-Sep-15,1900181220,2750,AJM Painting and Decorator Ltd,114582
WARRINGTON BOROUGH COUNCIL,http://opendatacommunities.org/id/unitary-authority/warrington ,CYP,Childrens & Young People,81000,ICT Comms - Equipment Purchase,450100,03-Sep-15,1900181221,4335,CDEC Limited,109195
WARRINGTON BOROUGH COUNCIL,http://opendatacommunities.org/id/unitary-authority/warrington ,CYP,Childrens & Young People,81000,Specific Work,200200,03-Sep-15,1900181223,6425,REDACTED PERSONAL DATA,114437
WARRINGTON BOROUGH COUNCIL,http://opendatacommunities.org/id/unitary-authority/warrington ,FWB,SCM St Bridget's Primary School,33142,Response Maintenance,200000,03-Sep-15,1900181240,2773,Hoult Group Services,111129
WARRINGTON BOROUGH COUNCIL,http://opendatacommunities.org/id/unitary-authority/warrington ,CYP,Childrens & Young People,81000,ICT Comms - Equipment Purchase,450100,03-Sep-15,1900181242,3577,Abtec Computer Solutions Ltd,107132
WARRINGTON BOROUGH COUNCIL,http://opendatacommunities.org/id/unitary-authority/warrington ,CYP,Primary,81001,Specific Work,200200,03-Sep-15,1900181243,1250,Guardian Fencing Ltd,109467
WARRINGTON BOROUGH COUNCIL,http://opendatacommunities.org/id/unitary-authority/warrington ,CYP,Childrens & Young People,81000,Furniture & Fittings,400150,03-Sep-15,1900181255,920,Early Excellence Ltd,400007
WARRINGTON BOROUGH COUNCIL,http://opendatacommunities.org/id/unitary-authority/warrington ,FWB,Livewire Traded Services,32071,Mainstream Pupil Transport,300800,03-Sep-15,1900181256,2100,Livewire,110692
WARRINGTON BOROUGH COUNCIL,http://opendatacommunities.org/id/unitary-authority/warrington ,CYP,Childrens & Young People,81000,Furniture & Fittings,400150,03-Sep-15,1900181258,10838,Southerns Office Interiors,100604
WARRINGTON BOROUGH COUNCIL,http://opendatacommunities.org/id/unitary-authority/warrington ,CYP,Childrens & Young People,81000,Furniture & Fittings,400150,03-Sep-15,1900181259,3170,Southerns Office Interiors,100604
WARRINGTON BOROUGH COUNCIL,http://opendatacommunities.org/id/unitary-authority/warrington ,FWB,CYPS - Rents & Charges,32422,Consult.& Prof. Serv,440000,03-Sep-15,1900181260,3232,Tim Parry & Johnathon Ball Trust,440046
WARRINGTON BOROUGH COUNCIL,http://opendatacommunities.org/id/unitary-authority/warrington ,RSC,Reablement/ WP/ ASC Grant c/f,53700,Consult.& Prof. Serv,440000,03-Sep-15,1900181261,700,REDACTED PERSONAL DATA,111505
WARRINGTON BOROUGH COUNCIL,http://opendatacommunities.org/id/unitary-authority/warrington ,FWB,Spencer House,53280,Agency Supply - GF,180000,03-Sep-15,1900181263,1800,Baltimore Consulting Ltd,113735
WARRINGTON BOROUGH COUNCIL,http://opendatacommunities.org/id/unitary-authority/warrington ,RSC,Postal & Courier Services,52130,Postages,450000,03-Sep-15,1900181266,1009,Royal Mail,101445
WARRINGTON BOROUGH COUNCIL,http://opendatacommunities.org/id/unitary-authority/warrington ,RSC,Directorate Costs,15020,Consult.& Prof. Serv,440000,03-Sep-15,1900181269,6336,Warrington And Halton Nhs Ft,440132
WARRINGTON BOROUGH COUNCIL,http://opendatacommunities.org/id/unitary-authority/warrington ,ENO,Highways LTP,82004,Consult.& Prof. Serv,440000,03-Sep-15,1900181272,11940,Urban Roots Planning Limited,113015
WARRINGTON BOROUGH COUNCIL,http://opendatacommunities.org/id/unitary-authority/warrington ,FWB,DSG Early Years PVI Settings,32417,Private & Voluntary 3 Year Olds,470100,04-Sep-15,1900181274,2533,Nest in the Woods,114678
WARRINGTON BOROUGH COUNCIL,http://opendatacommunities.org/id/unitary-authority/warrington ,CYP,Childrens Other,81004,Specific Work,200200,04-Sep-15,1900181277,4500,Bibby Factors Manchester Ltd,107522
WARRINGTON BOROUGH COUNCIL,http://opendatacommunities.org/id/unitary-authority/warrington ,CYP,Childrens Other,81004,Specific Work,200200,04-Sep-15,1900181282,9995,Pentagon Sport,108264
WARRINGTON BOROUGH COUNCIL,http://opendatacommunities.org/id/unitary-authority/warrington ,EE0,Other Commercial Prop.,43560,Consult.& Prof. Serv,440000,04-Sep-15,1900181283,940,Valuation Office Agency,114574
WARRINGTON BOROUGH COUNCIL,http://opendatacommunities.org/id/unitary-authority/warrington ,EE0,New Town House,43119,Trade Refuse Charges,440700,04-Sep-15,1900181287,805,B & M Waste,102293
WARRINGTON BOROUGH COUNCIL,http://opendatacommunities.org/id/unitary-authority/warrington ,RSC,Third Sector,51202,Rent Of Premises,220000,04-Sep-15,1900181291,603,Warrington Housing Current Acc,101208
WARRINGTON BOROUGH COUNCIL,http://opendatacommunities.org/id/unitary-authority/warrington ,FWB,DSG Early Years PVI Settings,32417,Private & Voluntary 3 Year Olds,470100,04-Sep-15,1900181293,14143,Abc 123 Day Nursery Ltd,400152
WARRINGTON BOROUGH COUNCIL,http://opendatacommunities.org/id/unitary-authority/warrington ,FWB,DSG Early Years PVI Settings,32417,Private & Voluntary 3 Year Olds,470100,04-Sep-15,1900181294,10658,Abc Pre-School Limited,400009
WARRINGTON BOROUGH COUNCIL,http://opendatacommunities.org/id/unitary-authority/warrington ,FWB,DSG Early Years PVI Settings,32417,Private & Voluntary 3 Year Olds,470100,04-Sep-15,1900181295,566,REDACTED PERSONAL DATA,113455
WARRINGTON BOROUGH COUNCIL,http://opendatacommunities.org/id/unitary-authority/warrington ,FWB,DSG Early Years PVI Settings,32417,Private & Voluntary 3 Year Olds,470100,04-Sep-15,1900181297,528,A & J Tots to Teens Childcare,113264
WARRINGTON BOROUGH COUNCIL,http://opendatacommunities.org/id/unitary-authority/warrington ,FWB,DSG Early Years PVI Settings,32417,Private & Voluntary 3 Year Olds,470100,04-Sep-15,1900181298,1055,REDACTED PERSONAL DATA,103019
WARRINGTON BOROUGH COUNCIL,http://opendatacommunities.org/id/unitary-authority/warrington ,FWB,DSG Early Years PVI Settings,32417,Private & Voluntary 3 Year Olds,470100,04-Sep-15,1900181299,3682,Appleton Thorn Pre School,400111
WARRINGTON BOROUGH COUNCIL,http://opendatacommunities.org/id/unitary-authority/warrington ,FWB,DSG Early Years PVI Settings,32417,Private & Voluntary 3 Year Olds,470100,04-Sep-15,1900181300,6332,Birch Grove Day Nursery Ltd,101367
WARRINGTON BOROUGH COUNCIL,http://opendatacommunities.org/id/unitary-authority/warrington ,FWB,DSG Early Years PVI Settings,32417,Private & Voluntary 3 Year Olds,470100,04-Sep-15,1900181301,13818,Bloomings Pre-School Day Nursery,400114
WARRINGTON BOROUGH COUNCIL,http://opendatacommunities.org/id/unitary-authority/warrington ,FWB,DSG Early Years PVI Settings,32417,Private & Voluntary 3 Year Olds,470100,04-Sep-15,1900181302,16192,Bright Horizons Callands,400121
WARRINGTON BOROUGH COUNCIL,http://opendatacommunities.org/id/unitary-authority/warrington ,FWB,DSG Early Years PVI Settings,32417,Private & Voluntary 3 Year Olds,470100,04-Sep-15,1900181303,10292,Burnett Nursery,440143
WARRINGTON BOROUGH COUNCIL,http://opendatacommunities.org/id/unitary-authority/warrington ,FWB,DSG Early Years PVI Settings,32417,Private & Voluntary 3 Year Olds,470100,04-Sep-15,1900181304,13753,Busy 0 To 5S (St Nicolas House),400119
WARRINGTON BOROUGH COUNCIL,http://opendatacommunities.org/id/unitary-authority/warrington ,FWB,DSG Early Years PVI Settings,32417,Private & Voluntary 3 Year Olds,470100,04-Sep-15,1900181305,15301,Busy Nought To Fives,400120
WARRINGTON BOROUGH COUNCIL,http://opendatacommunities.org/id/unitary-authority/warrington ,FWB,DSG Early Years PVI Settings,32417,Private & Voluntary 3 Year Olds,470100,04-Sep-15,1900181306,8730,Butterflys Nursery,107718
WARRINGTON BOROUGH COUNCIL,http://opendatacommunities.org/id/unitary-authority/warrington ,FWB,DSG Early Years PVI Settings,32417,Private & Voluntary 3 Year Olds,470100,04-Sep-15,1900181307,9405,Callands Pre-School,112850
WARRINGTON BOROUGH COUNCIL,http://opendatacommunities.org/id/unitary-authority/warrington ,FWB,DSG Early Years PVI Settings,32417,Private & Voluntary 3 Year Olds,470100,04-Sep-15,1900181308,528,REDACTED PERSONAL DATA,108266
WARRINGTON BOROUGH COUNCIL,http://opendatacommunities.org/id/unitary-authority/warrington ,FWB,DSG Early Years PVI Settings,32417,Private & Voluntary 3 Year Olds,470100,04-Sep-15,1900181309,13191,Chapel Road Day Nursery,109632
WARRINGTON BOROUGH COUNCIL,http://opendatacommunities.org/id/unitary-authority/warrington ,FWB,DSG Early Years PVI Settings,32417,Private & Voluntary 3 Year Olds,470100,04-Sep-15,1900181310,26205,Chapelford Village Nursery & Link C,400101
WARRINGTON BOROUGH COUNCIL,http://opendatacommunities.org/id/unitary-authority/warrington ,FWB,DSG Early Years PVI Settings,32417,Private & Voluntary 3 Year Olds,470100,04-Sep-15,1900181311,528,REDACTED PERSONAL DATA,112993
WARRINGTON BOROUGH COUNCIL,http://opendatacommunities.org/id/unitary-authority/warrington ,FWB,DSG Early Years PVI Settings,32417,Private & Voluntary 3 Year Olds,470100,04-Sep-15,1900181312,23532,Cheshire Day Nursery Guardian St,106265
WARRINGTON BOROUGH COUNCIL,http://opendatacommunities.org/id/unitary-authority/warrington ,FWB,DSG Early Years PVI Settings,32417,Private & Voluntary 3 Year Olds,470100,04-Sep-15,1900181313,24589,Kids on top t/a Cotton Tails Nurser,400137
WARRINGTON BOROUGH COUNCIL,http://opendatacommunities.org/id/unitary-authority/warrington ,FWB,DSG Early Years PVI Settings,32417,Private & Voluntary 3 Year Olds,470100,04-Sep-15,1900181314,4266,Croft Early Years Centre,105880
WARRINGTON BOROUGH COUNCIL,http://opendatacommunities.org/id/unitary-authority/warrington ,FWB,DSG Early Years PVI Settings,32417,Private & Voluntary 3 Year Olds,470100,04-Sep-15,1900181315,9497,Croft Village Pre School,109167
WARRINGTON BOROUGH COUNCIL,http://opendatacommunities.org/id/unitary-authority/warrington ,FWB,DSG Early Years PVI Settings,32417,Private & Voluntary 3 Year Olds,470100,04-Sep-15,1900181316,8088,Cromdale Way Preschool,400128
WARRINGTON BOROUGH COUNCIL,http://opendatacommunities.org/id/unitary-authority/warrington ,FWB,DSG Early Years PVI Settings,32417,Private & Voluntary 3 Year Olds,470100,04-Sep-15,1900181317,23836,Culcheth Day Nursery Ltd,400130
WARRINGTON BOROUGH COUNCIL,http://opendatacommunities.org/id/unitary-authority/warrington ,FWB,DSG Early Years PVI Settings,32417,Private & Voluntary 3 Year Olds,470100,04-Sep-15,1900181318,4749,Cupcakes Pre School Limited,400241
WARRINGTON BOROUGH COUNCIL,http://opendatacommunities.org/id/unitary-authority/warrington ,FWB,DSG Early Years PVI Settings,32417,Private & Voluntary 3 Year Olds,470100,04-Sep-15,1900181319,5276,Dunky's Day Nursery (Gt Sankey),400306
WARRINGTON BOROUGH COUNCIL,http://opendatacommunities.org/id/unitary-authority/warrington ,FWB,DSG Early Years PVI Settings,32417,Private & Voluntary 3 Year Olds,470100,04-Sep-15,1900181320,3744,Dunky's Day Nursery Warrington,113903
WARRINGTON BOROUGH COUNCIL,http://opendatacommunities.org/id/unitary-authority/warrington ,FWB,DSG Early Years PVI Settings,32417,Private & Voluntary 3 Year Olds,470100,04-Sep-15,1900181321,2110,Fun 4 Kids,102275
WARRINGTON BOROUGH COUNCIL,http://opendatacommunities.org/id/unitary-authority/warrington ,FWB,DSG Early Years PVI Settings,32417,Private & Voluntary 3 Year Olds,470100,04-Sep-15,1900181322,3412,Glazebury Pre-School Playgroup,400132
WARRINGTON BOROUGH COUNCIL,http://opendatacommunities.org/id/unitary-authority/warrington ,FWB,DSG Early Years PVI Settings,32417,Private & Voluntary 3 Year Olds,470100,04-Sep-15,1900181323,9061,Grappenhall Pre-School,400134
WARRINGTON BOROUGH COUNCIL,http://opendatacommunities.org/id/unitary-authority/warrington ,FWB,DSG Early Years PVI Settings,32417,Private & Voluntary 3 Year Olds,470100,04-Sep-15,1900181324,18542,Green Park Nursery,400089
WARRINGTON BOROUGH COUNCIL,http://opendatacommunities.org/id/unitary-authority/warrington ,FWB,DSG Early Years PVI Settings,32417,Private & Voluntary 3 Year Olds,470100,04-Sep-15,1900181325,1055,REDACTED PERSONAL DATA,113693
WARRINGTON BOROUGH COUNCIL,http://opendatacommunities.org/id/unitary-authority/warrington ,FWB,DSG Early Years PVI Settings,32417,Private & Voluntary 3 Year Olds,470100,04-Sep-15,1900181326,8526,Heathfield House Day Nursery,400138
WARRINGTON BOROUGH COUNCIL,http://opendatacommunities.org/id/unitary-authority/warrington ,FWB,DSG Early Years PVI Settings,32417,Private & Voluntary 3 Year Olds,470100,04-Sep-15,1900181328,6332,Holly Grange Montessori Nursery Ltd,400236
WARRINGTON BOROUGH COUNCIL,http://opendatacommunities.org/id/unitary-authority/warrington ,FWB,DSG Early Years PVI Settings,32417,Private & Voluntary 3 Year Olds,470100,04-Sep-15,1900181329,4672,Jack & Jill Pre School,400014
WARRINGTON BOROUGH COUNCIL,http://opendatacommunities.org/id/unitary-authority/warrington ,FWB,DSG Early Years PVI Settings,32417,Private & Voluntary 3 Year Olds,470100,04-Sep-15,1900181331,12663,REDACTED PERSONAL DATA,400096
WARRINGTON BOROUGH COUNCIL,http://opendatacommunities.org/id/unitary-authority/warrington ,FWB,DSG Early Years PVI Settings,32417,Private & Voluntary 3 Year Olds,470100,04-Sep-15,1900181332,7387,Kids Planet Warrington,105710
WARRINGTON BOROUGH COUNCIL,http://opendatacommunities.org/id/unitary-authority/warrington ,FWB,DSG Early Years PVI Settings,32417,Private & Voluntary 3 Year Olds,470100,04-Sep-15,1900181333,20310,Kids Planet Warrington,105710
WARRINGTON BOROUGH COUNCIL,http://opendatacommunities.org/id/unitary-authority/warrington ,FWB,DSG Early Years PVI Settings,32417,Private & Voluntary 3 Year Olds,470100,04-Sep-15,1900181334,21646,Kids Planet Warrington,105710
WARRINGTON BOROUGH COUNCIL,http://opendatacommunities.org/id/unitary-authority/warrington ,FWB,DSG Early Years PVI Settings,32417,Private & Voluntary 3 Year Olds,470100,04-Sep-15,1900181335,38158,Little Acorns Day Nursery,400012
WARRINGTON BOROUGH COUNCIL,http://opendatacommunities.org/id/unitary-authority/warrington ,FWB,DSG Early Years PVI Settings,32417,Private & Voluntary 3 Year Olds,470100,04-Sep-15,1900181336,8336,Little Browsers Playgroup,400140
WARRINGTON BOROUGH COUNCIL,http://opendatacommunities.org/id/unitary-authority/warrington ,FWB,DSG Early Years PVI Settings,32417,Private & Voluntary 3 Year Olds,470100,04-Sep-15,1900181337,11080,Little Penguins Day Nursery,110768
WARRINGTON BOROUGH COUNCIL,http://opendatacommunities.org/id/unitary-authority/warrington ,FWB,DSG Early Years PVI Settings,32417,Private & Voluntary 3 Year Olds,470100,04-Sep-15,1900181338,9688,Little Treasures Nursery Ltd,400091
WARRINGTON BOROUGH COUNCIL,http://opendatacommunities.org/id/unitary-authority/warrington ,FWB,DSG Early Years PVI Settings,32417,Private & Voluntary 3 Year Olds,470100,04-Sep-15,1900181339,7815,Locking Stumps Day Nursery,400142
WARRINGTON BOROUGH COUNCIL,http://opendatacommunities.org/id/unitary-authority/warrington ,FWB,DSG Early Years PVI Settings,32417,Private & Voluntary 3 Year Olds,470100,04-Sep-15,1900181340,7678,Locking Stumps Pre School,400008
WARRINGTON BOROUGH COUNCIL,http://opendatacommunities.org/id/unitary-authority/warrington ,FWB,DSG Early Years PVI Settings,32417,Private & Voluntary 3 Year Olds,470100,04-Sep-15,1900181341,9983,Lymm Village Preschool,400146
WARRINGTON BOROUGH COUNCIL,http://opendatacommunities.org/id/unitary-authority/warrington ,FWB,DSG Early Years PVI Settings,32417,Private & Voluntary 3 Year Olds,470100,04-Sep-15,1900181342,528,REDACTED PERSONAL DATA,420394
WARRINGTON BOROUGH COUNCIL,http://opendatacommunities.org/id/unitary-authority/warrington ,FWB,DSG Early Years PVI Settings,32417,Private & Voluntary 3 Year Olds,470100,04-Sep-15,1900181343,7036,Lynton Private Day Nursery,400003
WARRINGTON BOROUGH COUNCIL,http://opendatacommunities.org/id/unitary-authority/warrington ,FWB,DSG Early Years PVI Settings,32417,Private & Voluntary 3 Year Olds,470100,04-Sep-15,1900181345,1089,REDACTED PERSONAL DATA,420429
WARRINGTON BOROUGH COUNCIL,http://opendatacommunities.org/id/unitary-authority/warrington ,FWB,DSG Early Years PVI Settings,32417,Private & Voluntary 3 Year Olds,470100,04-Sep-15,1900181346,6648,Newchurch Pre-School Limited,400148
WARRINGTON BOROUGH COUNCIL,http://opendatacommunities.org/id/unitary-authority/warrington ,FWB,DSG Early Years PVI Settings,32417,Private & Voluntary 3 Year Olds,470100,04-Sep-15,1900181347,13684,Old Hall Pre School,400017
WARRINGTON BOROUGH COUNCIL,http://opendatacommunities.org/id/unitary-authority/warrington ,FWB,DSG Early Years PVI Settings,32417,Private & Voluntary 3 Year Olds,470100,04-Sep-15,1900181348,11807,Oughtrington Pre-School,400044
WARRINGTON BOROUGH COUNCIL,http://opendatacommunities.org/id/unitary-authority/warrington ,FWB,DSG Early Years PVI Settings,32417,Private & Voluntary 3 Year Olds,470100,04-Sep-15,1900181349,1055,Wasps Nursery and Link Clubs,400087
WARRINGTON BOROUGH COUNCIL,http://opendatacommunities.org/id/unitary-authority/warrington ,FWB,DSG Early Years PVI Settings,32417,Private & Voluntary 3 Year Olds,470100,04-Sep-15,1900181350,11671,Play Days Pre-School,400016
WARRINGTON BOROUGH COUNCIL,http://opendatacommunities.org/id/unitary-authority/warrington ,FWB,DSG Early Years PVI Settings,32417,Private & Voluntary 3 Year Olds,470100,04-Sep-15,1900181351,14598,Puddleducks Day Nursery,400001
WARRINGTON BOROUGH COUNCIL,http://opendatacommunities.org/id/unitary-authority/warrington ,FWB,DSG Early Years PVI Settings,32417,Private & Voluntary 3 Year Olds,470100,04-Sep-15,1900181352,19198,Rainbow Day Nursery,400153
WARRINGTON BOROUGH COUNCIL,http://opendatacommunities.org/id/unitary-authority/warrington ,FWB,DSG Early Years PVI Settings,32417,Private & Voluntary 3 Year Olds,470100,04-Sep-15,1900181353,7985,Risley Day Nursery,400081
WARRINGTON BOROUGH COUNCIL,http://opendatacommunities.org/id/unitary-authority/warrington ,FWB,DSG Early Years PVI Settings,32417,Private & Voluntary 3 Year Olds,470100,04-Sep-15,1900181354,8702,Rixton With Glazebrook Pre-School,400080
WARRINGTON BOROUGH COUNCIL,http://opendatacommunities.org/id/unitary-authority/warrington ,FWB,DSG Early Years PVI Settings,32417,Private & Voluntary 3 Year Olds,470100,04-Sep-15,1900181355,18148,Rosebank Naturegarten,400154
WARRINGTON BOROUGH COUNCIL,http://opendatacommunities.org/id/unitary-authority/warrington ,FWB,DSG Early Years PVI Settings,32417,Private & Voluntary 3 Year Olds,470100,04-Sep-15,1900181356,633,REDACTED PERSONAL DATA,114298
WARRINGTON BOROUGH COUNCIL,http://opendatacommunities.org/id/unitary-authority/warrington ,FWB,DSG Early Years PVI Settings,32417,Private & Voluntary 3 Year Olds,470100,04-Sep-15,1900181357,2731,Springwood Nursery,400167
WARRINGTON BOROUGH COUNCIL,http://opendatacommunities.org/id/unitary-authority/warrington ,FWB,DSG Early Years PVI Settings,32417,Private & Voluntary 3 Year Olds,470100,04-Sep-15,1900181358,2798,St Mary's Pre School,400159
WARRINGTON BOROUGH COUNCIL,http://opendatacommunities.org/id/unitary-authority/warrington ,FWB,DSG Early Years PVI Settings,32417,Private & Voluntary 3 Year Olds,470100,04-Sep-15,1900181359,9316,St Matthews Pre-School Group,400160
WARRINGTON BOROUGH COUNCIL,http://opendatacommunities.org/id/unitary-authority/warrington ,FWB,DSG Early Years PVI Settings,32417,Private & Voluntary 3 Year Olds,470100,04-Sep-15,1900181360,11502,St Monica's Pre School,103081
WARRINGTON BOROUGH COUNCIL,http://opendatacommunities.org/id/unitary-authority/warrington ,FWB,DSG Early Years PVI Settings,32417,Private & Voluntary 3 Year Olds,470100,04-Sep-15,1900181361,10545,St Oswald's Pre -School Nursery,400162
WARRINGTON BOROUGH COUNCIL,http://opendatacommunities.org/id/unitary-authority/warrington ,FWB,DSG Early Years PVI Settings,32417,Private & Voluntary 3 Year Olds,470100,04-Sep-15,1900181362,11122,St Philips Pre School,400163
WARRINGTON BOROUGH COUNCIL,http://opendatacommunities.org/id/unitary-authority/warrington ,FWB,DSG Early Years PVI Settings,32417,Private & Voluntary 3 Year Olds,470100,04-Sep-15,1900181363,6624,Statham Little Foxes Pre-School & L,400079
WARRINGTON BOROUGH COUNCIL,http://opendatacommunities.org/id/unitary-authority/warrington ,FWB,DSG Early Years PVI Settings,32417,Private & Voluntary 3 Year Olds,470100,04-Sep-15,1900181364,12980,Stepping Stones Nurseries (Lingley,400169
WARRINGTON BOROUGH COUNCIL,http://opendatacommunities.org/id/unitary-authority/warrington ,FWB,DSG Early Years PVI Settings,32417,Private & Voluntary 3 Year Olds,470100,04-Sep-15,1900181365,5804,Stepping Stones Child Care,400103
WARRINGTON BOROUGH COUNCIL,http://opendatacommunities.org/id/unitary-authority/warrington ,FWB,DSG Early Years PVI Settings,32417,Private & Voluntary 3 Year Olds,470100,04-Sep-15,1900181366,3472,Stepping Stone Day Nurse Stockton H,400043
WARRINGTON BOROUGH COUNCIL,http://opendatacommunities.org/id/unitary-authority/warrington ,FWB,DSG Early Years PVI Settings,32417,Private & Voluntary 3 Year Olds,470100,04-Sep-15,1900181367,9582,Stretton Day Nursery,400172
WARRINGTON BOROUGH COUNCIL,http://opendatacommunities.org/id/unitary-authority/warrington ,FWB,DSG Early Years PVI Settings,32417,Private & Voluntary 3 Year Olds,470100,04-Sep-15,1900181368,528,REDACTED PERSONAL DATA,110816
WARRINGTON BOROUGH COUNCIL,http://opendatacommunities.org/id/unitary-authority/warrington ,FWB,DSG Early Years PVI Settings,32417,Private & Voluntary 3 Year Olds,470100,04-Sep-15,1900181369,528,REDACTED PERSONAL DATA,107904
WARRINGTON BOROUGH COUNCIL,http://opendatacommunities.org/id/unitary-authority/warrington ,FWB,DSG Early Years PVI Settings,32417,Private & Voluntary 3 Year Olds,470100,04-Sep-15,1900181370,3693,The Cheshire Day Nursery,400296
WARRINGTON BOROUGH COUNCIL,http://opendatacommunities.org/id/unitary-authority/warrington ,FWB,DSG Early Years PVI Settings,32417,Private & Voluntary 3 Year Olds,470100,04-Sep-15,1900181371,7879,The Cheshire Day Nursery @ Winwick,114503
WARRINGTON BOROUGH COUNCIL,http://opendatacommunities.org/id/unitary-authority/warrington ,FWB,DSG Early Years PVI Settings,32417,Private & Voluntary 3 Year Olds,470100,04-Sep-15,1900181372,19417,Cheshire Day Nursery / The Kinderga,400013
WARRINGTON BOROUGH COUNCIL,http://opendatacommunities.org/id/unitary-authority/warrington ,FWB,DSG Early Years PVI Settings,32417,Private & Voluntary 3 Year Olds,470100,04-Sep-15,1900181373,18688,The Lakes Nursery,101036
WARRINGTON BOROUGH COUNCIL,http://opendatacommunities.org/id/unitary-authority/warrington ,FWB,DSG Early Years PVI Settings,32417,Private & Voluntary 3 Year Olds,470100,04-Sep-15,1900181374,13877,The Little Lot Nursery,400141
WARRINGTON BOROUGH COUNCIL,http://opendatacommunities.org/id/unitary-authority/warrington ,FWB,DSG Early Years PVI Settings,32417,Private & Voluntary 3 Year Olds,470100,04-Sep-15,1900181375,11080,The Old Vicarage,104991
WARRINGTON BOROUGH COUNCIL,http://opendatacommunities.org/id/unitary-authority/warrington ,FWB,DSG Early Years PVI Settings,32417,Private & Voluntary 3 Year Olds,470100,04-Sep-15,1900181376,11908,The Quays Day Nursery,105052
WARRINGTON BOROUGH COUNCIL,http://opendatacommunities.org/id/unitary-authority/warrington ,FWB,DSG Early Years PVI Settings,32417,Private & Voluntary 3 Year Olds,470100,04-Sep-15,1900181377,13309,The Village Pre-School,400174
WARRINGTON BOROUGH COUNCIL,http://opendatacommunities.org/id/unitary-authority/warrington ,FWB,DSG Early Years PVI Settings,32417,Private & Voluntary 3 Year Olds,470100,04-Sep-15,1900181378,4914,Thelwall Pre-School,400010
WARRINGTON BOROUGH COUNCIL,http://opendatacommunities.org/id/unitary-authority/warrington ,FWB,DSG Early Years PVI Settings,32417,Private & Voluntary 3 Year Olds,470100,04-Sep-15,1900181379,19904,Tiggy-Winkles Day Nursery,400082
WARRINGTON BOROUGH COUNCIL,http://opendatacommunities.org/id/unitary-authority/warrington ,FWB,DSG Early Years PVI Settings,32417,Private & Voluntary 3 Year Olds,470100,04-Sep-15,1900181381,7883,Tugboats Pre-School,400028
WARRINGTON BOROUGH COUNCIL,http://opendatacommunities.org/id/unitary-authority/warrington ,FWB,DSG Early Years PVI Settings,32417,Private & Voluntary 3 Year Olds,470100,04-Sep-15,1900181382,6859,University Of Chester Nursery Padga,400102
WARRINGTON BOROUGH COUNCIL,http://opendatacommunities.org/id/unitary-authority/warrington ,FWB,DSG Early Years PVI Settings,32417,Private & Voluntary 3 Year Olds,470100,04-Sep-15,1900181383,10442,Warren Pre-School Playgroup,400176
WARRINGTON BOROUGH COUNCIL,http://opendatacommunities.org/id/unitary-authority/warrington ,FWB,DSG Early Years PVI Settings,32417,Private & Voluntary 3 Year Olds,470100,04-Sep-15,1900181384,15869,Warrington Day Nursery,400002
WARRINGTON BOROUGH COUNCIL,http://opendatacommunities.org/id/unitary-authority/warrington ,FWB,DSG Early Years PVI Settings,32417,Private & Voluntary 3 Year Olds,470100,04-Sep-15,1900181385,17763,Willows Pre-School Nursery,400094
WARRINGTON BOROUGH COUNCIL,http://opendatacommunities.org/id/unitary-authority/warrington ,FWB,DSG Early Years PVI Settings,32417,Private & Voluntary 3 Year Olds,470100,04-Sep-15,1900181386,7654,Wind in the Willows,400168
WARRINGTON BOROUGH COUNCIL,http://opendatacommunities.org/id/unitary-authority/warrington ,FWB,DSG Early Years PVI Settings,32417,Private & Voluntary 3 Year Olds,470100,04-Sep-15,1900181387,5276,Wind in The Willows Childcare,112697
WARRINGTON BOROUGH COUNCIL,http://opendatacommunities.org/id/unitary-authority/warrington ,FWB,DSG Early Years PVI Settings,32417,Private & Voluntary 3 Year Olds,470100,04-Sep-15,1900181388,1638,Winwick Pre-School Nursery,400181
WARRINGTON BOROUGH COUNCIL,http://opendatacommunities.org/id/unitary-authority/warrington ,FWB,DSG Early Years PVI Settings,32417,Private & Voluntary 4 Year Olds,470150,04-Sep-15,1900181391,621,Butterflys Nursery,107718
WARRINGTON BOROUGH COUNCIL,http://opendatacommunities.org/id/unitary-authority/warrington ,FWB,DSG 2 Year Old Fund,31601,Payment of Grants,470050,04-Sep-15,1900181396,14240,Abc 123 Day Nursery Ltd,400152
WARRINGTON BOROUGH COUNCIL,http://opendatacommunities.org/id/unitary-authority/warrington ,FWB,DSG 2 Year Old Fund,31601,Payment of Grants,470050,04-Sep-15,1900181397,5729,Abc Pre-School Limited,400009
WARRINGTON BOROUGH COUNCIL,http://opendatacommunities.org/id/unitary-authority/warrington ,FWB,DSG 2 Year Old Fund,31601,Payment of Grants,470050,04-Sep-15,1900181398,582,A & J Tots to Teens Childcare,113264
WARRINGTON BOROUGH COUNCIL,http://opendatacommunities.org/id/unitary-authority/warrington ,FWB,DSG 2 Year Old Fund,31601,Payment of Grants,470050,04-Sep-15,1900181399,524,REDACTED PERSONAL DATA,114601
WARRINGTON BOROUGH COUNCIL,http://opendatacommunities.org/id/unitary-authority/warrington ,FWB,DSG 2 Year Old Fund,31601,Payment of Grants,470050,04-Sep-15,1900181400,764,REDACTED PERSONAL DATA,103019
WARRINGTON BOROUGH COUNCIL,http://opendatacommunities.org/id/unitary-authority/warrington ,FWB,DSG 2 Year Old Fund,31601,Payment of Grants,470050,04-Sep-15,1900181402,18333,Birch Grove Day Nursery Ltd,101367
WARRINGTON BOROUGH COUNCIL,http://opendatacommunities.org/id/unitary-authority/warrington ,FWB,DSG 2 Year Old Fund,31601,Payment of Grants,470050,04-Sep-15,1900181403,6948,Bloomings Pre-School Day Nursery,400114
WARRINGTON BOROUGH COUNCIL,http://opendatacommunities.org/id/unitary-authority/warrington ,FWB,DSG 2 Year Old Fund,31601,Payment of Grants,470050,04-Sep-15,1900181404,3056,Burnett Nursery,440143
WARRINGTON BOROUGH COUNCIL,http://opendatacommunities.org/id/unitary-authority/warrington ,FWB,DSG 2 Year Old Fund,31601,Payment of Grants,470050,04-Sep-15,1900181405,16041,Busy 0 To 5S (St Nicolas House),400119
WARRINGTON BOROUGH COUNCIL,http://opendatacommunities.org/id/unitary-authority/warrington ,FWB,DSG 2 Year Old Fund,31601,Payment of Grants,470050,04-Sep-15,1900181406,8114,Butterflys Nursery,107718
WARRINGTON BOROUGH COUNCIL,http://opendatacommunities.org/id/unitary-authority/warrington ,FWB,DSG 2 Year Old Fund,31601,Payment of Grants,470050,04-Sep-15,1900181407,2241,Callands Pre-School,112850
WARRINGTON BOROUGH COUNCIL,http://opendatacommunities.org/id/unitary-authority/warrington ,FWB,DSG 2 Year Old Fund,31601,Payment of Grants,470050,04-Sep-15,1900181408,2292,Chapel Road Day Nursery,109632
WARRINGTON BOROUGH COUNCIL,http://opendatacommunities.org/id/unitary-authority/warrington ,FWB,DSG 2 Year Old Fund,31601,Payment of Grants,470050,04-Sep-15,1900181409,1833,Chapelford Village Nursery & Link C,400101
WARRINGTON BOROUGH COUNCIL,http://opendatacommunities.org/id/unitary-authority/warrington ,FWB,DSG 2 Year Old Fund,31601,Payment of Grants,470050,04-Sep-15,1900181410,1528,REDACTED PERSONAL DATA,112993
WARRINGTON BOROUGH COUNCIL,http://opendatacommunities.org/id/unitary-authority/warrington ,FWB,DSG 2 Year Old Fund,31601,Payment of Grants,470050,04-Sep-15,1900181411,11131,Cheshire Day Nursery Guardian St,106265
WARRINGTON BOROUGH COUNCIL,http://opendatacommunities.org/id/unitary-authority/warrington ,FWB,DSG 2 Year Old Fund,31601,Payment of Grants,470050,04-Sep-15,1900181412,764,REDACTED PERSONAL DATA,114261
WARRINGTON BOROUGH COUNCIL,http://opendatacommunities.org/id/unitary-authority/warrington ,FWB,DSG 2 Year Old Fund,31601,Payment of Grants,470050,04-Sep-15,1900181413,4450,Kids on top t/a Cotton Tails Nurser,400137
WARRINGTON BOROUGH COUNCIL,http://opendatacommunities.org/id/unitary-authority/warrington ,FWB,DSG 2 Year Old Fund,31601,Payment of Grants,470050,04-Sep-15,1900181414,1222,Croft Village Pre School,109167
WARRINGTON BOROUGH COUNCIL,http://opendatacommunities.org/id/unitary-authority/warrington ,FWB,DSG 2 Year Old Fund,31601,Payment of Grants,470050,04-Sep-15,1900181415,764,Cromdale Way Preschool,400128
WARRINGTON BOROUGH COUNCIL,http://opendatacommunities.org/id/unitary-authority/warrington ,FWB,DSG 2 Year Old Fund,31601,Payment of Grants,470050,04-Sep-15,1900181416,3165,Culcheth Day Nursery Ltd,400130
WARRINGTON BOROUGH COUNCIL,http://opendatacommunities.org/id/unitary-authority/warrington ,FWB,DSG 2 Year Old Fund,31601,Payment of Grants,470050,04-Sep-15,1900181417,11167,Cupcakes Pre School Limited,400241
WARRINGTON BOROUGH COUNCIL,http://opendatacommunities.org/id/unitary-authority/warrington ,FWB,DSG 2 Year Old Fund,31601,Payment of Grants,470050,04-Sep-15,1900181418,3056,Dunky's Day Nursery (Gt Sankey),400306
WARRINGTON BOROUGH COUNCIL,http://opendatacommunities.org/id/unitary-authority/warrington ,FWB,DSG 2 Year Old Fund,31601,Payment of Grants,470050,04-Sep-15,1900181419,8012,Dunky's Day Nursery Warrington,113903
WARRINGTON BOROUGH COUNCIL,http://opendatacommunities.org/id/unitary-authority/warrington ,FWB,DSG 2 Year Old Fund,31601,Payment of Grants,470050,04-Sep-15,1900181420,1528,Fun 4 Kids,102275
WARRINGTON BOROUGH COUNCIL,http://opendatacommunities.org/id/unitary-authority/warrington ,FWB,DSG 2 Year Old Fund,31601,Payment of Grants,470050,04-Sep-15,1900181421,764,Green Park Nursery,400089
WARRINGTON BOROUGH COUNCIL,http://opendatacommunities.org/id/unitary-authority/warrington ,FWB,DSG 2 Year Old Fund,31601,Payment of Grants,470050,04-Sep-15,1900181422,764,REDACTED PERSONAL DATA,113693
WARRINGTON BOROUGH COUNCIL,http://opendatacommunities.org/id/unitary-authority/warrington ,FWB,DSG 2 Year Old Fund,31601,Payment of Grants,470050,04-Sep-15,1900181423,6111,Heathfield House Day Nursery,400138
WARRINGTON BOROUGH COUNCIL,http://opendatacommunities.org/id/unitary-authority/warrington ,FWB,DSG 2 Year Old Fund,31601,Payment of Grants,470050,04-Sep-15,1900181424,4692,Holly Grange Montessori Nursery Ltd,400236
WARRINGTON BOROUGH COUNCIL,http://opendatacommunities.org/id/unitary-authority/warrington ,FWB,DSG 2 Year Old Fund,31601,Payment of Grants,470050,04-Sep-15,1900181425,764,Janet Griffiths- Happy House Childc,108803
WARRINGTON BOROUGH COUNCIL,http://opendatacommunities.org/id/unitary-authority/warrington ,FWB,DSG 2 Year Old Fund,31601,Payment of Grants,470050,04-Sep-15,1900181426,3056,A & J Tots to Teens Childcare,113264
WARRINGTON BOROUGH COUNCIL,http://opendatacommunities.org/id/unitary-authority/warrington ,FWB,DSG 2 Year Old Fund,31601,Payment of Grants,470050,04-Sep-15,1900181427,4610,REDACTED PERSONAL DATA,400096
WARRINGTON BOROUGH COUNCIL,http://opendatacommunities.org/id/unitary-authority/warrington ,FWB,DSG 2 Year Old Fund,31601,Payment of Grants,470050,04-Sep-15,1900181428,18231,Kids Planet Warrington,105710
WARRINGTON BOROUGH COUNCIL,http://opendatacommunities.org/id/unitary-authority/warrington ,FWB,DSG 2 Year Old Fund,31601,Payment of Grants,470050,04-Sep-15,1900181429,6220,Kids Planet Warrington,105710
WARRINGTON BOROUGH COUNCIL,http://opendatacommunities.org/id/unitary-authority/warrington ,FWB,DSG 2 Year Old Fund,31601,Payment of Grants,470050,04-Sep-15,1900181430,13083,Kids Planet Warrington,105710
WARRINGTON BOROUGH COUNCIL,http://opendatacommunities.org/id/unitary-authority/warrington ,FWB,DSG 2 Year Old Fund,31601,Payment of Grants,470050,04-Sep-15,1900181431,5347,Wasps Nursery and Link Clubs,400087
WARRINGTON BOROUGH COUNCIL,http://opendatacommunities.org/id/unitary-authority/warrington ,FWB,DSG 2 Year Old Fund,31601,Payment of Grants,470050,04-Sep-15,1900181432,8075,Little Acorns Day Nursery,400012
WARRINGTON BOROUGH COUNCIL,http://opendatacommunities.org/id/unitary-authority/warrington ,FWB,DSG 2 Year Old Fund,31601,Payment of Grants,470050,04-Sep-15,1900181433,3819,Little Browsers Playgroup,400140
WARRINGTON BOROUGH COUNCIL,http://opendatacommunities.org/id/unitary-authority/warrington ,FWB,DSG 2 Year Old Fund,31601,Payment of Grants,470050,04-Sep-15,1900181434,9057,Little Penguins Day Nursery,110768
WARRINGTON BOROUGH COUNCIL,http://opendatacommunities.org/id/unitary-authority/warrington ,FWB,DSG 2 Year Old Fund,31601,Payment of Grants,470050,04-Sep-15,1900181435,7275,Little Treasures Nursery Ltd,400091
WARRINGTON BOROUGH COUNCIL,http://opendatacommunities.org/id/unitary-authority/warrington ,FWB,DSG 2 Year Old Fund,31601,Payment of Grants,470050,04-Sep-15,1900181436,4252,Locking Stumps Day Nursery,400142
WARRINGTON BOROUGH COUNCIL,http://opendatacommunities.org/id/unitary-authority/warrington ,FWB,DSG 2 Year Old Fund,31601,Payment of Grants,470050,04-Sep-15,1900181437,1528,Locking Stumps Pre School,400008
WARRINGTON BOROUGH COUNCIL,http://opendatacommunities.org/id/unitary-authority/warrington ,FWB,DSG 2 Year Old Fund,31601,Payment of Grants,470050,04-Sep-15,1900181438,2699,Lymm Village Preschool,400146
WARRINGTON BOROUGH COUNCIL,http://opendatacommunities.org/id/unitary-authority/warrington ,FWB,DSG 2 Year Old Fund,31601,Payment of Grants,470050,04-Sep-15,1900181440,1400,Newchurch Pre-School Limited,400148
WARRINGTON BOROUGH COUNCIL,http://opendatacommunities.org/id/unitary-authority/warrington ,FWB,DSG 2 Year Old Fund,31601,Payment of Grants,470050,04-Sep-15,1900181441,4220,Old Hall Pre School,400017
WARRINGTON BOROUGH COUNCIL,http://opendatacommunities.org/id/unitary-authority/warrington ,FWB,DSG 2 Year Old Fund,31601,Payment of Grants,470050,04-Sep-15,1900181442,7486,Wasps Nursery and Link Clubs,400087
WARRINGTON BOROUGH COUNCIL,http://opendatacommunities.org/id/unitary-authority/warrington ,FWB,DSG 2 Year Old Fund,31601,Payment of Grants,470050,04-Sep-15,1900181443,4583,Play Days Pre-School,400016
WARRINGTON BOROUGH COUNCIL,http://opendatacommunities.org/id/unitary-authority/warrington ,FWB,DSG 2 Year Old Fund,31601,Payment of Grants,470050,04-Sep-15,1900181444,10258,Puddleducks Day Nursery,400001
WARRINGTON BOROUGH COUNCIL,http://opendatacommunities.org/id/unitary-authority/warrington ,FWB,DSG 2 Year Old Fund,31601,Payment of Grants,470050,04-Sep-15,1900181445,1528,Rainbow Day Nursery,400153
WARRINGTON BOROUGH COUNCIL,http://opendatacommunities.org/id/unitary-authority/warrington ,FWB,DSG 2 Year Old Fund,31601,Payment of Grants,470050,04-Sep-15,1900181446,1528,REDACTED PERSONAL DATA,113514
WARRINGTON BOROUGH COUNCIL,http://opendatacommunities.org/id/unitary-authority/warrington ,FWB,DSG 2 Year Old Fund,31601,Payment of Grants,470050,04-Sep-15,1900181447,764,Risley Day Nursery,400081
WARRINGTON BOROUGH COUNCIL,http://opendatacommunities.org/id/unitary-authority/warrington ,FWB,DSG 2 Year Old Fund,31601,Payment of Grants,470050,04-Sep-15,1900181448,3056,Rosebank Naturegarten,400154
WARRINGTON BOROUGH COUNCIL,http://opendatacommunities.org/id/unitary-authority/warrington ,FWB,DSG 2 Year Old Fund,31601,Payment of Grants,470050,04-Sep-15,1900181449,1528,Springwood Nursery,400167
WARRINGTON BOROUGH COUNCIL,http://opendatacommunities.org/id/unitary-authority/warrington ,FWB,DSG 2 Year Old Fund,31601,Payment of Grants,470050,04-Sep-15,1900181450,3208,Statham Little Foxes Pre-School & L,400079
WARRINGTON BOROUGH COUNCIL,http://opendatacommunities.org/id/unitary-authority/warrington ,FWB,DSG 2 Year Old Fund,31601,Payment of Grants,470050,04-Sep-15,1900181451,5347,Stepping Stones Child Care,400103
WARRINGTON BOROUGH COUNCIL,http://opendatacommunities.org/id/unitary-authority/warrington ,FWB,DSG 2 Year Old Fund,31601,Payment of Grants,470050,04-Sep-15,1900181452,764,Stretton Day Nursery,400172
WARRINGTON BOROUGH COUNCIL,http://opendatacommunities.org/id/unitary-authority/warrington ,FWB,DSG 2 Year Old Fund,31601,Payment of Grants,470050,04-Sep-15,1900181454,8075,Cheshire Day Nursery / The Kinderga,400013
WARRINGTON BOROUGH COUNCIL,http://opendatacommunities.org/id/unitary-authority/warrington ,FWB,DSG 2 Year Old Fund,31601,Payment of Grants,470050,04-Sep-15,1900181455,1528,The Cheshire Day Nursery @ Winwick,114503
WARRINGTON BOROUGH COUNCIL,http://opendatacommunities.org/id/unitary-authority/warrington ,FWB,DSG 2 Year Old Fund,31601,Payment of Grants,470050,04-Sep-15,1900181456,22960,The Lakes Nursery,101036
WARRINGTON BOROUGH COUNCIL,http://opendatacommunities.org/id/unitary-authority/warrington ,FWB,DSG 2 Year Old Fund,31601,Payment of Grants,470050,04-Sep-15,1900181457,1528,The Old Vicarage,104991
WARRINGTON BOROUGH COUNCIL,http://opendatacommunities.org/id/unitary-authority/warrington ,FWB,DSG 2 Year Old Fund,31601,Payment of Grants,470050,04-Sep-15,1900181458,3819,The Quays Day Nursery,105052
WARRINGTON BOROUGH COUNCIL,http://opendatacommunities.org/id/unitary-authority/warrington ,FWB,DSG 2 Year Old Fund,31601,Payment of Grants,470050,04-Sep-15,1900181459,1964,The Village Pre-School,400174
WARRINGTON BOROUGH COUNCIL,http://opendatacommunities.org/id/unitary-authority/warrington ,FWB,DSG 2 Year Old Fund,31601,Payment of Grants,470050,04-Sep-15,1900181460,764,Thelwall Pre-School,400010
WARRINGTON BOROUGH COUNCIL,http://opendatacommunities.org/id/unitary-authority/warrington ,FWB,DSG 2 Year Old Fund,31601,Payment of Grants,470050,04-Sep-15,1900181461,7020,Tiggy-Winkles Day Nursery,400082
WARRINGTON BOROUGH COUNCIL,http://opendatacommunities.org/id/unitary-authority/warrington ,FWB,DSG 2 Year Old Fund,31601,Payment of Grants,470050,04-Sep-15,1900181462,1462,Tugboats Pre-School,400028
WARRINGTON BOROUGH COUNCIL,http://opendatacommunities.org/id/unitary-authority/warrington ,FWB,DSG 2 Year Old Fund,31601,Payment of Grants,470050,04-Sep-15,1900181463,3819,University Of Chester Nursery Padga,400102
WARRINGTON BOROUGH COUNCIL,http://opendatacommunities.org/id/unitary-authority/warrington ,FWB,DSG 2 Year Old Fund,31601,Payment of Grants,470050,04-Sep-15,1900181464,764,REDACTED PERSONAL DATA,114101
WARRINGTON BOROUGH COUNCIL,http://opendatacommunities.org/id/unitary-authority/warrington ,FWB,DSG 2 Year Old Fund,31601,Payment of Grants,470050,04-Sep-15,1900181465,1375,Warren Pre-School Playgroup,400176
WARRINGTON BOROUGH COUNCIL,http://opendatacommunities.org/id/unitary-authority/warrington ,FWB,DSG 2 Year Old Fund,31601,Payment of Grants,470050,04-Sep-15,1900181466,764,Warrington Day Nursery,400002
WARRINGTON BOROUGH COUNCIL,http://opendatacommunities.org/id/unitary-authority/warrington ,FWB,DSG 2 Year Old Fund,31601,Payment of Grants,470050,04-Sep-15,1900181467,5129,Willows Pre-School Nursery,400094
WARRINGTON BOROUGH COUNCIL,http://opendatacommunities.org/id/unitary-authority/warrington ,FWB,DSG 2 Year Old Fund,31601,Payment of Grants,470050,04-Sep-15,1900181468,3819,Wind in the Willows,400168
WARRINGTON BOROUGH COUNCIL,http://opendatacommunities.org/id/unitary-authority/warrington ,FWB,DSG 2 Year Old Fund,31601,Payment of Grants,470050,04-Sep-15,1900181469,4302,Wind in The Willows Childcare,112697
WARRINGTON BOROUGH COUNCIL,http://opendatacommunities.org/id/unitary-authority/warrington ,FWB,Temporary Accomodation,43652,NNDR,230000,04-Sep-15,1900181470,955,Warrington Borough Council,440006
WARRINGTON BOROUGH COUNCIL,http://opendatacommunities.org/id/unitary-authority/warrington ,COR,ICT Salary Sacrifice,59990,ICT Comms - Equipment Purchase,450100,04-Sep-15,1900181473,5228,Investec Asset Finance PLC,106246
WARRINGTON BOROUGH COUNCIL,http://opendatacommunities.org/id/unitary-authority/warrington ,HOL,Single Billing Holding Account,91130,Electricity,210000,04-Sep-15,1900181474,6364,Npower Electricity,101884
WARRINGTON BOROUGH COUNCIL,http://opendatacommunities.org/id/unitary-authority/warrington ,FWB,Care Purchase - Learning Disability,54450,CP-Domicil.External,440950,07-Sep-15,1900181477,63643,Alternative Futures Group,104468
WARRINGTON BOROUGH COUNCIL,http://opendatacommunities.org/id/unitary-authority/warrington ,FWB,Care Purchase - Learning Disability,54450,Supporting People - External,441250,07-Sep-15,1900181477,6850,Alternative Futures Group,104468
WARRINGTON BOROUGH COUNCIL,http://opendatacommunities.org/id/unitary-authority/warrington ,FWB,Care Purchase Budget,54490,Voids,515150,07-Sep-15,1900181477,5745,Alternative Futures Group,104468
WARRINGTON BOROUGH COUNCIL,http://opendatacommunities.org/id/unitary-authority/warrington ,FWB,Care Purchase - Learning Disability,54450,CP-LongStayExternal,441150,07-Sep-15,1900181478,10800,WCL - Warrington Community Living,105230
WARRINGTON BOROUGH COUNCIL,http://opendatacommunities.org/id/unitary-authority/warrington ,FWB,Care Purchase - Learning Disability,54450,CP-Nursing Care-External,441200,07-Sep-15,1900181478,40395,WCL - Warrington Community Living,105230
WARRINGTON BOROUGH COUNCIL,http://opendatacommunities.org/id/unitary-authority/warrington ,FWB,Care Purchase Budget,54490,CP Free Nursing Care External,443500,07-Sep-15,1900181478,3162,WCL - Warrington Community Living,105230
WARRINGTON BOROUGH COUNCIL,http://opendatacommunities.org/id/unitary-authority/warrington ,FWB,Care Purchase Budget,54490,Voids,515150,07-Sep-15,1900181478,8114,WCL - Warrington Community Living,105230
WARRINGTON BOROUGH COUNCIL,http://opendatacommunities.org/id/unitary-authority/warrington ,FWB,Livewire Traded Services,32071,Mainstream Pupil Transport,300800,07-Sep-15,1900181479,1870,Livewire,110692
WARRINGTON BOROUGH COUNCIL,http://opendatacommunities.org/id/unitary-authority/warrington ,ENO,Highways LTP,82004,Consult.& Prof. Serv,440000,07-Sep-15,1900181481,3020,Dowhigh Ltd,105350
WARRINGTON BOROUGH COUNCIL,http://opendatacommunities.org/id/unitary-authority/warrington ,RSC,Legal Services,11200,Legal Costs Incurred,440200,07-Sep-15,1900181483,830,MAH Legal,113285
WARRINGTON BOROUGH COUNCIL,http://opendatacommunities.org/id/unitary-authority/warrington ,FWB,DAT Pooled Budget,53860,Drug Action,443600,07-Sep-15,1900181485,975,Hub Pharmacy Ltd,104278
WARRINGTON BOROUGH COUNCIL,http://opendatacommunities.org/id/unitary-authority/warrington ,RSC,Council Tax & Recovery,10320,Court Costs,460100,07-Sep-15,1900181486,1611,Hmcs North Cheshire Collections,102261
WARRINGTON BOROUGH COUNCIL,http://opendatacommunities.org/id/unitary-authority/warrington ,HOL,Insurance Fund,91100,Insurance Claims,443400,07-Sep-15,1900181488,1362,Zurich Insurance Company,105263
WARRINGTON BOROUGH COUNCIL,http://opendatacommunities.org/id/unitary-authority/warrington ,RSC,Building Safer Communities,16000,Security Systems,250000,07-Sep-15,1900181489,780,WBC One-Time Vendor,900001
WARRINGTON BOROUGH COUNCIL,http://opendatacommunities.org/id/unitary-authority/warrington ,FWB,Care Purchase Budget,54490,CP ExternalOther Exp,440800,07-Sep-15,1900181490,12631,Ashberry Healthcare,101061
WARRINGTON BOROUGH COUNCIL,http://opendatacommunities.org/id/unitary-authority/warrington ,FWB,Older Peoples North Team,54422,CP-Domicil.External,440950,07-Sep-15,1900181491,16212,Redline Business Ta Ashwood Care,113381
WARRINGTON BOROUGH COUNCIL,http://opendatacommunities.org/id/unitary-authority/warrington ,FWB,Older Peoples South Team,54421,CP-Domicil.External,440950,07-Sep-15,1900181491,11140,Redline Business Ta Ashwood Care,113381
WARRINGTON BOROUGH COUNCIL,http://opendatacommunities.org/id/unitary-authority/warrington ,FWB,Care Purchase AMH,54135,CP-Domicil.External,440950,07-Sep-15,1900181491,649,Redline Business Ta Ashwood Care,113381
WARRINGTON BOROUGH COUNCIL,http://opendatacommunities.org/id/unitary-authority/warrington ,FWB,Care Purchase - PD,54440,CP-Domicil.External,440950,07-Sep-15,1900181491,6397,Redline Business Ta Ashwood Care,113381
WARRINGTON BOROUGH COUNCIL,http://opendatacommunities.org/id/unitary-authority/warrington ,FWB,Care Purchase - PD,54440,Supporting People - External,441250,07-Sep-15,1900181491,1003,Redline Business Ta Ashwood Care,113381
WARRINGTON BOROUGH COUNCIL,http://opendatacommunities.org/id/unitary-authority/warrington ,FWB,Older Peoples South Team,54421,CP-LongStayExternal,441150,07-Sep-15,1900181497,1796,Barchester Healthcare Brookfield,104548
WARRINGTON BOROUGH COUNCIL,http://opendatacommunities.org/id/unitary-authority/warrington ,FWB,Older Peoples South Team,54421,CP-Nursing Care-External,441200,07-Sep-15,1900181500,2088,Barchester Healthcare Cheshire Gran,111378
WARRINGTON BOROUGH COUNCIL,http://opendatacommunities.org/id/unitary-authority/warrington ,FWB,Older Peoples South Team,54421,CP-LongStayExternal,441150,07-Sep-15,1900181503,2040,Barchester Healthcare Cheshire Gran,111378
WARRINGTON BOROUGH COUNCIL,http://opendatacommunities.org/id/unitary-authority/warrington ,FWB,Care Purchase Budget,54490,CP Free Nursing Care External,443500,07-Sep-15,1900181504,752,Barchester Healthcare Cheshire Gran,111378
WARRINGTON BOROUGH COUNCIL,http://opendatacommunities.org/id/unitary-authority/warrington ,FWB,Older Peoples South Team,54421,CP-LongStayExternal,441150,07-Sep-15,1900181505,1796,Barchester Healthcare Cheshire Gran,111378
WARRINGTON BOROUGH COUNCIL,http://opendatacommunities.org/id/unitary-authority/warrington ,FWB,Older Peoples South Team,54421,CP-LongStayExternal,441150,07-Sep-15,1900181508,1796,Barchester Healthcare Brookfield,104548
WARRINGTON BOROUGH COUNCIL,http://opendatacommunities.org/id/unitary-authority/warrington ,FWB,Older Peoples South Team,54421,CP-Nursing Care-External,441200,07-Sep-15,1900181509,2088,Barchester Healthcare Cheshire Gran,111378
WARRINGTON BOROUGH COUNCIL,http://opendatacommunities.org/id/unitary-authority/warrington ,ENO,Housing Projects,82008,Disabled Facilities Safe & Secure Grants,554300,07-Sep-15,1900181510,2650,The Excellent Ramp System,100407
WARRINGTON BOROUGH COUNCIL,http://opendatacommunities.org/id/unitary-authority/warrington ,EE0,Finance Office Services,42110,Photocopier,430000,07-Sep-15,1900181511,1860,CF Corporate Finance Ltd,113081
WARRINGTON BOROUGH COUNCIL,http://opendatacommunities.org/id/unitary-authority/warrington ,FWB,Care Purchase AMH,54135,CP-LongStayExternal,441150,08-Sep-15,1900181514,6359,Church Walk Health Care Ltd,112505
WARRINGTON BOROUGH COUNCIL,http://opendatacommunities.org/id/unitary-authority/warrington ,FWB,Care Purchase Budget,54490,CP - Cont Care - External,441350,08-Sep-15,1900181515,4048,Wigan Council,410018
WARRINGTON BOROUGH COUNCIL,http://opendatacommunities.org/id/unitary-authority/warrington ,FWB,Care Purchase - Learning Disability,54450,CP-Domicil.External,440950,08-Sep-15,1900181516,1620,WCL - Warrington Community Living,105230
WARRINGTON BOROUGH COUNCIL,http://opendatacommunities.org/id/unitary-authority/warrington ,FWB,Care Purchase - Learning Disability,54450,CP-Domicil.External,440950,08-Sep-15,1900181517,6997,WCL - Warrington Community Living,105230
WARRINGTON BOROUGH COUNCIL,http://opendatacommunities.org/id/unitary-authority/warrington ,FWB,Care Purchase - Learning Disability,54450,CP-LongStayExternal,441150,08-Sep-15,1900181518,8418,Voyage Care,100099
WARRINGTON BOROUGH COUNCIL,http://opendatacommunities.org/id/unitary-authority/warrington ,FWB,Care Purchase - PD,54440,CP-Nursing Care-External,441200,08-Sep-15,1900181519,5680,Voyage Care,100099
WARRINGTON BOROUGH COUNCIL,http://opendatacommunities.org/id/unitary-authority/warrington ,FWB,Care Purchase - PD,54440,CP-LongStayExternal,441150,08-Sep-15,1900181520,6652,Voyage Care,100099
WARRINGTON BOROUGH COUNCIL,http://opendatacommunities.org/id/unitary-authority/warrington ,FWB,Care Purchase - ABI,54260,CP-LongStayExternal,441150,08-Sep-15,1900181521,6467,Voyage Care,100099
WARRINGTON BOROUGH COUNCIL,http://opendatacommunities.org/id/unitary-authority/warrington ,FWB,Older Peoples South Team,54421,CP-LongStayExternal,441150,08-Sep-15,1900181522,5800,Voyage Care,100099
WARRINGTON BOROUGH COUNCIL,http://opendatacommunities.org/id/unitary-authority/warrington ,FWB,Care Purchase - Learning Disability,54450,CP-LongStayExternal,441150,08-Sep-15,1900181523,12031,Icare Service Limited,110435
WARRINGTON BOROUGH COUNCIL,http://opendatacommunities.org/id/unitary-authority/warrington ,FWB,Care Purchase - Learning Disability,54450,CP-Domicil.External,440950,08-Sep-15,1900181524,3240,Icare Service Limited,110435
WARRINGTON BOROUGH COUNCIL,http://opendatacommunities.org/id/unitary-authority/warrington ,FWB,Care Purchase - Learning Disability,54450,CP-Day Care-External,441100,08-Sep-15,1900181524,4125,Icare Service Limited,110435
WARRINGTON BOROUGH COUNCIL,http://opendatacommunities.org/id/unitary-authority/warrington ,FWB,Care Purchase - Learning Disability,54450,CP-LongStayExternal,441150,08-Sep-15,1900181525,9207,Icare Service Limited,110435
WARRINGTON BOROUGH COUNCIL,http://opendatacommunities.org/id/unitary-authority/warrington ,FWB,Care Purchase - Learning Disability,54450,CP-LongStayExternal,441150,08-Sep-15,1900181526,9091,Icare Service Limited,110435
WARRINGTON BOROUGH COUNCIL,http://opendatacommunities.org/id/unitary-authority/warrington ,FWB,Care Purchase - Learning Disability,54450,CP-Domicil.External,440950,08-Sep-15,1900181527,1227,Icare Service Limited,110435
WARRINGTON BOROUGH COUNCIL,http://opendatacommunities.org/id/unitary-authority/warrington ,FWB,Care Purchase - Learning Disability,54450,CP-Day Care-External,441100,08-Sep-15,1900181527,1027,Icare Service Limited,110435
WARRINGTON BOROUGH COUNCIL,http://opendatacommunities.org/id/unitary-authority/warrington ,FWB,Older Peoples North Team,54422,CP-Nursing Care-External,441200,08-Sep-15,1900181528,2628,The Turner Home,102163
WARRINGTON BOROUGH COUNCIL,http://opendatacommunities.org/id/unitary-authority/warrington ,FWB,Older Peoples North Team,54422,CP-Nursing Care-External,441200,08-Sep-15,1900181529,3024,The Turner Home,102163
WARRINGTON BOROUGH COUNCIL,http://opendatacommunities.org/id/unitary-authority/warrington ,FWB,Older Peoples North Team,54422,CP-LongStayExternal,441150,08-Sep-15,1900181530,2544,The Turner Home,102163
WARRINGTON BOROUGH COUNCIL,http://opendatacommunities.org/id/unitary-authority/warrington ,FWB,Care Purchase - PD,54440,CP-Nursing Care-External,441200,08-Sep-15,1900181531,3032,The Turner Home,102163
WARRINGTON BOROUGH COUNCIL,http://opendatacommunities.org/id/unitary-authority/warrington ,FWB,Older Peoples South Team,54421,CP-LongStayExternal,441150,08-Sep-15,1900181532,3400,The Turner Home,102163
WARRINGTON BOROUGH COUNCIL,http://opendatacommunities.org/id/unitary-authority/warrington ,FWB,Care Purchase - PD,54440,CP-Nursing Care-External,441200,08-Sep-15,1900181533,571,The Turner Home,102163
WARRINGTON BOROUGH COUNCIL,http://opendatacommunities.org/id/unitary-authority/warrington ,FWB,Older Peoples North Team,54422,CP-Nursing Care-External,441200,08-Sep-15,1900181534,2088,Tabley House Nursing Home,112807
WARRINGTON BOROUGH COUNCIL,http://opendatacommunities.org/id/unitary-authority/warrington ,FWB,Older Peoples South Team,54421,CP-Domicil.External,440950,08-Sep-15,1900181535,3654,St Monica Trust,104021
WARRINGTON BOROUGH COUNCIL,http://opendatacommunities.org/id/unitary-authority/warrington ,FWB,Older Peoples South Team,54421,CP-Nursing Care-External,441200,08-Sep-15,1900181536,2064,St Monica Trust,104021
WARRINGTON BOROUGH COUNCIL,http://opendatacommunities.org/id/unitary-authority/warrington ,FWB,Care Purchase Budget,54490,CP - Cont Care - External,441350,08-Sep-15,1900181537,662,Seashell Trust,103082
WARRINGTON BOROUGH COUNCIL,http://opendatacommunities.org/id/unitary-authority/warrington ,FWB,Care Purchase Budget,54490,CP - Cont Care - External,441350,08-Sep-15,1900181538,662,Seashell Trust,103082
WARRINGTON BOROUGH COUNCIL,http://opendatacommunities.org/id/unitary-authority/warrington ,FWB,Care Purchase Budget,54490,CP - Cont Care - External,441350,08-Sep-15,1900181539,994,Seashell Trust,103082
WARRINGTON BOROUGH COUNCIL,http://opendatacommunities.org/id/unitary-authority/warrington ,FWB,Care Purchase AMH,54135,CP-Domicil.External,440950,08-Sep-15,1900181541,550,Sanctuary Carr-Gomm,109157
WARRINGTON BOROUGH COUNCIL,http://opendatacommunities.org/id/unitary-authority/warrington ,FWB,Care Purchase - Learning Disability,54450,CP-Domicil.External,440950,08-Sep-15,1900181542,600,Sanctuary Carr-Gomm,109157
WARRINGTON BOROUGH COUNCIL,http://opendatacommunities.org/id/unitary-authority/warrington ,FWB,Care Purchase - Learning Disability,54450,CP-LongStayExternal,441150,08-Sep-15,1900181543,10471,Pendleton Care Limited,101213
WARRINGTON BOROUGH COUNCIL,http://opendatacommunities.org/id/unitary-authority/warrington ,FWB,Care Purchase - ABI,54260,CP-LongStayExternal,441150,08-Sep-15,1900181544,6428,Voyage Care,100099
WARRINGTON BOROUGH COUNCIL,http://opendatacommunities.org/id/unitary-authority/warrington ,FWB,Care Purchase AMH,54135,CP-Domicil.External,440950,08-Sep-15,1900181545,36633,Next Stage A Way Forward Ltd,101217
WARRINGTON BOROUGH COUNCIL,http://opendatacommunities.org/id/unitary-authority/warrington ,FWB,Care Purchase - Learning Disability,54450,CP-Domicil.External,440950,08-Sep-15,1900181545,4945,Next Stage A Way Forward Ltd,101217
WARRINGTON BOROUGH COUNCIL,http://opendatacommunities.org/id/unitary-authority/warrington ,FWB,Care Purchase Budget,54490,CP - Cont Care - External,441350,08-Sep-15,1900181545,1437,Next Stage A Way Forward Ltd,101217
WARRINGTON BOROUGH COUNCIL,http://opendatacommunities.org/id/unitary-authority/warrington ,FWB,Care Purchase AMH,54135,CP-Domicil.External,440950,08-Sep-15,1900181547,5230,SLC Raglin Ltd,111037
WARRINGTON BOROUGH COUNCIL,http://opendatacommunities.org/id/unitary-authority/warrington ,FWB,Care Purchase - Learning Disability,54450,CP-Day Care-External,441100,08-Sep-15,1900181548,1155,Icare Service Limited,110435
WARRINGTON BOROUGH COUNCIL,http://opendatacommunities.org/id/unitary-authority/warrington ,FWB,Care Purchase - Learning Disability,54450,CP-Domicil.External,440950,08-Sep-15,1900181549,888,Icare Service Limited,110435
WARRINGTON BOROUGH COUNCIL,http://opendatacommunities.org/id/unitary-authority/warrington ,FWB,Care Purchase - Learning Disability,54450,CP-LongStayExternal,441150,08-Sep-15,1900181550,5420,Icare Service Limited,110435
WARRINGTON BOROUGH COUNCIL,http://opendatacommunities.org/id/unitary-authority/warrington ,FWB,Care Purchase - Learning Disability,54450,CP-Day Care-External,441100,08-Sep-15,1900181551,1980,Icare Service Limited,110435
WARRINGTON BOROUGH COUNCIL,http://opendatacommunities.org/id/unitary-authority/warrington ,FWB,Care Purchase Budget,54490,CP - Cont Care - External,441350,08-Sep-15,1900181552,7632,Hope School,111653
WARRINGTON BOROUGH COUNCIL,http://opendatacommunities.org/id/unitary-authority/warrington ,FWB,Older Peoples North Team,54422,CP-LongStayExternal,441150,08-Sep-15,1900181553,2400,Peel Moat Harbour Healthcare,114680
WARRINGTON BOROUGH COUNCIL,http://opendatacommunities.org/id/unitary-authority/warrington ,FWB,Care Purchase AMH,54135,CP-Domicil.External,440950,08-Sep-15,1900181554,4000,East Cheshire Housing Consortium,110170
WARRINGTON BOROUGH COUNCIL,http://opendatacommunities.org/id/unitary-authority/warrington ,FWB,Older Peoples North Team,54422,CP-LongStayExternal,441150,08-Sep-15,1900181555,10029,Peel Moat Harbour Healthcare,114680
WARRINGTON BOROUGH COUNCIL,http://opendatacommunities.org/id/unitary-authority/warrington ,FWB,Care Purchase AMH,54135,CP-Domicil.External,440950,08-Sep-15,1900181556,2000,East Cheshire Housing Consortium,110170
WARRINGTON BOROUGH COUNCIL,http://opendatacommunities.org/id/unitary-authority/warrington ,FWB,Care Purchase AMH,54135,CP-Domicil.External,440950,08-Sep-15,1900181557,1200,East Cheshire Housing Consortium,110170
WARRINGTON BOROUGH COUNCIL,http://opendatacommunities.org/id/unitary-authority/warrington ,FWB,Care Purchase - Learning Disability,54450,CP-Domicil.External,440950,08-Sep-15,1900181558,2597,Creative Support Ltd,100902
WARRINGTON BOROUGH COUNCIL,http://opendatacommunities.org/id/unitary-authority/warrington ,FWB,Care Purchase - Learning Disability,54450,Supporting People - External,441250,08-Sep-15,1900181558,6287,Creative Support Ltd,100902
WARRINGTON BOROUGH COUNCIL,http://opendatacommunities.org/id/unitary-authority/warrington ,FWB,Care Purchase AMH,54135,CP-Domicil.External,440950,08-Sep-15,1900181559,784,Creative Support Ltd,100902
WARRINGTON BOROUGH COUNCIL,http://opendatacommunities.org/id/unitary-authority/warrington ,FWB,Care Purchase - PD,54440,CP-Domicil.External,440950,08-Sep-15,1900181560,2966,Creative Support Ltd,100902
WARRINGTON BOROUGH COUNCIL,http://opendatacommunities.org/id/unitary-authority/warrington ,FWB,Care Purchase - Learning Disability,54450,CP-Domicil.External,440950,08-Sep-15,1900181561,12415,Creative Support Ltd,100902
WARRINGTON BOROUGH COUNCIL,http://opendatacommunities.org/id/unitary-authority/warrington ,FWB,Care Purchase - ABI,54260,CP-Domicil.External,440950,08-Sep-15,1900181562,1670,Creative Support Ltd,100902
WARRINGTON BOROUGH COUNCIL,http://opendatacommunities.org/id/unitary-authority/warrington ,FWB,Care Purchase - PD,54440,Supporting People - External,441250,08-Sep-15,1900181563,5613,Creative Support Ltd,100902
WARRINGTON BOROUGH COUNCIL,http://opendatacommunities.org/id/unitary-authority/warrington ,FWB,Care Purchase Budget,54490,Voids,515150,08-Sep-15,1900181563,1419,Creative Support Ltd,100902
WARRINGTON BOROUGH COUNCIL,http://opendatacommunities.org/id/unitary-authority/warrington ,FWB,Care Purchase - PD,54440,CP-Domicil.External,440950,08-Sep-15,1900181564,18186,Creative Support Ltd,100902
WARRINGTON BOROUGH COUNCIL,http://opendatacommunities.org/id/unitary-authority/warrington ,FWB,Care Purchase Budget,54490,Voids,515150,08-Sep-15,1900181564,3031,Creative Support Ltd,100902
WARRINGTON BOROUGH COUNCIL,http://opendatacommunities.org/id/unitary-authority/warrington ,FWB,Care Purchase AMH,54135,CP-Domicil.External,440950,08-Sep-15,1900181565,1760,Creative Support Ltd,100902
WARRINGTON BOROUGH COUNCIL,http://opendatacommunities.org/id/unitary-authority/warrington ,FWB,Care Purchase - Learning Disability,54450,CP-Domicil.External,440950,08-Sep-15,1900181565,2658,Creative Support Ltd,100902
WARRINGTON BOROUGH COUNCIL,http://opendatacommunities.org/id/unitary-authority/warrington ,FWB,Care Purchase - Learning Disability,54450,Supporting People - External,441250,08-Sep-15,1900181565,6488,Creative Support Ltd,100902
WARRINGTON BOROUGH COUNCIL,http://opendatacommunities.org/id/unitary-authority/warrington ,FWB,Older Peoples South Team,54421,CP-LongStayExternal,441150,08-Sep-15,1900181566,6280,Cls Care Services Ltd,104615
WARRINGTON BOROUGH COUNCIL,http://opendatacommunities.org/id/unitary-authority/warrington ,FWB,Older Peoples North Team,54422,CP-LongStayExternal,441150,08-Sep-15,1900181566,3140,Cls Care Services Ltd,104615
WARRINGTON BOROUGH COUNCIL,http://opendatacommunities.org/id/unitary-authority/warrington ,FWB,Older Peoples South Team,54421,CP-Nursing Care-External,441200,08-Sep-15,1900181566,3292,Cls Care Services Ltd,104615
WARRINGTON BOROUGH COUNCIL,http://opendatacommunities.org/id/unitary-authority/warrington ,FWB,Care Purchase Budget,54490,CP Free Nursing Care External,443500,08-Sep-15,1900181566,1344,Cls Care Services Ltd,104615
WARRINGTON BOROUGH COUNCIL,http://opendatacommunities.org/id/unitary-authority/warrington ,FWB,Care Purchase - PD,54440,CP-Nursing Care-External,441200,08-Sep-15,1900181567,10315,Church Walk Health Care Ltd,112505
WARRINGTON BOROUGH COUNCIL,http://opendatacommunities.org/id/unitary-authority/warrington ,FWB,Older Peoples South Team,54421,CP-Domicil.External,440950,08-Sep-15,1900181568,822,Castlerock Recruitment Group,105279
WARRINGTON BOROUGH COUNCIL,http://opendatacommunities.org/id/unitary-authority/warrington ,FWB,Older Peoples South Team,54421,CP-Domicil.External,440950,08-Sep-15,1900181570,830,Castlerock Recruitment Group,105279
WARRINGTON BOROUGH COUNCIL,http://opendatacommunities.org/id/unitary-authority/warrington ,FWB,Older Peoples South Team,54421,CP-Domicil.External,440950,08-Sep-15,1900181571,826,Castlerock Recruitment Group,105279
WARRINGTON BOROUGH COUNCIL,http://opendatacommunities.org/id/unitary-authority/warrington ,FWB,Older Peoples North Team,54422,CP-Domicil.External,440950,08-Sep-15,1900181571,513,Castlerock Recruitment Group,105279
WARRINGTON BOROUGH COUNCIL,http://opendatacommunities.org/id/unitary-authority/warrington ,FWB,Older Peoples South Team,54421,CP-Domicil.External,440950,08-Sep-15,1900181572,830,Castlerock Recruitment Group,105279
WARRINGTON BOROUGH COUNCIL,http://opendatacommunities.org/id/unitary-authority/warrington ,FWB,Care Purchase - IC,54290,CP - Intermediate Care - External,441300,08-Sep-15,1900181576,38166,CareConcepts (Appleton) Ltd,105804
WARRINGTON BOROUGH COUNCIL,http://opendatacommunities.org/id/unitary-authority/warrington ,FWB,Older Peoples North Team,54422,CP-Domicil.External,440950,08-Sep-15,1900181578,14150,Carewatch North Cheshire,104573
WARRINGTON BOROUGH COUNCIL,http://opendatacommunities.org/id/unitary-authority/warrington ,FWB,Older Peoples South Team,54421,CP-Domicil.External,440950,08-Sep-15,1900181578,3128,Carewatch North Cheshire,104573
WARRINGTON BOROUGH COUNCIL,http://opendatacommunities.org/id/unitary-authority/warrington ,FWB,Care Purchase AMH,54135,CP-Domicil.External,440950,08-Sep-15,1900181578,709,Carewatch North Cheshire,104573
WARRINGTON BOROUGH COUNCIL,http://opendatacommunities.org/id/unitary-authority/warrington ,FWB,Care Purchase - Learning Disability,54450,CP-Domicil.External,440950,08-Sep-15,1900181578,5103,Carewatch North Cheshire,104573
WARRINGTON BOROUGH COUNCIL,http://opendatacommunities.org/id/unitary-authority/warrington ,FWB,Care Purchase - ABI,54260,CP-Domicil.External,440950,08-Sep-15,1900181578,564,Carewatch North Cheshire,104573
WARRINGTON BOROUGH COUNCIL,http://opendatacommunities.org/id/unitary-authority/warrington ,FWB,Care Purchase - PD,54440,CP-Domicil.External,440950,08-Sep-15,1900181578,4479,Carewatch North Cheshire,104573
WARRINGTON BOROUGH COUNCIL,http://opendatacommunities.org/id/unitary-authority/warrington ,FWB,Care Purchase - Learning Disability,54450,Supporting People - External,441250,08-Sep-15,1900181578,552,Carewatch North Cheshire,104573
WARRINGTON BOROUGH COUNCIL,http://opendatacommunities.org/id/unitary-authority/warrington ,FWB,Older Peoples South Team,54421,CP-LongStayExternal,441150,08-Sep-15,1900181579,1764,Burrswood House Nursing & Residenti,109619
WARRINGTON BOROUGH COUNCIL,http://opendatacommunities.org/id/unitary-authority/warrington ,FWB,Older Peoples South Team,54421,CP-Nursing Care-External,441200,08-Sep-15,1900181580,1527,Barton Brook Residential Nursing Ho,111874
WARRINGTON BOROUGH COUNCIL,http://opendatacommunities.org/id/unitary-authority/warrington ,CYP,Childrens Other,81004,Specific Work,200200,08-Sep-15,1900181582,22850,REDACTED PERSONAL DATA,114432
WARRINGTON BOROUGH COUNCIL,http://opendatacommunities.org/id/unitary-authority/warrington ,EE0,Other Commercial Prop.,43560,B.& B.Allowances,525050,08-Sep-15,1900181585,775,REDACTED PERSONAL DATA,110456
WARRINGTON BOROUGH COUNCIL,http://opendatacommunities.org/id/unitary-authority/warrington ,EE0,Building Control Services,43410,Consult.& Prof. Serv,440000,08-Sep-15,1900181586,1494,Apex Home and Energy Surveyors Ltd,114721
WARRINGTON BOROUGH COUNCIL,http://opendatacommunities.org/id/unitary-authority/warrington ,FWB,Foster Allowances,31106,Fostering Allowance,550050,08-Sep-15,1900181588,4130,REDACTED PERSONAL DATA,460011
WARRINGTON BOROUGH COUNCIL,http://opendatacommunities.org/id/unitary-authority/warrington ,ENO,Highways LTP,82004,Consult.& Prof. Serv,440000,08-Sep-15,1900181592,3020,Dowhigh Ltd,105350
WARRINGTON BOROUGH COUNCIL,http://opendatacommunities.org/id/unitary-authority/warrington ,CYP,Childrens & Young People,81000,Furniture & Fittings,400150,08-Sep-15,1900181598,1340,Foundation Furniture Ltd,105839
WARRINGTON BOROUGH COUNCIL,http://opendatacommunities.org/id/unitary-authority/warrington ,CYP,Childrens & Young People,81000,Furniture & Fittings,400150,08-Sep-15,1900181599,2595,Glendale Interiors,114745
WARRINGTON BOROUGH COUNCIL,http://opendatacommunities.org/id/unitary-authority/warrington ,CYP,Primary,81001,Furniture & Fittings,400150,08-Sep-15,1900181600,3790,Glendale Interiors,114745
WARRINGTON BOROUGH COUNCIL,http://opendatacommunities.org/id/unitary-authority/warrington ,CYP,Childrens & Young People,81000,Furniture & Fittings,400150,08-Sep-15,1900181601,855,Glendale Interiors,114745
WARRINGTON BOROUGH COUNCIL,http://opendatacommunities.org/id/unitary-authority/warrington ,COR,Debt Management Expenses,62080,Consult.& Prof. Serv,440000,08-Sep-15,1900181602,10000,Grant Thornton UK LLP,108316
WARRINGTON BOROUGH COUNCIL,http://opendatacommunities.org/id/unitary-authority/warrington ,FWB,Housing Strategy,43620,Misc (Contingency),551250,08-Sep-15,1900181603,725,HL Structural Engineers Ltd,114743
WARRINGTON BOROUGH COUNCIL,http://opendatacommunities.org/id/unitary-authority/warrington ,COR,Debt Management Expenses,62080,Brokers Commission,441500,08-Sep-15,1900181606,4200,London Stock Exchange PLC,114754
WARRINGTON BOROUGH COUNCIL,http://opendatacommunities.org/id/unitary-authority/warrington ,FWB,P.F.I.,43630,PFI,480000,08-Sep-15,1900181607,45125,Arena Housing,114162
WARRINGTON BOROUGH COUNCIL,http://opendatacommunities.org/id/unitary-authority/warrington ,FWB,Foster Allowances,31106,Fostering Allowance,550050,08-Sep-15,1900181608,506,REDACTED PERSONAL DATA,460944
WARRINGTON BOROUGH COUNCIL,http://opendatacommunities.org/id/unitary-authority/warrington ,CYP,Childrens Other,81004,Specific Work,200200,08-Sep-15,1900181610,10890,Manchester Fencing Ltd,114739
WARRINGTON BOROUGH COUNCIL,http://opendatacommunities.org/id/unitary-authority/warrington ,RSC,Transformation Challenge,15050,Computer Hardware - Purchase,450700,08-Sep-15,1900181613,1343,North West Fire Control,110917
WARRINGTON BOROUGH COUNCIL,http://opendatacommunities.org/id/unitary-authority/warrington ,FWB,Older Peoples South Team,54421,CP-Domicil.External,440950,08-Sep-15,1900181617,31224,Mayfield Home Care Agency,104928
WARRINGTON BOROUGH COUNCIL,http://opendatacommunities.org/id/unitary-authority/warrington ,FWB,Older Peoples North Team,54422,CP-Domicil.External,440950,08-Sep-15,1900181617,14149,Mayfield Home Care Agency,104928
WARRINGTON BOROUGH COUNCIL,http://opendatacommunities.org/id/unitary-authority/warrington ,FWB,Care Purchase AMH,54135,CP-Domicil.External,440950,08-Sep-15,1900181617,1134,Mayfield Home Care Agency,104928
WARRINGTON BOROUGH COUNCIL,http://opendatacommunities.org/id/unitary-authority/warrington ,FWB,Care Purchase - Learning Disability,54450,CP-Domicil.External,440950,08-Sep-15,1900181617,2321,Mayfield Home Care Agency,104928
WARRINGTON BOROUGH COUNCIL,http://opendatacommunities.org/id/unitary-authority/warrington ,FWB,Care Purchase - ABI,54260,CP-Domicil.External,440950,08-Sep-15,1900181617,1552,Mayfield Home Care Agency,104928
WARRINGTON BOROUGH COUNCIL,http://opendatacommunities.org/id/unitary-authority/warrington ,FWB,Care Purchase - PD,54440,CP-Domicil.External,440950,08-Sep-15,1900181617,6670,Mayfield Home Care Agency,104928
WARRINGTON BOROUGH COUNCIL,http://opendatacommunities.org/id/unitary-authority/warrington ,FWB,Care Purchase - PD,54440,Supporting People - External,441250,08-Sep-15,1900181617,728,Mayfield Home Care Agency,104928
WARRINGTON BOROUGH COUNCIL,http://opendatacommunities.org/id/unitary-authority/warrington ,FWB,Care Purchase Budget,54490,CP - Cont Care - External,441350,08-Sep-15,1900181617,2528,Mayfield Home Care Agency,104928
WARRINGTON BOROUGH COUNCIL,http://opendatacommunities.org/id/unitary-authority/warrington ,RSC,Legal Services,11200,Agency Supply - GF,180000,08-Sep-15,1900181618,5945,Michael Page International Recruitm,113599
WARRINGTON BOROUGH COUNCIL,http://opendatacommunities.org/id/unitary-authority/warrington ,RSC,ICT Networks,23400,ICT Comms - Line Rental,450200,08-Sep-15,1900181621,1653,Intrinsic Technology Limited,108170
WARRINGTON BOROUGH COUNCIL,http://opendatacommunities.org/id/unitary-authority/warrington ,RSC,ICT Networks,23400,ICT Comms - Line Usage,450300,08-Sep-15,1900181621,1418,Intrinsic Technology Limited,108170
WARRINGTON BOROUGH COUNCIL,http://opendatacommunities.org/id/unitary-authority/warrington ,CYP,Special,81003,Specific Work,200200,08-Sep-15,1900181622,7398,Playgarden Design & Resources Ltd,114738
WARRINGTON BOROUGH COUNCIL,http://opendatacommunities.org/id/unitary-authority/warrington ,EE0,Urban Traffic Management Control,44370,Signal Management,531600,08-Sep-15,1900181623,4244,O2,101259
WARRINGTON BOROUGH COUNCIL,http://opendatacommunities.org/id/unitary-authority/warrington ,FWB,Contracts - SM Health Protection,55930,Public Health Contract Payments,540000,09-Sep-15,1900181624,10107,Bridgewater Community Healthcare,108932
WARRINGTON BOROUGH COUNCIL,http://opendatacommunities.org/id/unitary-authority/warrington ,FWB,Contracts - SM Health Protection,55930,Public Health Contract Payments,540000,09-Sep-15,1900181625,10105,Bridgewater Community Healthcare,108932
WARRINGTON BOROUGH COUNCIL,http://opendatacommunities.org/id/unitary-authority/warrington ,FWB,Contracts - SM Health Protection,55930,Public Health Contract Payments,540000,09-Sep-15,1900181626,10105,Bridgewater Community Healthcare,108932
WARRINGTON BOROUGH COUNCIL,http://opendatacommunities.org/id/unitary-authority/warrington ,HOL,Single Billing Holding Account,91130,Water & Sewerage Chg,240000,09-Sep-15,1900181627,11476,United Utilities Water Limited,104982
WARRINGTON BOROUGH COUNCIL,http://opendatacommunities.org/id/unitary-authority/warrington ,CYP,Primary,81001,Specific Work,200200,09-Sep-15,1900181628,8100,JJ's Wrough Iron & Steel Fabricatio,114750
WARRINGTON BOROUGH COUNCIL,http://opendatacommunities.org/id/unitary-authority/warrington ,RSC,Individual Electoral Registration,11660,Postages,450000,09-Sep-15,1900181632,2466,Royal Mail,101445
WARRINGTON BOROUGH COUNCIL,http://opendatacommunities.org/id/unitary-authority/warrington ,COR,Debt Management Expenses,62080,Agency Supply - GF,180000,09-Sep-15,1900181633,1016,Sellick Partnership,107500
WARRINGTON BOROUGH COUNCIL,http://opendatacommunities.org/id/unitary-authority/warrington ,COR,Debt Management Expenses,62080,Agency Supply - GF,180000,09-Sep-15,1900181634,879,Sellick Partnership,107500
WARRINGTON BOROUGH COUNCIL,http://opendatacommunities.org/id/unitary-authority/warrington ,RSC,ICT Networks,23400,ICT Comms - Line Rental,450200,09-Sep-15,1900181636,2803,Vodafone Limited (Paging),101402
WARRINGTON BOROUGH COUNCIL,http://opendatacommunities.org/id/unitary-authority/warrington ,RSC,ICT Networks,23400,ICT Comms - Line Rental,450200,09-Sep-15,1900181637,547,Vodafone Limited (Paging),101402
WARRINGTON BOROUGH COUNCIL,http://opendatacommunities.org/id/unitary-authority/warrington ,RSC,Managed Print Service,23080,ICT Comms - Device Usage,450500,09-Sep-15,1900181639,16243,Xerox Global Services,105611
WARRINGTON BOROUGH COUNCIL,http://opendatacommunities.org/id/unitary-authority/warrington ,FWB,CYPS - Rents & Charges,32422,Water Meter Charges,240050,09-Sep-15,1900181642,861,United Utilities Water Limited,104982
WARRINGTON BOROUGH COUNCIL,http://opendatacommunities.org/id/unitary-authority/warrington ,FWB,CYPS - Rents & Charges,32422,Water Meter Charges,240050,09-Sep-15,1900181643,795,United Utilities Water Limited,104982
WARRINGTON BOROUGH COUNCIL,http://opendatacommunities.org/id/unitary-authority/warrington ,FWB,CYPS - Rents & Charges,32422,Water Meter Charges,240050,09-Sep-15,1900181644,987,United Utilities Water Limited,104982
WARRINGTON BOROUGH COUNCIL,http://opendatacommunities.org/id/unitary-authority/warrington ,FWB,Contracts - SM Commissioning Team 1,55910,Public Health Contract Payments,540000,09-Sep-15,1900181648,33970,Bridgewater Community Healthcare,108932
WARRINGTON BOROUGH COUNCIL,http://opendatacommunities.org/id/unitary-authority/warrington ,FWB,Foster Allowances,31106,Fostering Allowance,550050,09-Sep-15,1900181650,1096,REDACTED PERSONAL DATA,460438
WARRINGTON BOROUGH COUNCIL,http://opendatacommunities.org/id/unitary-authority/warrington ,FWB,Housing Strategy,43620,Misc (Contingency),551250,09-Sep-15,1900181651,695,Complete Home Energy Systems,111861
WARRINGTON BOROUGH COUNCIL,http://opendatacommunities.org/id/unitary-authority/warrington ,FWB,Housing Strategy,43620,Misc (Contingency),551250,09-Sep-15,1900181652,695,Complete Home Energy Systems,111861
WARRINGTON BOROUGH COUNCIL,http://opendatacommunities.org/id/unitary-authority/warrington ,FWB,Housing Strategy,43620,Misc (Contingency),551250,09-Sep-15,1900181653,695,Complete Home Energy Systems,111861
WARRINGTON BOROUGH COUNCIL,http://opendatacommunities.org/id/unitary-authority/warrington ,FWB,Neighbourhood Co-o South,51308,Payment of Grants,470050,09-Sep-15,1900181661,2000,St Wilfrids Parochial Church Counci,114737
WARRINGTON BOROUGH COUNCIL,http://opendatacommunities.org/id/unitary-authority/warrington ,FWB,CYPS - Rents & Charges,32422,Water Meter Charges,240050,09-Sep-15,1900181663,894,United Utilities Water Limited,104982
WARRINGTON BOROUGH COUNCIL,http://opendatacommunities.org/id/unitary-authority/warrington ,CYP,Childrens Other,81004,Specific Work,200200,09-Sep-15,1900181664,3604,Roy Wadsworth Carpets,106331
WARRINGTON BOROUGH COUNCIL,http://opendatacommunities.org/id/unitary-authority/warrington ,RSC,Print Services (Enveloping etc),23090,Postages,450000,09-Sep-15,1900181665,1983,Royal Mail,101445
WARRINGTON BOROUGH COUNCIL,http://opendatacommunities.org/id/unitary-authority/warrington ,RSC,Print Services (Enveloping etc),23090,Postages,450000,09-Sep-15,1900181666,1932,Royal Mail,101445
WARRINGTON BOROUGH COUNCIL,http://opendatacommunities.org/id/unitary-authority/warrington ,RSC,Schools & Libraries Internet Project,23030,ICT Comms - Line Rental,450200,09-Sep-15,1900181667,13668,Virgin Media Business,106824
WARRINGTON BOROUGH COUNCIL,http://opendatacommunities.org/id/unitary-authority/warrington ,RSC,Accountancy and Financial Planning,10100,Training,190150,09-Sep-15,1900181682,5018,QA Ltd,112535
WARRINGTON BOROUGH COUNCIL,http://opendatacommunities.org/id/unitary-authority/warrington ,EE0,Development Control,43430,Events Costs,490000,09-Sep-15,1900181683,1140,Lancashire County Council,410062
WARRINGTON BOROUGH COUNCIL,http://opendatacommunities.org/id/unitary-authority/warrington ,FWB,Contracts - SM Commissioning Team 2,55920,Public Health Contract Payments,540000,09-Sep-15,1900181697,3088,Bolton NHS Foundation Trust,113092
WARRINGTON BOROUGH COUNCIL,http://opendatacommunities.org/id/unitary-authority/warrington ,FWB,Contracts - SM Commissioning Team 2,55920,Public Health Contract Payments,540000,09-Sep-15,1900181698,1320,Boots the Chemist,114103
WARRINGTON BOROUGH COUNCIL,http://opendatacommunities.org/id/unitary-authority/warrington ,FWB,Contracts - SM Commissioning Team 2,55920,Public Health Contract Payments,540000,09-Sep-15,1900181698,671,Boots the Chemist,114103
WARRINGTON BOROUGH COUNCIL,http://opendatacommunities.org/id/unitary-authority/warrington ,FWB,Contracts - SM Commissioning Team 2,55920,Public Health Contract Payments,540000,09-Sep-15,1900181699,890,Boots (Gemini),114194
WARRINGTON BOROUGH COUNCIL,http://opendatacommunities.org/id/unitary-authority/warrington ,FWB,Contracts - SM Commissioning Team 2,55920,Public Health Contract Payments,540000,09-Sep-15,1900181711,814,Rlbun Nhs Trust,440108
WARRINGTON BOROUGH COUNCIL,http://opendatacommunities.org/id/unitary-authority/warrington ,FWB,Contracts - SM Commissioning Team 2,55920,Public Health Contract Payments,540000,09-Sep-15,1900181712,830,Sainsburys Supermarket Pharmacy,112320
WARRINGTON BOROUGH COUNCIL,http://opendatacommunities.org/id/unitary-authority/warrington ,FWB,Contracts - SM Commissioning Team 2,55920,Public Health Contract Payments,540000,09-Sep-15,1900181713,6657,St Helens & Knowsley Hosp Nhs Trust,102001
WARRINGTON BOROUGH COUNCIL,http://opendatacommunities.org/id/unitary-authority/warrington ,FWB,Contracts - SM Commissioning Team 2,55920,Public Health Contract Payments,540000,09-Sep-15,1900181714,3454,Terrence Higgins Trust,113887
WARRINGTON BOROUGH COUNCIL,http://opendatacommunities.org/id/unitary-authority/warrington ,FWB,Contracts - SM Commissioning Team 2,55920,Public Health Contract Payments,540000,09-Sep-15,1900181715,3454,Terrence Higgins Trust,113887
WARRINGTON BOROUGH COUNCIL,http://opendatacommunities.org/id/unitary-authority/warrington ,RSC,ICT & Business Improvement,23020,ICT Comms - Line Rental,450200,09-Sep-15,1900181718,1200,Virgin Media Business,106824
WARRINGTON BOROUGH COUNCIL,http://opendatacommunities.org/id/unitary-authority/warrington ,RSC,ICT & Business Improvement,23020,ICT Comms - Line Rental,450200,09-Sep-15,1900181719,10080,Virgin Media Business,106824
WARRINGTON BOROUGH COUNCIL,http://opendatacommunities.org/id/unitary-authority/warrington ,RSC,Schools & Libraries Internet Project,23030,ICT Comms - Line Rental,450200,09-Sep-15,1900181720,5040,Virgin Media Business,106824
WARRINGTON BOROUGH COUNCIL,http://opendatacommunities.org/id/unitary-authority/warrington ,COR,Debt Management Expenses,62080,Consult.& Prof. Serv,440000,10-Sep-15,1900181730,127387,Moody's Investors Services EMEA Ltd,114761
WARRINGTON BOROUGH COUNCIL,http://opendatacommunities.org/id/unitary-authority/warrington ,RSC,B'Wood Leis.Lnk Bhs,51006,Non BMP General Repairs,200050,10-Sep-15,1900181732,724,Hartwell Construction,114759
WARRINGTON BOROUGH COUNCIL,http://opendatacommunities.org/id/unitary-authority/warrington ,FWB,Legal Fees - Safeguarding,30100,Legal Costs Incurred,440200,10-Sep-15,1900181737,600,REDACTED PERSONAL DATA,110630
WARRINGTON BOROUGH COUNCIL,http://opendatacommunities.org/id/unitary-authority/warrington ,HOL,Single Billing Holding Account,91130,ICT Comms - Line Rental,450200,10-Sep-15,1900181738,15845,EE Airtime,104996
WARRINGTON BOROUGH COUNCIL,http://opendatacommunities.org/id/unitary-authority/warrington ,FWB,Care Purchase Budget,54490,CP ExternalOther Exp,440800,10-Sep-15,1900181741,8947,Ashberry Healthcare Ltd,104776
WARRINGTON BOROUGH COUNCIL,http://opendatacommunities.org/id/unitary-authority/warrington ,FWB,Care Purchase Budget,54490,CP Free Nursing Care External,443500,10-Sep-15,1900181742,608,Barchester Healthcare Cheshire Gran,111378
WARRINGTON BOROUGH COUNCIL,http://opendatacommunities.org/id/unitary-authority/warrington ,FWB,Older Peoples South Team,54421,CP-LongStayExternal,441150,10-Sep-15,1900181744,1615,Burrswood House Nursing & Residenti,109619
WARRINGTON BOROUGH COUNCIL,http://opendatacommunities.org/id/unitary-authority/warrington ,FWB,Care Purchase Budget,54490,CP Free Nursing Care External,443500,10-Sep-15,1900181745,4528,CareConcepts (Appleton) Ltd,105804
WARRINGTON BOROUGH COUNCIL,http://opendatacommunities.org/id/unitary-authority/warrington ,FWB,Older Peoples South Team,54421,CP-LongStayExternal,441150,10-Sep-15,1900181746,8379,CareConcepts (Appleton) Ltd,105804
WARRINGTON BOROUGH COUNCIL,http://opendatacommunities.org/id/unitary-authority/warrington ,FWB,Older Peoples South Team,54421,CP-Nursing Care-External,441200,10-Sep-15,1900181746,19558,CareConcepts (Appleton) Ltd,105804
WARRINGTON BOROUGH COUNCIL,http://opendatacommunities.org/id/unitary-authority/warrington ,FWB,Older Peoples North Team,54422,CP-Nursing Care-External,441200,10-Sep-15,1900181746,4576,CareConcepts (Appleton) Ltd,105804
WARRINGTON BOROUGH COUNCIL,http://opendatacommunities.org/id/unitary-authority/warrington ,FWB,Care Purchase Budget,54490,CP Free Nursing Care External,443500,10-Sep-15,1900181746,4640,CareConcepts (Appleton) Ltd,105804
WARRINGTON BOROUGH COUNCIL,http://opendatacommunities.org/id/unitary-authority/warrington ,FWB,Older Peoples North Team,54422,CP-Domicil.External,440950,10-Sep-15,1900181747,11054,Cherish UK Limited,113736
WARRINGTON BOROUGH COUNCIL,http://opendatacommunities.org/id/unitary-authority/warrington ,FWB,Older Peoples South Team,54421,CP-Domicil.External,440950,10-Sep-15,1900181747,2218,Cherish UK Limited,113736
WARRINGTON BOROUGH COUNCIL,http://opendatacommunities.org/id/unitary-authority/warrington ,FWB,Care Purchase - PD,54440,CP-Domicil.External,440950,10-Sep-15,1900181747,1947,Cherish UK Limited,113736
WARRINGTON BOROUGH COUNCIL,http://opendatacommunities.org/id/unitary-authority/warrington ,FWB,Care Purchase - Learning Disability,54450,CP-Domicil.External,440950,10-Sep-15,1900181749,1161,Creative Support Ltd,100902
WARRINGTON BOROUGH COUNCIL,http://opendatacommunities.org/id/unitary-authority/warrington ,FWB,Care Purchase - ABI,54260,CP-Domicil.External,440950,10-Sep-15,1900181749,824,Creative Support Ltd,100902
WARRINGTON BOROUGH COUNCIL,http://opendatacommunities.org/id/unitary-authority/warrington ,FWB,Care Purchase - Learning Disability,54450,Supporting People - External,441250,10-Sep-15,1900181749,6488,Creative Support Ltd,100902
WARRINGTON BOROUGH COUNCIL,http://opendatacommunities.org/id/unitary-authority/warrington ,FWB,Older Peoples North Team,54422,CP-Domicil.External,440950,10-Sep-15,1900181751,832,Nurse Plus and Carer Plus UK ltd,114155
WARRINGTON BOROUGH COUNCIL,http://opendatacommunities.org/id/unitary-authority/warrington ,FWB,Care Purchase AMH,54135,CP-Domicil.External,440950,10-Sep-15,1900181752,10257,Independent Living Alliance,100726
WARRINGTON BOROUGH COUNCIL,http://opendatacommunities.org/id/unitary-authority/warrington ,FWB,Care Purchase - PD,54440,CP-Domicil.External,440950,10-Sep-15,1900181752,4394,Independent Living Alliance,100726
WARRINGTON BOROUGH COUNCIL,http://opendatacommunities.org/id/unitary-authority/warrington ,FWB,Care Purchase AMH,54135,Supporting People - External,441250,10-Sep-15,1900181752,5453,Independent Living Alliance,100726
WARRINGTON BOROUGH COUNCIL,http://opendatacommunities.org/id/unitary-authority/warrington ,FWB,Care Purchase - Learning Disability,54450,CP-LongStayExternal,441150,10-Sep-15,1900181753,12613,Inclusive Lifestyles Ltd,101840
WARRINGTON BOROUGH COUNCIL,http://opendatacommunities.org/id/unitary-authority/warrington ,FWB,Care Purchase - Learning Disability,54450,CP-LongStayExternal,441150,10-Sep-15,1900181754,1482,Inclusive Lifestyles Ltd,101840
WARRINGTON BOROUGH COUNCIL,http://opendatacommunities.org/id/unitary-authority/warrington ,FWB,Care Purchase - Learning Disability,54450,CP-Domicil.External,440950,10-Sep-15,1900181755,4538,Independent Living Alliance,100726
WARRINGTON BOROUGH COUNCIL,http://opendatacommunities.org/id/unitary-authority/warrington ,FWB,Care Purchase AMH,54135,CP-Domicil.External,440950,10-Sep-15,1900181756,2357,Independent Living Alliance,100726
WARRINGTON BOROUGH COUNCIL,http://opendatacommunities.org/id/unitary-authority/warrington ,FWB,Care Purchase AMH,54135,CP-Domicil.External,440950,10-Sep-15,1900181757,3164,Independent Living Alliance,100726
WARRINGTON BOROUGH COUNCIL,http://opendatacommunities.org/id/unitary-authority/warrington ,FWB,Care Purchase - ABI,54260,CP-Domicil.External,440950,10-Sep-15,1900181757,2357,Independent Living Alliance,100726
WARRINGTON BOROUGH COUNCIL,http://opendatacommunities.org/id/unitary-authority/warrington ,FWB,Care Purchase AMH,54135,CP-Domicil.External,440950,10-Sep-15,1900181758,1843,Independent Living Alliance,100726
WARRINGTON BOROUGH COUNCIL,http://opendatacommunities.org/id/unitary-authority/warrington ,FWB,Care Purchase AMH,54135,CP-Domicil.External,440950,10-Sep-15,1900181759,9036,Independent Living Alliance,100726
WARRINGTON BOROUGH COUNCIL,http://opendatacommunities.org/id/unitary-authority/warrington ,FWB,Care Purchase AMH,54135,Supporting People - External,441250,10-Sep-15,1900181759,5329,Independent Living Alliance,100726
WARRINGTON BOROUGH COUNCIL,http://opendatacommunities.org/id/unitary-authority/warrington ,FWB,Care Purchase - Learning Disability,54450,CP-LongStayExternal,441150,10-Sep-15,1900181760,12744,Inclusive Lifestyles Ltd,101840
WARRINGTON BOROUGH COUNCIL,http://opendatacommunities.org/id/unitary-authority/warrington ,FWB,Older Peoples South Team,54421,CP-Domicil.External,440950,10-Sep-15,1900181761,16672,Nightingales Homecare Services Agen,104972
WARRINGTON BOROUGH COUNCIL,http://opendatacommunities.org/id/unitary-authority/warrington ,FWB,Older Peoples North Team,54422,CP-Domicil.External,440950,10-Sep-15,1900181761,16094,Nightingales Homecare Services Agen,104972
WARRINGTON BOROUGH COUNCIL,http://opendatacommunities.org/id/unitary-authority/warrington ,FWB,Care Purchase - Learning Disability,54450,CP-Domicil.External,440950,10-Sep-15,1900181761,4616,Nightingales Homecare Services Agen,104972
WARRINGTON BOROUGH COUNCIL,http://opendatacommunities.org/id/unitary-authority/warrington ,FWB,Care Purchase - PD,54440,CP-Domicil.External,440950,10-Sep-15,1900181761,7484,Nightingales Homecare Services Agen,104972
WARRINGTON BOROUGH COUNCIL,http://opendatacommunities.org/id/unitary-authority/warrington ,FWB,Care Purchase - Learning Disability,54450,CP-Domicil.External,440950,10-Sep-15,1900181762,650,P S S,105048
WARRINGTON BOROUGH COUNCIL,http://opendatacommunities.org/id/unitary-authority/warrington ,FWB,Care Purchase - Learning Disability,54450,CP-Nursing Care-External,441200,10-Sep-15,1900181763,3588,Stocks Hall Care Homes Ltd,102512
WARRINGTON BOROUGH COUNCIL,http://opendatacommunities.org/id/unitary-authority/warrington ,FWB,Older Peoples North Team,54422,CP-Nursing Care-External,441200,10-Sep-15,1900181765,35568,Barchester Homes Westvale House,105246
WARRINGTON BOROUGH COUNCIL,http://opendatacommunities.org/id/unitary-authority/warrington ,FWB,Older Peoples South Team,54421,CP-Nursing Care-External,441200,10-Sep-15,1900181765,1976,Barchester Homes Westvale House,105246
WARRINGTON BOROUGH COUNCIL,http://opendatacommunities.org/id/unitary-authority/warrington ,FWB,Care Purchase - PD,54440,CP-Nursing Care-External,441200,10-Sep-15,1900181765,1976,Barchester Homes Westvale House,105246
WARRINGTON BOROUGH COUNCIL,http://opendatacommunities.org/id/unitary-authority/warrington ,FWB,Care Purchase Budget,54490,CP Free Nursing Care External,443500,10-Sep-15,1900181766,15136,Barchester Homes Westvale House,105246
WARRINGTON BOROUGH COUNCIL,http://opendatacommunities.org/id/unitary-authority/warrington ,FWB,Older Peoples North Team,54422,CP-Nursing Care-External,441200,10-Sep-15,1900181767,832,Barchester Homes Westvale House,105246
WARRINGTON BOROUGH COUNCIL,http://opendatacommunities.org/id/unitary-authority/warrington ,EE0,Industrial Estates,43570,NNDR Vacant Properties,230050,10-Sep-15,1900181775,6806,Warrington Borough Council,440006
WARRINGTON BOROUGH COUNCIL,http://opendatacommunities.org/id/unitary-authority/warrington ,EE0,Industrial Estates,43570,NNDR Vacant Properties,230050,10-Sep-15,1900181776,1828,Warrington Borough Council,440006
WARRINGTON BOROUGH COUNCIL,http://opendatacommunities.org/id/unitary-authority/warrington ,RSC,ICT Networks,23400,ICT Comms - Line Rental,450200,10-Sep-15,1900181783,10080,Virgin Media Business,106824
WARRINGTON BOROUGH COUNCIL,http://opendatacommunities.org/id/unitary-authority/warrington ,CYP,Childrens Other,81004,Furniture & Fittings,400150,10-Sep-15,1900181789,5128,Prefect Equipment,114756
WARRINGTON BOROUGH COUNCIL,http://opendatacommunities.org/id/unitary-authority/warrington ,CYP,Childrens Other,81004,Furniture & Fittings,400150,10-Sep-15,1900181791,1708,Morleys of Bichester,100714
WARRINGTON BOROUGH COUNCIL,http://opendatacommunities.org/id/unitary-authority/warrington ,CYP,Childrens Other,81004,Furniture & Fittings,400150,10-Sep-15,1900181792,3961,Morleys of Bichester,100714
WARRINGTON BOROUGH COUNCIL,http://opendatacommunities.org/id/unitary-authority/warrington ,CYP,Childrens Other,81004,ICT Comms - Equipment Purchase,450100,10-Sep-15,1900181795,4302,Edac Solutions North West,100899
WARRINGTON BOROUGH COUNCIL,http://opendatacommunities.org/id/unitary-authority/warrington ,CYP,Childrens Other,81004,Furniture & Fittings,400150,10-Sep-15,1900181796,5971,DFE UK Limited,113648
WARRINGTON BOROUGH COUNCIL,http://opendatacommunities.org/id/unitary-authority/warrington ,CYP,Secondary,81002,ICT Comms - Equipment Purchase,450100,10-Sep-15,1900181797,957,Unitec Communications Ltd,105211
WARRINGTON BOROUGH COUNCIL,http://opendatacommunities.org/id/unitary-authority/warrington ,CYP,Childrens Other,81004,Furniture & Fittings,400150,10-Sep-15,1900181801,2835,Foundation Furniture Ltd,105839
WARRINGTON BOROUGH COUNCIL,http://opendatacommunities.org/id/unitary-authority/warrington ,CYP,Childrens Other,81004,Specific Work,200200,10-Sep-15,1900181802,2597,Fairway Decorating Services Ltd,113579
WARRINGTON BOROUGH COUNCIL,http://opendatacommunities.org/id/unitary-authority/warrington ,CYP,Childrens Other,81004,Specific Work,200200,10-Sep-15,1900181803,1820,Fairway Decorating Services Ltd,113579
WARRINGTON BOROUGH COUNCIL,http://opendatacommunities.org/id/unitary-authority/warrington ,CYP,Childrens Other,81004,Specific Work,200200,10-Sep-15,1900181804,2030,Fairway Decorating Services Ltd,113579
WARRINGTON BOROUGH COUNCIL,http://opendatacommunities.org/id/unitary-authority/warrington ,CYP,Childrens Other,81004,Specific Work,200200,10-Sep-15,1900181806,1400,Fairway Decorating Services Ltd,113579
WARRINGTON BOROUGH COUNCIL,http://opendatacommunities.org/id/unitary-authority/warrington ,CYP,Primary,81001,Specific Work,200200,10-Sep-15,1900181810,12010,Countrywide UPVC Ltd,114755
WARRINGTON BOROUGH COUNCIL,http://opendatacommunities.org/id/unitary-authority/warrington ,EE0,Building Control Services,43410,Consult.& Prof. Serv,440000,10-Sep-15,1900181817,1120,B E Building Service,114760
WARRINGTON BOROUGH COUNCIL,http://opendatacommunities.org/id/unitary-authority/warrington ,RSC,Customer Contact Centre,52201,Rent Of Premises,220000,11-Sep-15,1900181825,18000,Whitecrest Estate Agents,106130
WARRINGTON BOROUGH COUNCIL,http://opendatacommunities.org/id/unitary-authority/warrington ,EE0,Local Bus Contracts,44430,Payments To Operator,530150,11-Sep-15,1900181826,4479,Maro Developments,101040
WARRINGTON BOROUGH COUNCIL,http://opendatacommunities.org/id/unitary-authority/warrington ,CYP,Childrens & Young People,81000,Consult.& Prof. Serv,440000,11-Sep-15,1900181828,2012,J Lyons Removals,113390
WARRINGTON BOROUGH COUNCIL,http://opendatacommunities.org/id/unitary-authority/warrington ,FWB,Neighbourhood Co-o Central,51309,"Campaigns,  Projects and Events",491950,11-Sep-15,1900181830,1425,WBC One-Time Vendor,900001
WARRINGTON BOROUGH COUNCIL,http://opendatacommunities.org/id/unitary-authority/warrington ,HOL,Single Billing Holding Account,91130,Agency Supply - GF,180000,11-Sep-15,1900181831,54997,Hays Specialist Recruitment Ltd,107512
WARRINGTON BOROUGH COUNCIL,http://opendatacommunities.org/id/unitary-authority/warrington ,HOL,Single Billing Holding Account,91130,Agency Supply - GF,180000,11-Sep-15,1900181833,70135,Hays Specialist Recruitment Ltd,107512
WARRINGTON BOROUGH COUNCIL,http://opendatacommunities.org/id/unitary-authority/warrington ,HOL,Single Billing Holding Account,91130,Agency Supply - GF,180000,11-Sep-15,1900181834,59627,Hays Specialist Recruitment Ltd,107512
WARRINGTON BOROUGH COUNCIL,http://opendatacommunities.org/id/unitary-authority/warrington ,FWB,Care Purchase - Learning Disability,54450,Direct Payments,552000,11-Sep-15,1900181835,2371,REDACTED PERSONAL DATA,103771
WARRINGTON BOROUGH COUNCIL,http://opendatacommunities.org/id/unitary-authority/warrington ,FWB,Care Purchase - PD,54440,Direct Payments,552000,11-Sep-15,1900181839,775,REDACTED PERSONAL DATA,461168
WARRINGTON BOROUGH COUNCIL,http://opendatacommunities.org/id/unitary-authority/warrington ,FWB,Older Peoples South Team,54421,Direct Payments,552000,11-Sep-15,1900181840,685,REDACTED PERSONAL DATA,461200
WARRINGTON BOROUGH COUNCIL,http://opendatacommunities.org/id/unitary-authority/warrington ,FWB,Child Disability,32212,Transport SLA,300400,11-Sep-15,1900181843,690,REDACTED PERSONAL DATA,101977
WARRINGTON BOROUGH COUNCIL,http://opendatacommunities.org/id/unitary-authority/warrington ,RSC,HoS Partnerships & Performance,12000,Corporate Initiative,491000,11-Sep-15,1900181845,5317,Grant Thornton UK LLP,108316
WARRINGTON BOROUGH COUNCIL,http://opendatacommunities.org/id/unitary-authority/warrington ,FWB,Additional Support for BCF,56820,Gen. Personal Needs,490850,11-Sep-15,1900181850,92000,NHS Warrington CCG,113053
WARRINGTON BOROUGH COUNCIL,http://opendatacommunities.org/id/unitary-authority/warrington ,FWB,Child Disability,32212,Transport SLA,300400,11-Sep-15,1900181856,675,D H T S Minibuses,100415
WARRINGTON BOROUGH COUNCIL,http://opendatacommunities.org/id/unitary-authority/warrington ,FWB,Vocal Strategy Exp,32210,Consult.& Prof. Serv,440000,11-Sep-15,1900181860,6751,Liverpool Anglican Cathedral,103605
WARRINGTON BOROUGH COUNCIL,http://opendatacommunities.org/id/unitary-authority/warrington ,FWB,Halton Music Expenditure,32219,Beers Wines Spirits,410100,11-Sep-15,1900181869,1300,Normans,107993
WARRINGTON BOROUGH COUNCIL,http://opendatacommunities.org/id/unitary-authority/warrington ,FWB,Music Education Grant,32220,Beers Wines Spirits,410100,11-Sep-15,1900181870,728,Normans,107993
WARRINGTON BOROUGH COUNCIL,http://opendatacommunities.org/id/unitary-authority/warrington ,FWB,Child Disability,32212,CP-Domicil.External,440950,14-Sep-15,1900181875,2512,Npower Electricity,101884
WARRINGTON BOROUGH COUNCIL,http://opendatacommunities.org/id/unitary-authority/warrington ,FWB,Child Disability,32212,CP-Domicil.External,440950,14-Sep-15,1900181876,2512,M-Power Activity Services Ltd,102186
WARRINGTON BOROUGH COUNCIL,http://opendatacommunities.org/id/unitary-authority/warrington ,FWB,Care Purchase Budget,54490,CP ExternalOther Exp,440800,14-Sep-15,1900181877,1973,Cls Care Services Ltd,104615
WARRINGTON BOROUGH COUNCIL,http://opendatacommunities.org/id/unitary-authority/warrington ,FWB,Care Purchase - Learning Disability,54450,CP-LongStayExternal,441150,14-Sep-15,1900181879,6920,Clervaux Trust Ltd,110288
WARRINGTON BOROUGH COUNCIL,http://opendatacommunities.org/id/unitary-authority/warrington ,RSC,IT - Contracts,23600,Computer Software - Maintenance,450850,14-Sep-15,1900181880,1178,Denco,100596
WARRINGTON BOROUGH COUNCIL,http://opendatacommunities.org/id/unitary-authority/warrington ,FWB,Care Purchase AMH,54135,CP-Domicil.External,440950,14-Sep-15,1900181887,1867,Community Integrated Care (Cic),100171
WARRINGTON BOROUGH COUNCIL,http://opendatacommunities.org/id/unitary-authority/warrington ,FWB,Older Peoples South Team,54421,CP-Day Care-External,441100,14-Sep-15,1900181890,4836,CareConcepts (Appleton) Ltd,105804
WARRINGTON BOROUGH COUNCIL,http://opendatacommunities.org/id/unitary-authority/warrington ,FWB,Older Peoples North Team,54422,CP-Day Care-External,441100,14-Sep-15,1900181890,4577,CareConcepts (Appleton) Ltd,105804
WARRINGTON BOROUGH COUNCIL,http://opendatacommunities.org/id/unitary-authority/warrington ,FWB,Care Purchase Budget,54490,Voids,515150,14-Sep-15,1900181890,9729,CareConcepts (Appleton) Ltd,105804
WARRINGTON BOROUGH COUNCIL,http://opendatacommunities.org/id/unitary-authority/warrington ,FWB,Care Purchase AMH,54135,CP-Domicil.External,440950,14-Sep-15,1900181891,1669,Community Integrated Care (Cic),100171
WARRINGTON BOROUGH COUNCIL,http://opendatacommunities.org/id/unitary-authority/warrington ,FWB,Care Purchase AMH,54135,CP-Domicil.External,440950,14-Sep-15,1900181892,1817,Community Integrated Care (Cic),100171
WARRINGTON BOROUGH COUNCIL,http://opendatacommunities.org/id/unitary-authority/warrington ,RSC,Schools & Libraries Internet Project,23030,ICT Comms - Line Rental,450200,14-Sep-15,1900181894,1680,Virgin Media Business,106824
WARRINGTON BOROUGH COUNCIL,http://opendatacommunities.org/id/unitary-authority/warrington ,RSC,Schools & Libraries Internet Project,23030,ICT Comms - Line Rental,450200,14-Sep-15,1900181895,3240,Virgin Media Business,106824
WARRINGTON BOROUGH COUNCIL,http://opendatacommunities.org/id/unitary-authority/warrington ,FWB,Care Purchase AMH,54135,CP-Domicil.External,440950,14-Sep-15,1900181896,2307,Community Integrated Care (Cic),100171
WARRINGTON BOROUGH COUNCIL,http://opendatacommunities.org/id/unitary-authority/warrington ,FWB,Care Purchase AMH,54135,CP-Domicil.External,440950,14-Sep-15,1900181901,4026,Community Integrated Care (Cic),100171
WARRINGTON BOROUGH COUNCIL,http://opendatacommunities.org/id/unitary-authority/warrington ,FWB,Care Purchase AMH,54135,CP-Domicil.External,440950,14-Sep-15,1900181903,2307,Community Integrated Care (Cic),100171
WARRINGTON BOROUGH COUNCIL,http://opendatacommunities.org/id/unitary-authority/warrington ,FWB,Older Peoples South Team,54421,CP-Domicil.External,440950,14-Sep-15,1900181905,22614,Dh Homecare,101961
WARRINGTON BOROUGH COUNCIL,http://opendatacommunities.org/id/unitary-authority/warrington ,FWB,Older Peoples North Team,54422,CP-Domicil.External,440950,14-Sep-15,1900181905,1032,Dh Homecare,101961
WARRINGTON BOROUGH COUNCIL,http://opendatacommunities.org/id/unitary-authority/warrington ,FWB,Care Purchase - Learning Disability,54450,CP-Domicil.External,440950,14-Sep-15,1900181905,989,Dh Homecare,101961
WARRINGTON BOROUGH COUNCIL,http://opendatacommunities.org/id/unitary-authority/warrington ,FWB,Care Purchase - PD,54440,CP-Domicil.External,440950,14-Sep-15,1900181905,4950,Dh Homecare,101961
WARRINGTON BOROUGH COUNCIL,http://opendatacommunities.org/id/unitary-authority/warrington ,FWB,Care Purchase AMH,54135,CP-Domicil.External,440950,14-Sep-15,1900181911,1162,Focus on Care,108343
WARRINGTON BOROUGH COUNCIL,http://opendatacommunities.org/id/unitary-authority/warrington ,FWB,Care Purchase Budget,54490,CP ExternalOther Exp,440800,14-Sep-15,1900181919,2038,Heathfield Residental Home,100059
WARRINGTON BOROUGH COUNCIL,http://opendatacommunities.org/id/unitary-authority/warrington ,FWB,Care Purchase Budget,54490,CP ExternalOther Exp,440800,14-Sep-15,1900181920,7387,Heathside Elderly Persons Home,104777
WARRINGTON BOROUGH COUNCIL,http://opendatacommunities.org/id/unitary-authority/warrington ,FWB,Care Purchase AMH,54135,CP-LongStayExternal,441150,14-Sep-15,1900181923,1960,Hilton Residential Homes Ltd,104783
WARRINGTON BOROUGH COUNCIL,http://opendatacommunities.org/id/unitary-authority/warrington ,CYP,Childrens Other,81004,Specific Work,200200,14-Sep-15,1900181939,46830,Pentagon Sport,108264
WARRINGTON BOROUGH COUNCIL,http://opendatacommunities.org/id/unitary-authority/warrington ,FWB,Care Purchase Budget,54490,CP ExternalOther Exp,440800,14-Sep-15,1900181942,11959,Summerville Nursing Home -Private C,105162
WARRINGTON BOROUGH COUNCIL,http://opendatacommunities.org/id/unitary-authority/warrington ,FWB,Care Purchase Budget,54490,CP Free Nursing Care External,443500,14-Sep-15,1900181943,3536,Summerville Nursing Home -Private C,105162
WARRINGTON BOROUGH COUNCIL,http://opendatacommunities.org/id/unitary-authority/warrington ,FWB,Care Purchase Budget,54490,CP ExternalOther Exp,440800,14-Sep-15,1900181944,1821,Rosevilla Residential Home,105084
WARRINGTON BOROUGH COUNCIL,http://opendatacommunities.org/id/unitary-authority/warrington ,COR,Oxygen Finance,60260,Consult.& Prof. Serv,440000,14-Sep-15,1900181951,1543,Oxygen Finance Ltd,113784
WARRINGTON BOROUGH COUNCIL,http://opendatacommunities.org/id/unitary-authority/warrington ,COR,Oxygen Finance,60260,Consult.& Prof. Serv,440000,14-Sep-15,1900181952,1452,Oxygen Finance Ltd,113784
WARRINGTON BOROUGH COUNCIL,http://opendatacommunities.org/id/unitary-authority/warrington ,FWB,Orford Park Education Fund,32310,Materials,400500,14-Sep-15,1900181956,3215,Clean Homes Industrial and Contract,112524
WARRINGTON BOROUGH COUNCIL,http://opendatacommunities.org/id/unitary-authority/warrington ,HOL,Single Billing Holding Account,91130,Non BMP General Repairs,200050,14-Sep-15,1900181961,2151,Manchester Working Limited,105646
WARRINGTON BOROUGH COUNCIL,http://opendatacommunities.org/id/unitary-authority/warrington ,EE0,Building Maintenance,43220,Consult.& Prof. Serv,440000,14-Sep-15,1900181962,2765,Mouchel,103651
WARRINGTON BOROUGH COUNCIL,http://opendatacommunities.org/id/unitary-authority/warrington ,COR,Debt Management Expenses,62080,Agency Supply - GF,180000,14-Sep-15,1900181963,715,Sellick Partnership,107500
WARRINGTON BOROUGH COUNCIL,http://opendatacommunities.org/id/unitary-authority/warrington ,CYP,Primary,81001,Furniture & Fittings,400150,14-Sep-15,1900181964,3812,Spectrum Sign and Display Ltd,108390
WARRINGTON BOROUGH COUNCIL,http://opendatacommunities.org/id/unitary-authority/warrington ,FWB,Older Peoples South Team,54421,CP-LongStayExternal,441150,15-Sep-15,1900181967,1916,Stonedale Lodge Residential & Nursi,113173
WARRINGTON BOROUGH COUNCIL,http://opendatacommunities.org/id/unitary-authority/warrington ,FWB,Older Peoples South Team,54421,CP-LongStayExternal,441150,15-Sep-15,1900181968,1838,Stonedale Lodge Residential & Nursi,113173
WARRINGTON BOROUGH COUNCIL,http://opendatacommunities.org/id/unitary-authority/warrington ,FWB,Older Peoples North Team,54422,CP-Domicil.External,440950,15-Sep-15,1900181969,9650,Select Community Support Services,112799
WARRINGTON BOROUGH COUNCIL,http://opendatacommunities.org/id/unitary-authority/warrington ,FWB,Older Peoples South Team,54421,CP-Domicil.External,440950,15-Sep-15,1900181969,2944,Select Community Support Services,112799
WARRINGTON BOROUGH COUNCIL,http://opendatacommunities.org/id/unitary-authority/warrington ,FWB,Care Purchase - Learning Disability,54450,CP-Domicil.External,440950,15-Sep-15,1900181969,580,Select Community Support Services,112799
WARRINGTON BOROUGH COUNCIL,http://opendatacommunities.org/id/unitary-authority/warrington ,FWB,Care Purchase - PD,54440,CP-Domicil.External,440950,15-Sep-15,1900181969,4945,Select Community Support Services,112799
WARRINGTON BOROUGH COUNCIL,http://opendatacommunities.org/id/unitary-authority/warrington ,FWB,Care Purchase Budget,54490,CP - Cont Care - External,441350,15-Sep-15,1900181969,1015,Select Community Support Services,112799
WARRINGTON BOROUGH COUNCIL,http://opendatacommunities.org/id/unitary-authority/warrington ,FWB,Older Peoples South Team,54421,CP-LongStayExternal,441150,15-Sep-15,1900181970,1798,Stonedale Lodge Residential & Nursi,113173
WARRINGTON BOROUGH COUNCIL,http://opendatacommunities.org/id/unitary-authority/warrington ,FWB,Older Peoples South Team,54421,CP-LongStayExternal,441150,15-Sep-15,1900181971,1798,Stonedale Lodge Residential & Nursi,113173
WARRINGTON BOROUGH COUNCIL,http://opendatacommunities.org/id/unitary-authority/warrington ,FWB,Care Purchase - Learning Disability,54450,CP-Day Care-External,441100,15-Sep-15,1900181972,1453,Wigan Council,410018
WARRINGTON BOROUGH COUNCIL,http://opendatacommunities.org/id/unitary-authority/warrington ,FWB,Care Purchase - Learning Disability,54450,CP-Day Care-External,441100,15-Sep-15,1900181973,1453,Wigan Council,410018
WARRINGTON BOROUGH COUNCIL,http://opendatacommunities.org/id/unitary-authority/warrington ,FWB,Care Purchase Budget,54490,CP ExternalOther Exp,440800,15-Sep-15,1900181974,1890,Embrace Group,109675
WARRINGTON BOROUGH COUNCIL,http://opendatacommunities.org/id/unitary-authority/warrington ,FWB,Care Purchase - Learning Disability,54450,CP-Domicil.External,440950,15-Sep-15,1900181977,590,Autism Initiatives,104503
WARRINGTON BOROUGH COUNCIL,http://opendatacommunities.org/id/unitary-authority/warrington ,FWB,Care Purchase - Learning Disability,54450,CP-Domicil.External,440950,15-Sep-15,1900181980,1554,Future Directions Community Interes,111498
WARRINGTON BOROUGH COUNCIL,http://opendatacommunities.org/id/unitary-authority/warrington ,FWB,Care Purchase Budget,54490,CP ExternalOther Exp,440800,15-Sep-15,1900181992,20000,Minster Care Management Ltd,105179
WARRINGTON BOROUGH COUNCIL,http://opendatacommunities.org/id/unitary-authority/warrington ,FWB,Care Purchase Budget,54490,CP ExternalOther Exp,440800,15-Sep-15,1900181994,12000,Heathfield Residental Home,100059
WARRINGTON BOROUGH COUNCIL,http://opendatacommunities.org/id/unitary-authority/warrington ,FWB,Care Purchase Budget,54490,CP ExternalOther Exp,440800,15-Sep-15,1900181995,42000,Embrace Group,109675
WARRINGTON BOROUGH COUNCIL,http://opendatacommunities.org/id/unitary-authority/warrington ,FWB,Care Purchase Budget,54490,CP ExternalOther Exp,440800,15-Sep-15,1900181996,33000,Wcl - Heathside Mews,101742
WARRINGTON BOROUGH COUNCIL,http://opendatacommunities.org/id/unitary-authority/warrington ,HOL,Single Billing Holding Account,91130,Electricity,210000,15-Sep-15,1900182002,24861,Npower Electricity,101884
WARRINGTON BOROUGH COUNCIL,http://opendatacommunities.org/id/unitary-authority/warrington ,HOL,Single Billing Holding Account,91130,Electricity,210000,15-Sep-15,1900182002,9016,Npower Electricity,101884
WARRINGTON BOROUGH COUNCIL,http://opendatacommunities.org/id/unitary-authority/warrington ,FWB,Care Purchase - Learning Disability,54450,CP-Domicil.External,440950,15-Sep-15,1900182005,6371,Future Directions Community Interes,111498
WARRINGTON BOROUGH COUNCIL,http://opendatacommunities.org/id/unitary-authority/warrington ,FWB,Care Purchase - ABI,54260,CP-Domicil.External,440950,15-Sep-15,1900182005,1554,Future Directions Community Interes,111498
WARRINGTON BOROUGH COUNCIL,http://opendatacommunities.org/id/unitary-authority/warrington ,FWB,Care Purchase Budget,54490,CP ExternalOther Exp,440800,15-Sep-15,1900182007,20000,Old Rectory Private Nursing Home,104990
WARRINGTON BOROUGH COUNCIL,http://opendatacommunities.org/id/unitary-authority/warrington ,FWB,Care Purchase Budget,54490,CP ExternalOther Exp,440800,15-Sep-15,1900182008,40000,Summerville Nursing Home -Private C,105162
WARRINGTON BOROUGH COUNCIL,http://opendatacommunities.org/id/unitary-authority/warrington ,FWB,Care Purchase Budget,54490,CP ExternalOther Exp,440800,15-Sep-15,1900182009,26000,W H Investments Ltd,111422
WARRINGTON BOROUGH COUNCIL,http://opendatacommunities.org/id/unitary-authority/warrington ,FWB,Care Purchase Budget,54490,CP ExternalOther Exp,440800,15-Sep-15,1900182010,30000,Heathside Elderly Persons Home,104777
WARRINGTON BOROUGH COUNCIL,http://opendatacommunities.org/id/unitary-authority/warrington ,FWB,Care Purchase Budget,54490,CP ExternalOther Exp,440800,15-Sep-15,1900182011,16000,Rosevilla Residential Home,105084
WARRINGTON BOROUGH COUNCIL,http://opendatacommunities.org/id/unitary-authority/warrington ,FWB,Care Purchase Budget,54490,CP ExternalOther Exp,440800,15-Sep-15,1900182012,30000,Thelwall Grange Nursing Home,105174
WARRINGTON BOROUGH COUNCIL,http://opendatacommunities.org/id/unitary-authority/warrington ,FWB,Care Purchase Budget,54490,CP ExternalOther Exp,440800,15-Sep-15,1900182013,40000,St Marys Care Centre,101503
WARRINGTON BOROUGH COUNCIL,http://opendatacommunities.org/id/unitary-authority/warrington ,FWB,Care Purchase Budget,54490,CP ExternalOther Exp,440800,15-Sep-15,1900182014,25000,Four Seasons ta St Oswalds Care Hom,109422
WARRINGTON BOROUGH COUNCIL,http://opendatacommunities.org/id/unitary-authority/warrington ,FWB,Care Purchase Budget,54490,CP ExternalOther Exp,440800,15-Sep-15,1900182015,30000,Keate House Residential Home,104849
WARRINGTON BOROUGH COUNCIL,http://opendatacommunities.org/id/unitary-authority/warrington ,FWB,DSG Support for SEN,32013,Childrens Activities,492900,15-Sep-15,1900182016,7491,Bridgewater Community Healthcare,108932
WARRINGTON BOROUGH COUNCIL,http://opendatacommunities.org/id/unitary-authority/warrington ,FWB,Care Purchase Budget,54490,CP ExternalOther Exp,440800,15-Sep-15,1900182017,23000,Harbour Healthcare 1 Ltd,110527
WARRINGTON BOROUGH COUNCIL,http://opendatacommunities.org/id/unitary-authority/warrington ,FWB,Care Purchase Budget,54490,CP ExternalOther Exp,440800,15-Sep-15,1900182018,18000,GNR Care Limited,114127
WARRINGTON BOROUGH COUNCIL,http://opendatacommunities.org/id/unitary-authority/warrington ,FWB,DSG Support for SEN,32013,Childrens Activities,492900,15-Sep-15,1900182019,7491,Bridgewater Community Healthcare,108932
WARRINGTON BOROUGH COUNCIL,http://opendatacommunities.org/id/unitary-authority/warrington ,FWB,DSG Support for SEN,32013,Childrens Activities,492900,15-Sep-15,1900182020,7491,Bridgewater Community Healthcare,108932
WARRINGTON BOROUGH COUNCIL,http://opendatacommunities.org/id/unitary-authority/warrington ,FWB,DSG Support for SEN,32013,Childrens Activities,492900,15-Sep-15,1900182021,7491,Bridgewater Community Healthcare,108932
WARRINGTON BOROUGH COUNCIL,http://opendatacommunities.org/id/unitary-authority/warrington ,FWB,DSG Support for SEN,32013,Childrens Activities,492900,15-Sep-15,1900182022,7491,Bridgewater Community Healthcare,108932
WARRINGTON BOROUGH COUNCIL,http://opendatacommunities.org/id/unitary-authority/warrington ,FWB,DSG Support for SEN,32013,Childrens Activities,492900,15-Sep-15,1900182023,26000,Bridgewater Community Healthcare,108932
WARRINGTON BOROUGH COUNCIL,http://opendatacommunities.org/id/unitary-authority/warrington ,FWB,DSG Support for SEN,32013,Childrens Activities,492900,15-Sep-15,1900182024,7491,Bridgewater Community Healthcare,108932
WARRINGTON BOROUGH COUNCIL,http://opendatacommunities.org/id/unitary-authority/warrington ,FWB,Care Purchase Budget,54490,CP ExternalOther Exp,440800,15-Sep-15,1900182027,12133,St Marys Care Centre,101503
WARRINGTON BOROUGH COUNCIL,http://opendatacommunities.org/id/unitary-authority/warrington ,RSC,Information Governance,23060,ICT Comms - Device Purchase,450350,15-Sep-15,1900182028,1450,Centre For Assessment Ltd,103443
WARRINGTON BOROUGH COUNCIL,http://opendatacommunities.org/id/unitary-authority/warrington ,FWB,DSG Independent School Fees,32011,Independent School Fees,490200,15-Sep-15,1900182029,1814,Chaigeley Educational Foundation,400123
WARRINGTON BOROUGH COUNCIL,http://opendatacommunities.org/id/unitary-authority/warrington ,RSC,Accountancy and Financial Planning,10100,Training,190150,15-Sep-15,1900182030,2239,Warrington Collegiate,440101
WARRINGTON BOROUGH COUNCIL,http://opendatacommunities.org/id/unitary-authority/warrington ,FWB,DSG Independent School Fees,32011,Independent School Fees,490200,15-Sep-15,1900182032,1742,Chaigeley Educational Foundation,400123
WARRINGTON BOROUGH COUNCIL,http://opendatacommunities.org/id/unitary-authority/warrington ,CYP,Primary,81001,Specific Work,200200,15-Sep-15,1900182043,10000,Urban Landscapes Design Ltd,114766
WARRINGTON BOROUGH COUNCIL,http://opendatacommunities.org/id/unitary-authority/warrington ,CYP,Childrens Other,81004,Specific Work,200200,15-Sep-15,1900182043,1398,Urban Landscapes Design Ltd,114766
WARRINGTON BOROUGH COUNCIL,http://opendatacommunities.org/id/unitary-authority/warrington ,FWB,Care Purchase Budget,54490,CP ExternalOther Exp,440800,15-Sep-15,1900182044,29745,Harbour Healthcare 1 Ltd,110527
WARRINGTON BOROUGH COUNCIL,http://opendatacommunities.org/id/unitary-authority/warrington ,CYP,Secondary,81002,Furniture & Fittings,400150,15-Sep-15,1900182046,1416,Scorpio Signs,114770
WARRINGTON BOROUGH COUNCIL,http://opendatacommunities.org/id/unitary-authority/warrington ,CYP,Childrens Other,81004,ICT Comms - Equipment Purchase,450100,15-Sep-15,1900182047,5464,Edac Solutions North West,100899
WARRINGTON BOROUGH COUNCIL,http://opendatacommunities.org/id/unitary-authority/warrington ,FWB,Music Education Grant,32220,Consult.& Prof. Serv,440000,15-Sep-15,1900182048,1080,Score Creative Education,102343
WARRINGTON BOROUGH COUNCIL,http://opendatacommunities.org/id/unitary-authority/warrington ,FWB,SCM St Phillip's C&C Primary School,33165,Equipment Purchase & Contract,400000,16-Sep-15,1900182059,4789,Vision Commercial Kitchens,113087
WARRINGTON BOROUGH COUNCIL,http://opendatacommunities.org/id/unitary-authority/warrington ,FWB,Care Purchase - PD,54440,Direct Payments,552000,16-Sep-15,1900182062,5236,REDACTED PERSONAL DATA,100049
WARRINGTON BOROUGH COUNCIL,http://opendatacommunities.org/id/unitary-authority/warrington ,FWB,Care Purchase - Learning Disability,54450,Direct Payments,552000,16-Sep-15,1900182064,717,REDACTED PERSONAL DATA,100270
WARRINGTON BOROUGH COUNCIL,http://opendatacommunities.org/id/unitary-authority/warrington ,FWB,Care Purchase - PD,54440,Direct Payments,552000,16-Sep-15,1900182065,2504,REDACTED PERSONAL DATA,100338
WARRINGTON BOROUGH COUNCIL,http://opendatacommunities.org/id/unitary-authority/warrington ,FWB,Care Purchase - PD,54440,Direct Payments,552000,16-Sep-15,1900182066,830,REDACTED PERSONAL DATA,100340
WARRINGTON BOROUGH COUNCIL,http://opendatacommunities.org/id/unitary-authority/warrington ,FWB,Care Purchase - Learning Disability,54450,Direct Payments,552000,16-Sep-15,1900182068,720,REDACTED PERSONAL DATA,100452
WARRINGTON BOROUGH COUNCIL,http://opendatacommunities.org/id/unitary-authority/warrington ,FWB,Care Purchase - PD,54440,Direct Payments,552000,16-Sep-15,1900182069,1501,REDACTED PERSONAL DATA,100508
WARRINGTON BOROUGH COUNCIL,http://opendatacommunities.org/id/unitary-authority/warrington ,FWB,Care Purchase - Learning Disability,54450,Direct Payments,552000,16-Sep-15,1900182070,678,REDACTED PERSONAL DATA,100607
WARRINGTON BOROUGH COUNCIL,http://opendatacommunities.org/id/unitary-authority/warrington ,FWB,Care Purchase - PD,54440,Direct Payments,552000,16-Sep-15,1900182072,1907,REDACTED PERSONAL DATA,100666
WARRINGTON BOROUGH COUNCIL,http://opendatacommunities.org/id/unitary-authority/warrington ,FWB,Care Purchase - PD,54440,Direct Payments,552000,16-Sep-15,1900182073,1778,REDACTED PERSONAL DATA,100667
WARRINGTON BOROUGH COUNCIL,http://opendatacommunities.org/id/unitary-authority/warrington ,FWB,Care Purchase - PD,54440,Direct Payments,552000,16-Sep-15,1900182074,851,REDACTED PERSONAL DATA,100766
WARRINGTON BOROUGH COUNCIL,http://opendatacommunities.org/id/unitary-authority/warrington ,FWB,Care Purchase - PD,54440,Direct Payments,552000,16-Sep-15,1900182075,6513,REDACTED PERSONAL DATA,100879
WARRINGTON BOROUGH COUNCIL,http://opendatacommunities.org/id/unitary-authority/warrington ,FWB,Care Purchase - PD,54440,Direct Payments,552000,16-Sep-15,1900182076,1867,REDACTED PERSONAL DATA,100890
WARRINGTON BOROUGH COUNCIL,http://opendatacommunities.org/id/unitary-authority/warrington ,FWB,Older Peoples North Team,54422,Direct Payments,552000,16-Sep-15,1900182077,1351,REDACTED PERSONAL DATA,100907
WARRINGTON BOROUGH COUNCIL,http://opendatacommunities.org/id/unitary-authority/warrington ,FWB,Older Peoples South Team,54421,Direct Payments,552000,16-Sep-15,1900182079,1492,REDACTED PERSONAL DATA,100934
WARRINGTON BOROUGH COUNCIL,http://opendatacommunities.org/id/unitary-authority/warrington ,FWB,Care Purchase - Learning Disability,54450,Direct Payments,552000,16-Sep-15,1900182080,2817,REDACTED PERSONAL DATA,100945
WARRINGTON BOROUGH COUNCIL,http://opendatacommunities.org/id/unitary-authority/warrington ,FWB,Care Purchase - Learning Disability,54450,Direct Payments,552000,16-Sep-15,1900182081,3353,REDACTED PERSONAL DATA,100954
WARRINGTON BOROUGH COUNCIL,http://opendatacommunities.org/id/unitary-authority/warrington ,FWB,Care Purchase - Learning Disability,54450,Supporting People - External,441250,16-Sep-15,1900182082,1485,REDACTED PERSONAL DATA,100959
WARRINGTON BOROUGH COUNCIL,http://opendatacommunities.org/id/unitary-authority/warrington ,FWB,Care Purchase - Learning Disability,54450,Direct Payments,552000,16-Sep-15,1900182082,3835,REDACTED PERSONAL DATA,100959
WARRINGTON BOROUGH COUNCIL,http://opendatacommunities.org/id/unitary-authority/warrington ,FWB,Care Purchase - PD,54440,Direct Payments,552000,16-Sep-15,1900182083,934,REDACTED PERSONAL DATA,101007
WARRINGTON BOROUGH COUNCIL,http://opendatacommunities.org/id/unitary-authority/warrington ,FWB,Care Purchase - Learning Disability,54450,Direct Payments,552000,16-Sep-15,1900182084,5450,REDACTED PERSONAL DATA,101016
WARRINGTON BOROUGH COUNCIL,http://opendatacommunities.org/id/unitary-authority/warrington ,FWB,Care Purchase - PD,54440,Direct Payments,552000,16-Sep-15,1900182085,855,REDACTED PERSONAL DATA,101030
WARRINGTON BOROUGH COUNCIL,http://opendatacommunities.org/id/unitary-authority/warrington ,FWB,Care Purchase - Learning Disability,54450,Direct Payments,552000,16-Sep-15,1900182087,14300,REDACTED PERSONAL DATA,101104
WARRINGTON BOROUGH COUNCIL,http://opendatacommunities.org/id/unitary-authority/warrington ,FWB,Care Purchase - PD,54440,Direct Payments,552000,16-Sep-15,1900182088,1414,REDACTED PERSONAL DATA,101147
WARRINGTON BOROUGH COUNCIL,http://opendatacommunities.org/id/unitary-authority/warrington ,FWB,Older Peoples North Team,54422,Direct Payments,552000,16-Sep-15,1900182090,812,REDACTED PERSONAL DATA,101174
WARRINGTON BOROUGH COUNCIL,http://opendatacommunities.org/id/unitary-authority/warrington ,FWB,Care Purchase - Learning Disability,54450,Direct Payments,552000,16-Sep-15,1900182091,4173,REDACTED PERSONAL DATA,101246
WARRINGTON BOROUGH COUNCIL,http://opendatacommunities.org/id/unitary-authority/warrington ,FWB,Care Purchase - Learning Disability,54450,Direct Payments,552000,16-Sep-15,1900182092,965,REDACTED PERSONAL DATA,101261
WARRINGTON BOROUGH COUNCIL,http://opendatacommunities.org/id/unitary-authority/warrington ,FWB,Care Purchase - PD,54440,CP - Cont Care - External,441350,16-Sep-15,1900182093,1797,REDACTED PERSONAL DATA,101276
WARRINGTON BOROUGH COUNCIL,http://opendatacommunities.org/id/unitary-authority/warrington ,FWB,Care Purchase - PD,54440,Direct Payments,552000,16-Sep-15,1900182093,1797,REDACTED PERSONAL DATA,101276
WARRINGTON BOROUGH COUNCIL,http://opendatacommunities.org/id/unitary-authority/warrington ,FWB,Child Disability,32212,Direct Payments,552000,16-Sep-15,1900182094,666,REDACTED PERSONAL DATA,101322
WARRINGTON BOROUGH COUNCIL,http://opendatacommunities.org/id/unitary-authority/warrington ,FWB,Care Purchase - PD,54440,Direct Payments,552000,16-Sep-15,1900182095,594,REDACTED PERSONAL DATA,101323
WARRINGTON BOROUGH COUNCIL,http://opendatacommunities.org/id/unitary-authority/warrington ,FWB,Care Purchase - PD,54440,Direct Payments,552000,16-Sep-15,1900182096,1358,REDACTED PERSONAL DATA,101336
WARRINGTON BOROUGH COUNCIL,http://opendatacommunities.org/id/unitary-authority/warrington ,FWB,Care Purchase - Learning Disability,54450,Direct Payments,552000,16-Sep-15,1900182097,4063,REDACTED PERSONAL DATA,101341
WARRINGTON BOROUGH COUNCIL,http://opendatacommunities.org/id/unitary-authority/warrington ,FWB,Care Purchase - PD,54440,Direct Payments,552000,16-Sep-15,1900182098,3154,REDACTED PERSONAL DATA,101354
WARRINGTON BOROUGH COUNCIL,http://opendatacommunities.org/id/unitary-authority/warrington ,FWB,Care Purchase - Learning Disability,54450,Direct Payments,552000,16-Sep-15,1900182099,800,REDACTED PERSONAL DATA,101396
WARRINGTON BOROUGH COUNCIL,http://opendatacommunities.org/id/unitary-authority/warrington ,FWB,Care Purchase - Learning Disability,54450,Direct Payments,552000,16-Sep-15,1900182100,1370,REDACTED PERSONAL DATA,101420
WARRINGTON BOROUGH COUNCIL,http://opendatacommunities.org/id/unitary-authority/warrington ,FWB,Care Purchase - PD,54440,Supporting People - External,441250,16-Sep-15,1900182101,637,REDACTED PERSONAL DATA,101431
WARRINGTON BOROUGH COUNCIL,http://opendatacommunities.org/id/unitary-authority/warrington ,FWB,Care Purchase - PD,54440,Direct Payments,552000,16-Sep-15,1900182101,764,REDACTED PERSONAL DATA,101431
WARRINGTON BOROUGH COUNCIL,http://opendatacommunities.org/id/unitary-authority/warrington ,FWB,Care Purchase - PD,54440,Direct Payments,552000,16-Sep-15,1900182103,637,REDACTED PERSONAL DATA,101483
WARRINGTON BOROUGH COUNCIL,http://opendatacommunities.org/id/unitary-authority/warrington ,FWB,Care Purchase - PD,54440,Direct Payments,552000,16-Sep-15,1900182104,729,REDACTED PERSONAL DATA,101515
WARRINGTON BOROUGH COUNCIL,http://opendatacommunities.org/id/unitary-authority/warrington ,FWB,Care Purchase - Learning Disability,54450,Direct Payments,552000,16-Sep-15,1900182105,2401,REDACTED PERSONAL DATA,101516
WARRINGTON BOROUGH COUNCIL,http://opendatacommunities.org/id/unitary-authority/warrington ,FWB,Care Purchase - ABI,54260,Direct Payments,552000,16-Sep-15,1900182107,5701,REDACTED PERSONAL DATA,101542
WARRINGTON BOROUGH COUNCIL,http://opendatacommunities.org/id/unitary-authority/warrington ,FWB,Care Purchase - Learning Disability,54450,Direct Payments,552000,16-Sep-15,1900182108,1019,REDACTED PERSONAL DATA,101547
WARRINGTON BOROUGH COUNCIL,http://opendatacommunities.org/id/unitary-authority/warrington ,FWB,Care Purchase - PD,54440,Direct Payments,552000,16-Sep-15,1900182110,643,REDACTED PERSONAL DATA,101558
WARRINGTON BOROUGH COUNCIL,http://opendatacommunities.org/id/unitary-authority/warrington ,FWB,Care Purchase - Learning Disability,54450,Direct Payments,552000,16-Sep-15,1900182111,2462,REDACTED PERSONAL DATA,101568
WARRINGTON BOROUGH COUNCIL,http://opendatacommunities.org/id/unitary-authority/warrington ,FWB,Care Purchase - Learning Disability,54450,Direct Payments,552000,16-Sep-15,1900182112,1698,REDACTED PERSONAL DATA,101584
WARRINGTON BOROUGH COUNCIL,http://opendatacommunities.org/id/unitary-authority/warrington ,FWB,Older Peoples North Team,54422,Direct Payments,552000,16-Sep-15,1900182113,509,REDACTED PERSONAL DATA,101592
WARRINGTON BOROUGH COUNCIL,http://opendatacommunities.org/id/unitary-authority/warrington ,FWB,Care Purchase - Learning Disability,54450,Direct Payments,552000,16-Sep-15,1900182114,1925,REDACTED PERSONAL DATA,101595
WARRINGTON BOROUGH COUNCIL,http://opendatacommunities.org/id/unitary-authority/warrington ,FWB,Care Purchase - Learning Disability,54450,Direct Payments,552000,16-Sep-15,1900182115,1629,REDACTED PERSONAL DATA,101614
WARRINGTON BOROUGH COUNCIL,http://opendatacommunities.org/id/unitary-authority/warrington ,FWB,Care Purchase - Learning Disability,54450,Direct Payments,552000,16-Sep-15,1900182116,1019,REDACTED PERSONAL DATA,101625
WARRINGTON BOROUGH COUNCIL,http://opendatacommunities.org/id/unitary-authority/warrington ,FWB,Child Disability,32212,Direct Payments,552000,16-Sep-15,1900182117,600,REDACTED PERSONAL DATA,101630
WARRINGTON BOROUGH COUNCIL,http://opendatacommunities.org/id/unitary-authority/warrington ,FWB,Care Purchase - Learning Disability,54450,Direct Payments,552000,16-Sep-15,1900182118,917,REDACTED PERSONAL DATA,101661
WARRINGTON BOROUGH COUNCIL,http://opendatacommunities.org/id/unitary-authority/warrington ,FWB,Child Disability,32212,Direct Payments,552000,16-Sep-15,1900182119,640,REDACTED PERSONAL DATA,101669
WARRINGTON BOROUGH COUNCIL,http://opendatacommunities.org/id/unitary-authority/warrington ,FWB,Care Purchase - PD,54440,Direct Payments,552000,16-Sep-15,1900182120,560,REDACTED PERSONAL DATA,101677
WARRINGTON BOROUGH COUNCIL,http://opendatacommunities.org/id/unitary-authority/warrington ,FWB,Care Purchase - Learning Disability,54450,Direct Payments,552000,16-Sep-15,1900182121,2290,REDACTED PERSONAL DATA,101686
WARRINGTON BOROUGH COUNCIL,http://opendatacommunities.org/id/unitary-authority/warrington ,FWB,Care Purchase - Learning Disability,54450,Direct Payments,552000,16-Sep-15,1900182122,3533,REDACTED PERSONAL DATA,101701
WARRINGTON BOROUGH COUNCIL,http://opendatacommunities.org/id/unitary-authority/warrington ,FWB,Care Purchase - Learning Disability,54450,Direct Payments,552000,16-Sep-15,1900182123,3533,REDACTED PERSONAL DATA,101704
WARRINGTON BOROUGH COUNCIL,http://opendatacommunities.org/id/unitary-authority/warrington ,FWB,Care Purchase - Learning Disability,54450,Direct Payments,552000,16-Sep-15,1900182124,1828,REDACTED PERSONAL DATA,101730
WARRINGTON BOROUGH COUNCIL,http://opendatacommunities.org/id/unitary-authority/warrington ,FWB,Care Purchase - Learning Disability,54450,Direct Payments,552000,16-Sep-15,1900182125,687,REDACTED PERSONAL DATA,101748
WARRINGTON BOROUGH COUNCIL,http://opendatacommunities.org/id/unitary-authority/warrington ,FWB,Child Disability,32212,Direct Payments,552000,16-Sep-15,1900182126,1154,REDACTED PERSONAL DATA,101758
WARRINGTON BOROUGH COUNCIL,http://opendatacommunities.org/id/unitary-authority/warrington ,FWB,Care Purchase - Learning Disability,54450,Direct Payments,552000,16-Sep-15,1900182127,509,REDACTED PERSONAL DATA,101759
WARRINGTON BOROUGH COUNCIL,http://opendatacommunities.org/id/unitary-authority/warrington ,FWB,Care Purchase AMH,54135,Direct Payments,552000,16-Sep-15,1900182128,1949,REDACTED PERSONAL DATA,101808
WARRINGTON BOROUGH COUNCIL,http://opendatacommunities.org/id/unitary-authority/warrington ,FWB,Older Peoples South Team,54421,Direct Payments,552000,16-Sep-15,1900182129,912,REDACTED PERSONAL DATA,101825
WARRINGTON BOROUGH COUNCIL,http://opendatacommunities.org/id/unitary-authority/warrington ,FWB,Older Peoples South Team,54421,Direct Payments,552000,16-Sep-15,1900182135,610,REDACTED PERSONAL DATA,102183
WARRINGTON BOROUGH COUNCIL,http://opendatacommunities.org/id/unitary-authority/warrington ,FWB,Care Purchase - Learning Disability,54450,Direct Payments,552000,16-Sep-15,1900182136,542,REDACTED PERSONAL DATA,102225
WARRINGTON BOROUGH COUNCIL,http://opendatacommunities.org/id/unitary-authority/warrington ,FWB,Care Purchase - Learning Disability,54450,Direct Payments,552000,16-Sep-15,1900182137,1103,REDACTED PERSONAL DATA,102348
WARRINGTON BOROUGH COUNCIL,http://opendatacommunities.org/id/unitary-authority/warrington ,FWB,Care Purchase - Learning Disability,54450,Direct Payments,552000,16-Sep-15,1900182138,1011,REDACTED PERSONAL DATA,102547
WARRINGTON BOROUGH COUNCIL,http://opendatacommunities.org/id/unitary-authority/warrington ,FWB,Care Purchase - Learning Disability,54450,Direct Payments,552000,16-Sep-15,1900182143,721,REDACTED PERSONAL DATA,102667
WARRINGTON BOROUGH COUNCIL,http://opendatacommunities.org/id/unitary-authority/warrington ,FWB,Care Purchase - Learning Disability,54450,Direct Payments,552000,16-Sep-15,1900182144,1273,REDACTED PERSONAL DATA,102710
WARRINGTON BOROUGH COUNCIL,http://opendatacommunities.org/id/unitary-authority/warrington ,FWB,Care Purchase - Learning Disability,54450,Direct Payments,552000,16-Sep-15,1900182145,849,REDACTED PERSONAL DATA,102718
WARRINGTON BOROUGH COUNCIL,http://opendatacommunities.org/id/unitary-authority/warrington ,FWB,Care Purchase - PD,54440,Direct Payments,552000,16-Sep-15,1900182153,935,REDACTED PERSONAL DATA,103320
WARRINGTON BOROUGH COUNCIL,http://opendatacommunities.org/id/unitary-authority/warrington ,FWB,Care Purchase - PD,54440,CP - Cont Care - External,441350,16-Sep-15,1900182154,1584,Alexandra Davidson,103372
WARRINGTON BOROUGH COUNCIL,http://opendatacommunities.org/id/unitary-authority/warrington ,FWB,Care Purchase - PD,54440,Direct Payments,552000,16-Sep-15,1900182154,3822,Alexandra Davidson,103372
WARRINGTON BOROUGH COUNCIL,http://opendatacommunities.org/id/unitary-authority/warrington ,FWB,Care Purchase - PD,54440,CP - Cont Care - External,441350,16-Sep-15,1900182155,918,REDACTED PERSONAL DATA,103404
WARRINGTON BOROUGH COUNCIL,http://opendatacommunities.org/id/unitary-authority/warrington ,FWB,Care Purchase - PD,54440,Direct Payments,552000,16-Sep-15,1900182155,989,REDACTED PERSONAL DATA,103404
WARRINGTON BOROUGH COUNCIL,http://opendatacommunities.org/id/unitary-authority/warrington ,FWB,Care Purchase - Learning Disability,54450,Direct Payments,552000,16-Sep-15,1900182159,696,REDACTED PERSONAL DATA,103573
WARRINGTON BOROUGH COUNCIL,http://opendatacommunities.org/id/unitary-authority/warrington ,FWB,Care Purchase - PD,54440,Direct Payments,552000,16-Sep-15,1900182163,1594,REDACTED PERSONAL DATA,103613
WARRINGTON BOROUGH COUNCIL,http://opendatacommunities.org/id/unitary-authority/warrington ,FWB,Care Purchase - Learning Disability,54450,Direct Payments,552000,16-Sep-15,1900182164,1401,REDACTED PERSONAL DATA,103614
WARRINGTON BOROUGH COUNCIL,http://opendatacommunities.org/id/unitary-authority/warrington ,FWB,Care Purchase - Learning Disability,54450,Direct Payments,552000,16-Sep-15,1900182166,2515,REDACTED PERSONAL DATA,103660
WARRINGTON BOROUGH COUNCIL,http://opendatacommunities.org/id/unitary-authority/warrington ,FWB,Care Purchase - PD,54440,Direct Payments,552000,16-Sep-15,1900182167,887,REDACTED PERSONAL DATA,103674
WARRINGTON BOROUGH COUNCIL,http://opendatacommunities.org/id/unitary-authority/warrington ,FWB,Care Purchase - Learning Disability,54450,Direct Payments,552000,16-Sep-15,1900182168,3862,REDACTED PERSONAL DATA,103696
WARRINGTON BOROUGH COUNCIL,http://opendatacommunities.org/id/unitary-authority/warrington ,FWB,Care Purchase - Learning Disability,54450,Direct Payments,552000,16-Sep-15,1900182169,1378,REDACTED PERSONAL DATA,103697
WARRINGTON BOROUGH COUNCIL,http://opendatacommunities.org/id/unitary-authority/warrington ,FWB,Care Purchase - Learning Disability,54450,Supporting People - External,441250,16-Sep-15,1900182175,810,REDACTED PERSONAL DATA,103771
WARRINGTON BOROUGH COUNCIL,http://opendatacommunities.org/id/unitary-authority/warrington ,FWB,Care Purchase - Learning Disability,54450,Direct Payments,552000,16-Sep-15,1900182175,9814,REDACTED PERSONAL DATA,103771
WARRINGTON BOROUGH COUNCIL,http://opendatacommunities.org/id/unitary-authority/warrington ,FWB,Care Purchase - PD,54440,Supporting People - External,441250,16-Sep-15,1900182176,849,REDACTED PERSONAL DATA,103794
WARRINGTON BOROUGH COUNCIL,http://opendatacommunities.org/id/unitary-authority/warrington ,FWB,Child Disability,32212,Direct Payments,552000,16-Sep-15,1900182177,502,REDACTED PERSONAL DATA,103820
WARRINGTON BOROUGH COUNCIL,http://opendatacommunities.org/id/unitary-authority/warrington ,FWB,Care Purchase - PD,54440,Direct Payments,552000,16-Sep-15,1900182184,1179,REDACTED PERSONAL DATA,104205
WARRINGTON BOROUGH COUNCIL,http://opendatacommunities.org/id/unitary-authority/warrington ,FWB,Care Purchase - PD,54440,Direct Payments,552000,16-Sep-15,1900182186,797,REDACTED PERSONAL DATA,104327
WARRINGTON BOROUGH COUNCIL,http://opendatacommunities.org/id/unitary-authority/warrington ,FWB,Care Purchase - Learning Disability,54450,Direct Payments,552000,16-Sep-15,1900182188,1240,REDACTED PERSONAL DATA,105576
WARRINGTON BOROUGH COUNCIL,http://opendatacommunities.org/id/unitary-authority/warrington ,FWB,Care Purchase - Learning Disability,54450,Direct Payments,552000,16-Sep-15,1900182190,538,REDACTED PERSONAL DATA,105598
WARRINGTON BOROUGH COUNCIL,http://opendatacommunities.org/id/unitary-authority/warrington ,FWB,Care Purchase - Learning Disability,54450,Direct Payments,552000,16-Sep-15,1900182191,956,REDACTED PERSONAL DATA,105621
WARRINGTON BOROUGH COUNCIL,http://opendatacommunities.org/id/unitary-authority/warrington ,FWB,Care Purchase - Learning Disability,54450,CP - Cont Care - External,441350,16-Sep-15,1900182194,638,REDACTED PERSONAL DATA,105625
WARRINGTON BOROUGH COUNCIL,http://opendatacommunities.org/id/unitary-authority/warrington ,FWB,Care Purchase - Learning Disability,54450,Direct Payments,552000,16-Sep-15,1900182199,726,REDACTED PERSONAL DATA,105641
WARRINGTON BOROUGH COUNCIL,http://opendatacommunities.org/id/unitary-authority/warrington ,FWB,Older Peoples South Team,54421,Direct Payments,552000,16-Sep-15,1900182201,576,REDACTED PERSONAL DATA,105666
WARRINGTON BOROUGH COUNCIL,http://opendatacommunities.org/id/unitary-authority/warrington ,FWB,Care Purchase AMH,54135,Direct Payments,552000,16-Sep-15,1900182203,1570,REDACTED PERSONAL DATA,105687
WARRINGTON BOROUGH COUNCIL,http://opendatacommunities.org/id/unitary-authority/warrington ,FWB,Care Purchase - PD,54440,Direct Payments,552000,16-Sep-15,1900182206,849,REDACTED PERSONAL DATA,105758
WARRINGTON BOROUGH COUNCIL,http://opendatacommunities.org/id/unitary-authority/warrington ,FWB,Older Peoples South Team,54421,Direct Payments,552000,16-Sep-15,1900182207,636,REDACTED PERSONAL DATA,105861
WARRINGTON BOROUGH COUNCIL,http://opendatacommunities.org/id/unitary-authority/warrington ,FWB,Care Purchase - Learning Disability,54450,Direct Payments,552000,16-Sep-15,1900182210,637,REDACTED PERSONAL DATA,106066
WARRINGTON BOROUGH COUNCIL,http://opendatacommunities.org/id/unitary-authority/warrington ,FWB,Care Purchase - PD,54440,Direct Payments,552000,16-Sep-15,1900182212,538,REDACTED PERSONAL DATA,106145
WARRINGTON BOROUGH COUNCIL,http://opendatacommunities.org/id/unitary-authority/warrington ,FWB,Older Peoples North Team,54422,Direct Payments,552000,16-Sep-15,1900182214,706,REDACTED PERSONAL DATA,106441
WARRINGTON BOROUGH COUNCIL,http://opendatacommunities.org/id/unitary-authority/warrington ,FWB,Care Purchase - PD,54440,Direct Payments,552000,16-Sep-15,1900182216,855,REDACTED PERSONAL DATA,106630
WARRINGTON BOROUGH COUNCIL,http://opendatacommunities.org/id/unitary-authority/warrington ,FWB,Child Disability,32212,Direct Payments,552000,16-Sep-15,1900182218,687,REDACTED PERSONAL DATA,106708
WARRINGTON BOROUGH COUNCIL,http://opendatacommunities.org/id/unitary-authority/warrington ,FWB,Care Purchase - Learning Disability,54450,Direct Payments,552000,16-Sep-15,1900182221,668,REDACTED PERSONAL DATA,106866
WARRINGTON BOROUGH COUNCIL,http://opendatacommunities.org/id/unitary-authority/warrington ,FWB,Care Purchase - PD,54440,Direct Payments,552000,16-Sep-15,1900182227,606,Ahmed Quamrunnahar,107299
WARRINGTON BOROUGH COUNCIL,http://opendatacommunities.org/id/unitary-authority/warrington ,FWB,Older Peoples North Team,54422,Direct Payments,552000,16-Sep-15,1900182229,972,REDACTED PERSONAL DATA,107436
WARRINGTON BOROUGH COUNCIL,http://opendatacommunities.org/id/unitary-authority/warrington ,FWB,Care Purchase - Learning Disability,54450,Direct Payments,552000,16-Sep-15,1900182230,1414,REDACTED PERSONAL DATA,107437
WARRINGTON BOROUGH COUNCIL,http://opendatacommunities.org/id/unitary-authority/warrington ,FWB,Care Purchase - PD,54440,Direct Payments,552000,16-Sep-15,1900182233,1019,REDACTED PERSONAL DATA,107665
WARRINGTON BOROUGH COUNCIL,http://opendatacommunities.org/id/unitary-authority/warrington ,FWB,Older Peoples South Team,54421,Direct Payments,552000,16-Sep-15,1900182241,637,REDACTED PERSONAL DATA,107960
WARRINGTON BOROUGH COUNCIL,http://opendatacommunities.org/id/unitary-authority/warrington ,FWB,Care Purchase - PD,54440,Direct Payments,552000,16-Sep-15,1900182244,999,REDACTED PERSONAL DATA,112510
WARRINGTON BOROUGH COUNCIL,http://opendatacommunities.org/id/unitary-authority/warrington ,FWB,Older Peoples South Team,54421,Direct Payments,552000,16-Sep-15,1900182245,948,REDACTED PERSONAL DATA,114039
WARRINGTON BOROUGH COUNCIL,http://opendatacommunities.org/id/unitary-authority/warrington ,FWB,Older Peoples South Team,54421,Direct Payments,552000,16-Sep-15,1900182247,615,REDACTED PERSONAL DATA,114340
WARRINGTON BOROUGH COUNCIL,http://opendatacommunities.org/id/unitary-authority/warrington ,FWB,Care Purchase - PD,54440,Direct Payments,552000,16-Sep-15,1900182248,1249,REDACTED PERSONAL DATA,114446
WARRINGTON BOROUGH COUNCIL,http://opendatacommunities.org/id/unitary-authority/warrington ,FWB,Older Peoples North Team,54422,Direct Payments,552000,16-Sep-15,1900182249,1071,REDACTED PERSONAL DATA,114527
WARRINGTON BOROUGH COUNCIL,http://opendatacommunities.org/id/unitary-authority/warrington ,FWB,Care Purchase - PD,54440,Direct Payments,552000,16-Sep-15,1900182250,1122,REDACTED PERSONAL DATA,114697
WARRINGTON BOROUGH COUNCIL,http://opendatacommunities.org/id/unitary-authority/warrington ,FWB,Care Purchase - Learning Disability,54450,Direct Payments,552000,16-Sep-15,1900182252,697,REDACTED PERSONAL DATA,460054
WARRINGTON BOROUGH COUNCIL,http://opendatacommunities.org/id/unitary-authority/warrington ,FWB,Care Purchase - ABI,54260,Direct Payments,552000,16-Sep-15,1900182253,560,REDACTED PERSONAL DATA,460066
WARRINGTON BOROUGH COUNCIL,http://opendatacommunities.org/id/unitary-authority/warrington ,FWB,Care Purchase - Learning Disability,54450,CP - Cont Care - External,441350,16-Sep-15,1900182255,2889,REDACTED PERSONAL DATA,460091
WARRINGTON BOROUGH COUNCIL,http://opendatacommunities.org/id/unitary-authority/warrington ,FWB,Care Purchase - Learning Disability,54450,Direct Payments,552000,16-Sep-15,1900182255,2889,REDACTED PERSONAL DATA,460091
WARRINGTON BOROUGH COUNCIL,http://opendatacommunities.org/id/unitary-authority/warrington ,FWB,Care Purchase - PD,54440,Direct Payments,552000,16-Sep-15,1900182256,764,REDACTED PERSONAL DATA,460097
WARRINGTON BOROUGH COUNCIL,http://opendatacommunities.org/id/unitary-authority/warrington ,FWB,Child Disability,32212,Direct Payments,552000,16-Sep-15,1900182257,977,REDACTED PERSONAL DATA,460112
WARRINGTON BOROUGH COUNCIL,http://opendatacommunities.org/id/unitary-authority/warrington ,FWB,Care Purchase - Learning Disability,54450,Direct Payments,552000,16-Sep-15,1900182258,7185,REDACTED PERSONAL DATA,460113
WARRINGTON BOROUGH COUNCIL,http://opendatacommunities.org/id/unitary-authority/warrington ,FWB,Care Purchase - PD,54440,Direct Payments,552000,16-Sep-15,1900182259,1698,REDACTED PERSONAL DATA,460127
WARRINGTON BOROUGH COUNCIL,http://opendatacommunities.org/id/unitary-authority/warrington ,FWB,Child Disability,32212,Direct Payments,552000,16-Sep-15,1900182260,1510,REDACTED PERSONAL DATA,460139
WARRINGTON BOROUGH COUNCIL,http://opendatacommunities.org/id/unitary-authority/warrington ,FWB,Child Disability,32212,Direct Payments,552000,16-Sep-15,1900182263,666,REDACTED PERSONAL DATA,460160
WARRINGTON BOROUGH COUNCIL,http://opendatacommunities.org/id/unitary-authority/warrington ,FWB,Older Peoples North Team,54422,Direct Payments,552000,16-Sep-15,1900182265,820,REDACTED PERSONAL DATA,460165
WARRINGTON BOROUGH COUNCIL,http://opendatacommunities.org/id/unitary-authority/warrington ,FWB,Care Purchase - Learning Disability,54450,Direct Payments,552000,16-Sep-15,1900182268,2795,REDACTED PERSONAL DATA,460172
WARRINGTON BOROUGH COUNCIL,http://opendatacommunities.org/id/unitary-authority/warrington ,FWB,Care Purchase - Learning Disability,54450,Direct Payments,552000,16-Sep-15,1900182270,770,REDACTED PERSONAL DATA,460177
WARRINGTON BOROUGH COUNCIL,http://opendatacommunities.org/id/unitary-authority/warrington ,FWB,Care Purchase - Learning Disability,54450,Direct Payments,552000,16-Sep-15,1900182271,1976,REDACTED PERSONAL DATA,460182
WARRINGTON BOROUGH COUNCIL,http://opendatacommunities.org/id/unitary-authority/warrington ,FWB,Care Purchase - PD,54440,Direct Payments,552000,16-Sep-15,1900182274,539,REDACTED PERSONAL DATA,460192
WARRINGTON BOROUGH COUNCIL,http://opendatacommunities.org/id/unitary-authority/warrington ,FWB,Care Purchase - Learning Disability,54450,Direct Payments,552000,16-Sep-15,1900182275,1910,REDACTED PERSONAL DATA,460195
WARRINGTON BOROUGH COUNCIL,http://opendatacommunities.org/id/unitary-authority/warrington ,FWB,Care Purchase - Learning Disability,54450,Direct Payments,552000,16-Sep-15,1900182276,720,REDACTED PERSONAL DATA,460199
WARRINGTON BOROUGH COUNCIL,http://opendatacommunities.org/id/unitary-authority/warrington ,FWB,Care Purchase - Learning Disability,54450,Direct Payments,552000,16-Sep-15,1900182277,520,REDACTED PERSONAL DATA,460202
WARRINGTON BOROUGH COUNCIL,http://opendatacommunities.org/id/unitary-authority/warrington ,FWB,Care Purchase - Learning Disability,54450,Direct Payments,552000,16-Sep-15,1900182278,9978,REDACTED PERSONAL DATA,460210
WARRINGTON BOROUGH COUNCIL,http://opendatacommunities.org/id/unitary-authority/warrington ,FWB,Care Purchase - PD,54440,Direct Payments,552000,16-Sep-15,1900182280,915,REDACTED PERSONAL DATA,460214
WARRINGTON BOROUGH COUNCIL,http://opendatacommunities.org/id/unitary-authority/warrington ,FWB,Older Peoples South Team,54421,Direct Payments,552000,16-Sep-15,1900182282,1272,REDACTED PERSONAL DATA,460222
WARRINGTON BOROUGH COUNCIL,http://opendatacommunities.org/id/unitary-authority/warrington ,FWB,Child Disability,32212,Direct Payments,552000,16-Sep-15,1900182284,866,REDACTED PERSONAL DATA,460224
WARRINGTON BOROUGH COUNCIL,http://opendatacommunities.org/id/unitary-authority/warrington ,FWB,Care Purchase - PD,54440,Direct Payments,552000,16-Sep-15,1900182285,817,REDACTED PERSONAL DATA,460226
WARRINGTON BOROUGH COUNCIL,http://opendatacommunities.org/id/unitary-authority/warrington ,FWB,Care Purchase - Learning Disability,54450,Direct Payments,552000,16-Sep-15,1900182286,721,REDACTED PERSONAL DATA,460229
WARRINGTON BOROUGH COUNCIL,http://opendatacommunities.org/id/unitary-authority/warrington ,FWB,Older Peoples South Team,54421,Direct Payments,552000,16-Sep-15,1900182289,714,REDACTED PERSONAL DATA,460238
WARRINGTON BOROUGH COUNCIL,http://opendatacommunities.org/id/unitary-authority/warrington ,FWB,Care Purchase - PD,54440,Direct Payments,552000,16-Sep-15,1900182291,1554,REDACTED PERSONAL DATA,460243
WARRINGTON BOROUGH COUNCIL,http://opendatacommunities.org/id/unitary-authority/warrington ,FWB,Child Disability,32212,Direct Payments,552000,16-Sep-15,1900182292,680,REDACTED PERSONAL DATA,460248
WARRINGTON BOROUGH COUNCIL,http://opendatacommunities.org/id/unitary-authority/warrington ,FWB,Care Purchase - PD,54440,Direct Payments,552000,16-Sep-15,1900182297,2918,REDACTED PERSONAL DATA,460257
WARRINGTON BOROUGH COUNCIL,http://opendatacommunities.org/id/unitary-authority/warrington ,FWB,Care Purchase - Learning Disability,54450,Direct Payments,552000,16-Sep-15,1900182299,5131,REDACTED PERSONAL DATA,460263
WARRINGTON BOROUGH COUNCIL,http://opendatacommunities.org/id/unitary-authority/warrington ,FWB,Care Purchase - PD,54440,Direct Payments,552000,16-Sep-15,1900182300,509,REDACTED PERSONAL DATA,460264
WARRINGTON BOROUGH COUNCIL,http://opendatacommunities.org/id/unitary-authority/warrington ,FWB,Older Peoples South Team,54421,Direct Payments,552000,16-Sep-15,1900182301,661,REDACTED PERSONAL DATA,460265
WARRINGTON BOROUGH COUNCIL,http://opendatacommunities.org/id/unitary-authority/warrington ,FWB,Older Peoples South Team,54421,Direct Payments,552000,16-Sep-15,1900182302,829,REDACTED PERSONAL DATA,460266
WARRINGTON BOROUGH COUNCIL,http://opendatacommunities.org/id/unitary-authority/warrington ,FWB,Care Purchase - PD,54440,Direct Payments,552000,16-Sep-15,1900182304,2249,REDACTED PERSONAL DATA,460269
WARRINGTON BOROUGH COUNCIL,http://opendatacommunities.org/id/unitary-authority/warrington ,FWB,Care Purchase - PD,54440,Direct Payments,552000,16-Sep-15,1900182305,541,REDACTED PERSONAL DATA,460270
WARRINGTON BOROUGH COUNCIL,http://opendatacommunities.org/id/unitary-authority/warrington ,FWB,Care Purchase - PD,54440,Direct Payments,552000,16-Sep-15,1900182306,849,REDACTED PERSONAL DATA,460278
WARRINGTON BOROUGH COUNCIL,http://opendatacommunities.org/id/unitary-authority/warrington ,FWB,Care Purchase - Learning Disability,54450,Direct Payments,552000,16-Sep-15,1900182307,520,REDACTED PERSONAL DATA,460279
WARRINGTON BOROUGH COUNCIL,http://opendatacommunities.org/id/unitary-authority/warrington ,FWB,Care Purchase - Learning Disability,54450,Direct Payments,552000,16-Sep-15,1900182308,921,REDACTED PERSONAL DATA,460281
WARRINGTON BOROUGH COUNCIL,http://opendatacommunities.org/id/unitary-authority/warrington ,FWB,Older Peoples South Team,54421,Direct Payments,552000,16-Sep-15,1900182310,1304,REDACTED PERSONAL DATA,460283
WARRINGTON BOROUGH COUNCIL,http://opendatacommunities.org/id/unitary-authority/warrington ,FWB,Care Purchase - Learning Disability,54450,Direct Payments,552000,16-Sep-15,1900182312,1232,REDACTED PERSONAL DATA,460286
WARRINGTON BOROUGH COUNCIL,http://opendatacommunities.org/id/unitary-authority/warrington ,FWB,Care Purchase - Learning Disability,54450,Direct Payments,552000,16-Sep-15,1900182313,1889,REDACTED PERSONAL DATA,460290
WARRINGTON BOROUGH COUNCIL,http://opendatacommunities.org/id/unitary-authority/warrington ,FWB,Care Purchase - ABI,54260,Direct Payments,552000,16-Sep-15,1900182316,1273,REDACTED PERSONAL DATA,460295
WARRINGTON BOROUGH COUNCIL,http://opendatacommunities.org/id/unitary-authority/warrington ,FWB,Care Purchase - Learning Disability,54450,Direct Payments,552000,16-Sep-15,1900182320,1657,REDACTED PERSONAL DATA,460316
WARRINGTON BOROUGH COUNCIL,http://opendatacommunities.org/id/unitary-authority/warrington ,FWB,Care Purchase - PD,54440,Direct Payments,552000,16-Sep-15,1900182323,594,REDACTED PERSONAL DATA,460326
WARRINGTON BOROUGH COUNCIL,http://opendatacommunities.org/id/unitary-authority/warrington ,FWB,Care Purchase - PD,54440,Direct Payments,552000,16-Sep-15,1900182325,3040,REDACTED PERSONAL DATA,460329
WARRINGTON BOROUGH COUNCIL,http://opendatacommunities.org/id/unitary-authority/warrington ,FWB,Care Purchase - Learning Disability,54450,Direct Payments,552000,16-Sep-15,1900182326,935,REDACTED PERSONAL DATA,460330
WARRINGTON BOROUGH COUNCIL,http://opendatacommunities.org/id/unitary-authority/warrington ,FWB,Care Purchase - Learning Disability,54450,Direct Payments,552000,16-Sep-15,1900182329,1715,REDACTED PERSONAL DATA,460425
WARRINGTON BOROUGH COUNCIL,http://opendatacommunities.org/id/unitary-authority/warrington ,FWB,Care Purchase - PD,54440,Direct Payments,552000,16-Sep-15,1900182330,594,REDACTED PERSONAL DATA,460426
WARRINGTON BOROUGH COUNCIL,http://opendatacommunities.org/id/unitary-authority/warrington ,FWB,Care Purchase - PD,54440,Direct Payments,552000,16-Sep-15,1900182332,1443,REDACTED PERSONAL DATA,460430
WARRINGTON BOROUGH COUNCIL,http://opendatacommunities.org/id/unitary-authority/warrington ,FWB,Older Peoples North Team,54422,Direct Payments,552000,16-Sep-15,1900182336,774,REDACTED PERSONAL DATA,460454
WARRINGTON BOROUGH COUNCIL,http://opendatacommunities.org/id/unitary-authority/warrington ,FWB,Care Purchase - PD,54440,Direct Payments,552000,16-Sep-15,1900182338,798,REDACTED PERSONAL DATA,460457
WARRINGTON BOROUGH COUNCIL,http://opendatacommunities.org/id/unitary-authority/warrington ,FWB,Care Purchase - PD,54440,Direct Payments,552000,16-Sep-15,1900182339,1040,REDACTED PERSONAL DATA,460465
WARRINGTON BOROUGH COUNCIL,http://opendatacommunities.org/id/unitary-authority/warrington ,FWB,Care Purchase - PD,54440,Direct Payments,552000,16-Sep-15,1900182340,668,REDACTED PERSONAL DATA,460468
WARRINGTON BOROUGH COUNCIL,http://opendatacommunities.org/id/unitary-authority/warrington ,FWB,Child Disability,32212,Direct Payments,552000,16-Sep-15,1900182341,643,REDACTED PERSONAL DATA,460471
WARRINGTON BOROUGH COUNCIL,http://opendatacommunities.org/id/unitary-authority/warrington ,FWB,Care Purchase - PD,54440,Direct Payments,552000,16-Sep-15,1900182344,637,REDACTED PERSONAL DATA,460482
WARRINGTON BOROUGH COUNCIL,http://opendatacommunities.org/id/unitary-authority/warrington ,FWB,Care Purchase - PD,54440,Direct Payments,552000,16-Sep-15,1900182347,685,REDACTED PERSONAL DATA,460509
WARRINGTON BOROUGH COUNCIL,http://opendatacommunities.org/id/unitary-authority/warrington ,FWB,Care Purchase - Learning Disability,54450,Direct Payments,552000,16-Sep-15,1900182350,1616,REDACTED PERSONAL DATA,460514
WARRINGTON BOROUGH COUNCIL,http://opendatacommunities.org/id/unitary-authority/warrington ,FWB,Care Purchase - PD,54440,Direct Payments,552000,16-Sep-15,1900182351,1141,REDACTED PERSONAL DATA,460518
WARRINGTON BOROUGH COUNCIL,http://opendatacommunities.org/id/unitary-authority/warrington ,FWB,Care Purchase - Learning Disability,54450,Direct Payments,552000,16-Sep-15,1900182352,1188,REDACTED PERSONAL DATA,460519
WARRINGTON BOROUGH COUNCIL,http://opendatacommunities.org/id/unitary-authority/warrington ,FWB,Care Purchase AMH,54135,Direct Payments,552000,16-Sep-15,1900182353,978,REDACTED PERSONAL DATA,460520
WARRINGTON BOROUGH COUNCIL,http://opendatacommunities.org/id/unitary-authority/warrington ,FWB,Care Purchase - PD,54440,Direct Payments,552000,16-Sep-15,1900182357,678,REDACTED PERSONAL DATA,460545
WARRINGTON BOROUGH COUNCIL,http://opendatacommunities.org/id/unitary-authority/warrington ,FWB,Care Purchase - Learning Disability,54450,Direct Payments,552000,16-Sep-15,1900182359,2692,REDACTED PERSONAL DATA,460566
WARRINGTON BOROUGH COUNCIL,http://opendatacommunities.org/id/unitary-authority/warrington ,FWB,Care Purchase - PD,54440,Direct Payments,552000,16-Sep-15,1900182360,615,REDACTED PERSONAL DATA,460568
WARRINGTON BOROUGH COUNCIL,http://opendatacommunities.org/id/unitary-authority/warrington ,FWB,Care Purchase - PD,54440,Direct Payments,552000,16-Sep-15,1900182362,1591,REDACTED PERSONAL DATA,460576
WARRINGTON BOROUGH COUNCIL,http://opendatacommunities.org/id/unitary-authority/warrington ,FWB,Care Purchase - PD,54440,Direct Payments,552000,16-Sep-15,1900182365,997,REDACTED PERSONAL DATA,460581
WARRINGTON BOROUGH COUNCIL,http://opendatacommunities.org/id/unitary-authority/warrington ,FWB,Care Purchase - PD,54440,Direct Payments,552000,16-Sep-15,1900182371,1178,REDACTED PERSONAL DATA,460622
WARRINGTON BOROUGH COUNCIL,http://opendatacommunities.org/id/unitary-authority/warrington ,FWB,Care Purchase - PD,54440,Direct Payments,552000,16-Sep-15,1900182372,552,REDACTED PERSONAL DATA,460623
WARRINGTON BOROUGH COUNCIL,http://opendatacommunities.org/id/unitary-authority/warrington ,FWB,Care Purchase - Learning Disability,54450,Direct Payments,552000,16-Sep-15,1900182373,3677,REDACTED PERSONAL DATA,460625
WARRINGTON BOROUGH COUNCIL,http://opendatacommunities.org/id/unitary-authority/warrington ,FWB,Care Purchase - PD,54440,Direct Payments,552000,16-Sep-15,1900182375,902,REDACTED PERSONAL DATA,460638
WARRINGTON BOROUGH COUNCIL,http://opendatacommunities.org/id/unitary-authority/warrington ,FWB,Care Purchase AMH,54135,Direct Payments,552000,16-Sep-15,1900182376,679,REDACTED PERSONAL DATA,460671
WARRINGTON BOROUGH COUNCIL,http://opendatacommunities.org/id/unitary-authority/warrington ,FWB,Care Purchase - PD,54440,Direct Payments,552000,16-Sep-15,1900182378,806,REDACTED PERSONAL DATA,460681
WARRINGTON BOROUGH COUNCIL,http://opendatacommunities.org/id/unitary-authority/warrington ,FWB,Care Purchase - PD,54440,Direct Payments,552000,16-Sep-15,1900182380,637,REDACTED PERSONAL DATA,460684
WARRINGTON BOROUGH COUNCIL,http://opendatacommunities.org/id/unitary-authority/warrington ,FWB,Older Peoples North Team,54422,Direct Payments,552000,16-Sep-15,1900182383,776,REDACTED PERSONAL DATA,460699
WARRINGTON BOROUGH COUNCIL,http://opendatacommunities.org/id/unitary-authority/warrington ,FWB,Child Disability,32212,Direct Payments,552000,16-Sep-15,1900182385,986,REDACTED PERSONAL DATA,460701
WARRINGTON BOROUGH COUNCIL,http://opendatacommunities.org/id/unitary-authority/warrington ,FWB,Care Purchase - PD,54440,Direct Payments,552000,16-Sep-15,1900182386,963,REDACTED PERSONAL DATA,460703
WARRINGTON BOROUGH COUNCIL,http://opendatacommunities.org/id/unitary-authority/warrington ,FWB,Care Purchase - Learning Disability,54450,Direct Payments,552000,16-Sep-15,1900182389,11453,REDACTED PERSONAL DATA,460725
WARRINGTON BOROUGH COUNCIL,http://opendatacommunities.org/id/unitary-authority/warrington ,FWB,Care Purchase - PD,54440,Direct Payments,552000,16-Sep-15,1900182390,866,REDACTED PERSONAL DATA,460726
WARRINGTON BOROUGH COUNCIL,http://opendatacommunities.org/id/unitary-authority/warrington ,FWB,Older Peoples South Team,54421,Direct Payments,552000,16-Sep-15,1900182391,646,REDACTED PERSONAL DATA,460727
WARRINGTON BOROUGH COUNCIL,http://opendatacommunities.org/id/unitary-authority/warrington ,FWB,Older Peoples South Team,54421,Direct Payments,552000,16-Sep-15,1900182393,956,REDACTED PERSONAL DATA,460737
WARRINGTON BOROUGH COUNCIL,http://opendatacommunities.org/id/unitary-authority/warrington ,FWB,Care Purchase AMH,54135,Direct Payments,552000,16-Sep-15,1900182395,763,REDACTED PERSONAL DATA,460748
WARRINGTON BOROUGH COUNCIL,http://opendatacommunities.org/id/unitary-authority/warrington ,FWB,Care Purchase - Learning Disability,54450,Direct Payments,552000,16-Sep-15,1900182396,790,REDACTED PERSONAL DATA,460749
WARRINGTON BOROUGH COUNCIL,http://opendatacommunities.org/id/unitary-authority/warrington ,FWB,Care Purchase - Learning Disability,54450,Direct Payments,552000,16-Sep-15,1900182402,1524,REDACTED PERSONAL DATA,460765
WARRINGTON BOROUGH COUNCIL,http://opendatacommunities.org/id/unitary-authority/warrington ,FWB,Care Purchase - Learning Disability,54450,Direct Payments,552000,16-Sep-15,1900182403,1629,REDACTED PERSONAL DATA,460779
WARRINGTON BOROUGH COUNCIL,http://opendatacommunities.org/id/unitary-authority/warrington ,FWB,Older Peoples North Team,54422,Direct Payments,552000,16-Sep-15,1900182405,704,REDACTED PERSONAL DATA,460785
WARRINGTON BOROUGH COUNCIL,http://opendatacommunities.org/id/unitary-authority/warrington ,FWB,Older Peoples North Team,54422,Direct Payments,552000,16-Sep-15,1900182412,784,REDACTED PERSONAL DATA,460818
WARRINGTON BOROUGH COUNCIL,http://opendatacommunities.org/id/unitary-authority/warrington ,FWB,Care Purchase - PD,54440,Direct Payments,552000,16-Sep-15,1900182414,976,REDACTED PERSONAL DATA,460850
WARRINGTON BOROUGH COUNCIL,http://opendatacommunities.org/id/unitary-authority/warrington ,FWB,Care Purchase - PD,54440,Direct Payments,552000,16-Sep-15,1900182415,1380,REDACTED PERSONAL DATA,460853
WARRINGTON BOROUGH COUNCIL,http://opendatacommunities.org/id/unitary-authority/warrington ,FWB,Older Peoples South Team,54421,Direct Payments,552000,16-Sep-15,1900182416,576,REDACTED PERSONAL DATA,460854
WARRINGTON BOROUGH COUNCIL,http://opendatacommunities.org/id/unitary-authority/warrington ,FWB,Care Purchase - Learning Disability,54450,CP - Cont Care - External,441350,16-Sep-15,1900182417,1973,REDACTED PERSONAL DATA,460859
WARRINGTON BOROUGH COUNCIL,http://opendatacommunities.org/id/unitary-authority/warrington ,FWB,Care Purchase - Learning Disability,54450,Direct Payments,552000,16-Sep-15,1900182417,1973,REDACTED PERSONAL DATA,460859
WARRINGTON BOROUGH COUNCIL,http://opendatacommunities.org/id/unitary-authority/warrington ,FWB,Care Purchase - Learning Disability,54450,Direct Payments,552000,16-Sep-15,1900182420,679,REDACTED PERSONAL DATA,460867
WARRINGTON BOROUGH COUNCIL,http://opendatacommunities.org/id/unitary-authority/warrington ,FWB,Care Purchase - Learning Disability,54450,Direct Payments,552000,16-Sep-15,1900182422,1875,REDACTED PERSONAL DATA,460879
WARRINGTON BOROUGH COUNCIL,http://opendatacommunities.org/id/unitary-authority/warrington ,FWB,Child Disability,32212,Direct Payments,552000,16-Sep-15,1900182424,560,REDACTED PERSONAL DATA,460905
WARRINGTON BOROUGH COUNCIL,http://opendatacommunities.org/id/unitary-authority/warrington ,FWB,Older Peoples South Team,54421,CP - Cont Care - External,441350,16-Sep-15,1900182427,730,REDACTED PERSONAL DATA,460918
WARRINGTON BOROUGH COUNCIL,http://opendatacommunities.org/id/unitary-authority/warrington ,FWB,Older Peoples South Team,54421,Direct Payments,552000,16-Sep-15,1900182427,730,REDACTED PERSONAL DATA,460918
WARRINGTON BOROUGH COUNCIL,http://opendatacommunities.org/id/unitary-authority/warrington ,FWB,Care Purchase - PD,54440,Direct Payments,552000,16-Sep-15,1900182428,721,REDACTED PERSONAL DATA,460919
WARRINGTON BOROUGH COUNCIL,http://opendatacommunities.org/id/unitary-authority/warrington ,FWB,Care Purchase - PD,54440,Direct Payments,552000,16-Sep-15,1900182431,1075,REDACTED PERSONAL DATA,460933
WARRINGTON BOROUGH COUNCIL,http://opendatacommunities.org/id/unitary-authority/warrington ,FWB,Care Purchase - PD,54440,Direct Payments,552000,16-Sep-15,1900182433,1167,REDACTED PERSONAL DATA,460939
WARRINGTON BOROUGH COUNCIL,http://opendatacommunities.org/id/unitary-authority/warrington ,FWB,Care Purchase - PD,54440,Direct Payments,552000,16-Sep-15,1900182434,876,REDACTED PERSONAL DATA,460951
WARRINGTON BOROUGH COUNCIL,http://opendatacommunities.org/id/unitary-authority/warrington ,FWB,Care Purchase - PD,54440,Direct Payments,552000,16-Sep-15,1900182437,1347,REDACTED PERSONAL DATA,460973
WARRINGTON BOROUGH COUNCIL,http://opendatacommunities.org/id/unitary-authority/warrington ,FWB,Care Purchase - Learning Disability,54450,Direct Payments,552000,16-Sep-15,1900182438,7182,REDACTED PERSONAL DATA,460974
WARRINGTON BOROUGH COUNCIL,http://opendatacommunities.org/id/unitary-authority/warrington ,FWB,Care Purchase - PD,54440,Direct Payments,552000,16-Sep-15,1900182439,1061,REDACTED PERSONAL DATA,460976
WARRINGTON BOROUGH COUNCIL,http://opendatacommunities.org/id/unitary-authority/warrington ,FWB,Care Purchase - PD,54440,Direct Payments,552000,16-Sep-15,1900182440,1677,REDACTED PERSONAL DATA,460977
WARRINGTON BOROUGH COUNCIL,http://opendatacommunities.org/id/unitary-authority/warrington ,FWB,Care Purchase - PD,54440,Direct Payments,552000,16-Sep-15,1900182442,753,REDACTED PERSONAL DATA,460993
WARRINGTON BOROUGH COUNCIL,http://opendatacommunities.org/id/unitary-authority/warrington ,FWB,Older Peoples South Team,54421,Direct Payments,552000,16-Sep-15,1900182443,636,REDACTED PERSONAL DATA,461008
WARRINGTON BOROUGH COUNCIL,http://opendatacommunities.org/id/unitary-authority/warrington ,FWB,Care Purchase - Learning Disability,54450,Direct Payments,552000,16-Sep-15,1900182446,3621,REDACTED PERSONAL DATA,461031
WARRINGTON BOROUGH COUNCIL,http://opendatacommunities.org/id/unitary-authority/warrington ,FWB,Older Peoples North Team,54422,Direct Payments,552000,16-Sep-15,1900182448,753,REDACTED PERSONAL DATA,461033
WARRINGTON BOROUGH COUNCIL,http://opendatacommunities.org/id/unitary-authority/warrington ,FWB,Older Peoples South Team,54421,Direct Payments,552000,16-Sep-15,1900182450,919,REDACTED PERSONAL DATA,461050
WARRINGTON BOROUGH COUNCIL,http://opendatacommunities.org/id/unitary-authority/warrington ,FWB,Care Purchase AMH,54135,Direct Payments,552000,16-Sep-15,1900182451,506,REDACTED PERSONAL DATA,461056
WARRINGTON BOROUGH COUNCIL,http://opendatacommunities.org/id/unitary-authority/warrington ,FWB,Care Purchase AMH,54135,Direct Payments,552000,16-Sep-15,1900182453,637,REDACTED PERSONAL DATA,461060
WARRINGTON BOROUGH COUNCIL,http://opendatacommunities.org/id/unitary-authority/warrington ,FWB,Care Purchase - PD,54440,Direct Payments,552000,16-Sep-15,1900182459,746,REDACTED PERSONAL DATA,461079
WARRINGTON BOROUGH COUNCIL,http://opendatacommunities.org/id/unitary-authority/warrington ,FWB,Care Purchase - PD,54440,Direct Payments,552000,16-Sep-15,1900182460,625,REDACTED PERSONAL DATA,461089
WARRINGTON BOROUGH COUNCIL,http://opendatacommunities.org/id/unitary-authority/warrington ,FWB,Older Peoples South Team,54421,Direct Payments,552000,16-Sep-15,1900182461,795,REDACTED PERSONAL DATA,461090
WARRINGTON BOROUGH COUNCIL,http://opendatacommunities.org/id/unitary-authority/warrington ,FWB,Older Peoples South Team,54421,Direct Payments,552000,16-Sep-15,1900182464,747,REDACTED PERSONAL DATA,461106
WARRINGTON BOROUGH COUNCIL,http://opendatacommunities.org/id/unitary-authority/warrington ,FWB,Care Purchase - Learning Disability,54450,Direct Payments,552000,16-Sep-15,1900182466,764,REDACTED PERSONAL DATA,461109
WARRINGTON BOROUGH COUNCIL,http://opendatacommunities.org/id/unitary-authority/warrington ,FWB,Older Peoples South Team,54421,Direct Payments,552000,16-Sep-15,1900182467,742,REDACTED PERSONAL DATA,461113
WARRINGTON BOROUGH COUNCIL,http://opendatacommunities.org/id/unitary-authority/warrington ,FWB,Older Peoples North Team,54422,CP - Cont Care - External,441350,16-Sep-15,1900182471,2016,REDACTED PERSONAL DATA,461124
WARRINGTON BOROUGH COUNCIL,http://opendatacommunities.org/id/unitary-authority/warrington ,FWB,Older Peoples North Team,54422,Direct Payments,552000,16-Sep-15,1900182471,2016,REDACTED PERSONAL DATA,461124
WARRINGTON BOROUGH COUNCIL,http://opendatacommunities.org/id/unitary-authority/warrington ,FWB,Care Purchase - PD,54440,Direct Payments,552000,16-Sep-15,1900182472,1188,REDACTED PERSONAL DATA,461125
WARRINGTON BOROUGH COUNCIL,http://opendatacommunities.org/id/unitary-authority/warrington ,FWB,Older Peoples South Team,54421,Direct Payments,552000,16-Sep-15,1900182473,646,REDACTED PERSONAL DATA,461126
WARRINGTON BOROUGH COUNCIL,http://opendatacommunities.org/id/unitary-authority/warrington ,FWB,Child Disability,32212,Direct Payments,552000,16-Sep-15,1900182474,792,REDACTED PERSONAL DATA,461127
WARRINGTON BOROUGH COUNCIL,http://opendatacommunities.org/id/unitary-authority/warrington ,FWB,Care Purchase AMH,54135,Direct Payments,552000,16-Sep-15,1900182475,1000,REDACTED PERSONAL DATA,461134
WARRINGTON BOROUGH COUNCIL,http://opendatacommunities.org/id/unitary-authority/warrington ,FWB,Care Purchase - PD,54440,Direct Payments,552000,16-Sep-15,1900182476,3579,REDACTED PERSONAL DATA,461139
WARRINGTON BOROUGH COUNCIL,http://opendatacommunities.org/id/unitary-authority/warrington ,FWB,Care Purchase - Learning Disability,54450,Direct Payments,552000,16-Sep-15,1900182477,1428,REDACTED PERSONAL DATA,461140
WARRINGTON BOROUGH COUNCIL,http://opendatacommunities.org/id/unitary-authority/warrington ,FWB,Care Purchase - PD,54440,Direct Payments,552000,16-Sep-15,1900182480,509,REDACTED PERSONAL DATA,461145
WARRINGTON BOROUGH COUNCIL,http://opendatacommunities.org/id/unitary-authority/warrington ,FWB,Older Peoples South Team,54421,Direct Payments,552000,16-Sep-15,1900182482,1122,REDACTED PERSONAL DATA,461147
WARRINGTON BOROUGH COUNCIL,http://opendatacommunities.org/id/unitary-authority/warrington ,FWB,Older Peoples South Team,54421,Direct Payments,552000,16-Sep-15,1900182483,989,REDACTED PERSONAL DATA,461148
WARRINGTON BOROUGH COUNCIL,http://opendatacommunities.org/id/unitary-authority/warrington ,FWB,Care Purchase - PD,54440,Direct Payments,552000,16-Sep-15,1900182484,1897,REDACTED PERSONAL DATA,461149
WARRINGTON BOROUGH COUNCIL,http://opendatacommunities.org/id/unitary-authority/warrington ,FWB,Care Purchase - Learning Disability,54450,Direct Payments,552000,16-Sep-15,1900182487,764,REDACTED PERSONAL DATA,461158
WARRINGTON BOROUGH COUNCIL,http://opendatacommunities.org/id/unitary-authority/warrington ,FWB,Care Purchase - PD,54440,Direct Payments,552000,16-Sep-15,1900182488,1358,REDACTED PERSONAL DATA,461164
WARRINGTON BOROUGH COUNCIL,http://opendatacommunities.org/id/unitary-authority/warrington ,FWB,Care Purchase - PD,54440,Direct Payments,552000,16-Sep-15,1900182490,849,REDACTED PERSONAL DATA,461168
WARRINGTON BOROUGH COUNCIL,http://opendatacommunities.org/id/unitary-authority/warrington ,FWB,Older Peoples North Team,54422,Direct Payments,552000,16-Sep-15,1900182491,543,REDACTED PERSONAL DATA,461170
WARRINGTON BOROUGH COUNCIL,http://opendatacommunities.org/id/unitary-authority/warrington ,FWB,Care Purchase - PD,54440,Direct Payments,552000,16-Sep-15,1900182492,640,REDACTED PERSONAL DATA,461171
WARRINGTON BOROUGH COUNCIL,http://opendatacommunities.org/id/unitary-authority/warrington ,FWB,Care Purchase - PD,54440,Direct Payments,552000,16-Sep-15,1900182493,921,REDACTED PERSONAL DATA,461172
WARRINGTON BOROUGH COUNCIL,http://opendatacommunities.org/id/unitary-authority/warrington ,FWB,Care Purchase - Learning Disability,54450,Direct Payments,552000,16-Sep-15,1900182494,574,REDACTED PERSONAL DATA,461173
WARRINGTON BOROUGH COUNCIL,http://opendatacommunities.org/id/unitary-authority/warrington ,FWB,Care Purchase AMH,54135,Direct Payments,552000,16-Sep-15,1900182496,607,REDACTED PERSONAL DATA,461180
WARRINGTON BOROUGH COUNCIL,http://opendatacommunities.org/id/unitary-authority/warrington ,FWB,Care Purchase - Learning Disability,54450,Direct Payments,552000,16-Sep-15,1900182497,1199,REDACTED PERSONAL DATA,461181
WARRINGTON BOROUGH COUNCIL,http://opendatacommunities.org/id/unitary-authority/warrington ,FWB,Care Purchase - PD,54440,Direct Payments,552000,16-Sep-15,1900182498,976,REDACTED PERSONAL DATA,461182
WARRINGTON BOROUGH COUNCIL,http://opendatacommunities.org/id/unitary-authority/warrington ,FWB,Older Peoples North Team,54422,Direct Payments,552000,16-Sep-15,1900182502,882,REDACTED PERSONAL DATA,461193
WARRINGTON BOROUGH COUNCIL,http://opendatacommunities.org/id/unitary-authority/warrington ,FWB,Older Peoples South Team,54421,Direct Payments,552000,16-Sep-15,1900182503,810,REDACTED PERSONAL DATA,461200
WARRINGTON BOROUGH COUNCIL,http://opendatacommunities.org/id/unitary-authority/warrington ,ENO,Housing Projects,82008,Disabled Persons Grant 1996,554000,16-Sep-15,1900182506,671,Warrington Housing Current Acc,101208
WARRINGTON BOROUGH COUNCIL,http://opendatacommunities.org/id/unitary-authority/warrington ,ENO,Housing Projects,82008,Disabled Persons Grant 1996,554000,16-Sep-15,1900182507,608,Warrington Housing Current Acc,101208
WARRINGTON BOROUGH COUNCIL,http://opendatacommunities.org/id/unitary-authority/warrington ,ENO,Housing Projects,82008,Disabled Persons Grant 1996,554000,16-Sep-15,1900182508,16133,Gt Builders,104761
WARRINGTON BOROUGH COUNCIL,http://opendatacommunities.org/id/unitary-authority/warrington ,FWB,Governor & Advisory Support,32051,Training,190150,16-Sep-15,1900182512,1350,RMA Governor Support,113641
WARRINGTON BOROUGH COUNCIL,http://opendatacommunities.org/id/unitary-authority/warrington ,FWB,Homelessness,43650,Bond Guarantee Scme,530100,16-Sep-15,1900182513,525,Select Lettings,108475
WARRINGTON BOROUGH COUNCIL,http://opendatacommunities.org/id/unitary-authority/warrington ,FWB,Care Purchase Budget,54490,CP ExternalOther Exp,440800,16-Sep-15,1900182516,75000,Leyton Healthcare Limited,108970
WARRINGTON BOROUGH COUNCIL,http://opendatacommunities.org/id/unitary-authority/warrington ,FWB,Care Purchase Budget,54490,CP ExternalOther Exp,440800,16-Sep-15,1900182517,114000,Ashberry Healthcare Ltd,104776
WARRINGTON BOROUGH COUNCIL,http://opendatacommunities.org/id/unitary-authority/warrington ,FWB,Care Purchase Budget,54490,CP ExternalOther Exp,440800,16-Sep-15,1900182518,70000,London & Manchester Healthcare Ltd,109185
WARRINGTON BOROUGH COUNCIL,http://opendatacommunities.org/id/unitary-authority/warrington ,FWB,Care Purchase Budget,54490,CP ExternalOther Exp,440800,16-Sep-15,1900182519,51000,Ashberry Healthcare,101061
WARRINGTON BOROUGH COUNCIL,http://opendatacommunities.org/id/unitary-authority/warrington ,FWB,Care Purchase Budget,54490,CP ExternalOther Exp,440800,16-Sep-15,1900182520,75000,WCL - Warrington Community Living,105230
WARRINGTON BOROUGH COUNCIL,http://opendatacommunities.org/id/unitary-authority/warrington ,FWB,Care Purchase - Learning Disability,54450,CP-Domicil.External,440950,16-Sep-15,1900182521,47468,Future Directions Community Interes,111498
WARRINGTON BOROUGH COUNCIL,http://opendatacommunities.org/id/unitary-authority/warrington ,FWB,Care Purchase - Learning Disability,54450,Supporting People - External,441250,16-Sep-15,1900182521,7097,Future Directions Community Interes,111498
WARRINGTON BOROUGH COUNCIL,http://opendatacommunities.org/id/unitary-authority/warrington ,ENO,Housing Projects,82008,Disabled Persons Grant 1996,554000,16-Sep-15,1900182522,5028,Accessible Bathroom Solutions Ltd,109769
WARRINGTON BOROUGH COUNCIL,http://opendatacommunities.org/id/unitary-authority/warrington ,FWB,Care Purchase Budget,54490,CP ExternalOther Exp,440800,16-Sep-15,1900182523,120000,HC-One Limited Callands,109640
WARRINGTON BOROUGH COUNCIL,http://opendatacommunities.org/id/unitary-authority/warrington ,FWB,Care Purchase Budget,54490,CP ExternalOther Exp,440800,16-Sep-15,1900182524,130000,Leyton Healthcare,102517
WARRINGTON BOROUGH COUNCIL,http://opendatacommunities.org/id/unitary-authority/warrington ,RSC,Accountancy and Financial Planning,10100,Consult.& Prof. Serv,440000,16-Sep-15,1900182525,9888,Advantage Public Services,114752
WARRINGTON BOROUGH COUNCIL,http://opendatacommunities.org/id/unitary-authority/warrington ,FWB,Care Purchase Budget,54490,CP ExternalOther Exp,440800,16-Sep-15,1900182526,65000,Cls Care Services Ltd,104615
WARRINGTON BOROUGH COUNCIL,http://opendatacommunities.org/id/unitary-authority/warrington ,FWB,Care Purchase Budget,54490,CP ExternalOther Exp,440800,16-Sep-15,1900182528,65000,Bondcare St Andrews,109634
WARRINGTON BOROUGH COUNCIL,http://opendatacommunities.org/id/unitary-authority/warrington ,ENO,Housing Projects,82008,Disabled Persons Grant 1996,554000,16-Sep-15,1900182531,1811,AMW Lift & Mobility Services Ltd,112766
WARRINGTON BOROUGH COUNCIL,http://opendatacommunities.org/id/unitary-authority/warrington ,CYP,Childrens Other,81004,Furniture & Fittings,400150,16-Sep-15,1900182532,2421,Wallace Window Dressings,114776
WARRINGTON BOROUGH COUNCIL,http://opendatacommunities.org/id/unitary-authority/warrington ,CYP,Primary,81001,Specific Work,200200,16-Sep-15,1900182533,7076,Wakefield Bros,114062
WARRINGTON BOROUGH COUNCIL,http://opendatacommunities.org/id/unitary-authority/warrington ,FWB,Older Peoples South Team,54421,CP-Domicil.External,440950,16-Sep-15,1900182534,22897,Premier Care Cheshire Ltd,105142
WARRINGTON BOROUGH COUNCIL,http://opendatacommunities.org/id/unitary-authority/warrington ,FWB,Older Peoples North Team,54422,CP-Domicil.External,440950,16-Sep-15,1900182534,22528,Premier Care Cheshire Ltd,105142
WARRINGTON BOROUGH COUNCIL,http://opendatacommunities.org/id/unitary-authority/warrington ,FWB,Care Purchase AMH,54135,CP-Domicil.External,440950,16-Sep-15,1900182534,2221,Premier Care Cheshire Ltd,105142
WARRINGTON BOROUGH COUNCIL,http://opendatacommunities.org/id/unitary-authority/warrington ,FWB,Care Purchase - Learning Disability,54450,CP-Domicil.External,440950,16-Sep-15,1900182534,3341,Premier Care Cheshire Ltd,105142
WARRINGTON BOROUGH COUNCIL,http://opendatacommunities.org/id/unitary-authority/warrington ,FWB,Care Purchase - PD,54440,CP-Domicil.External,440950,16-Sep-15,1900182534,9778,Premier Care Cheshire Ltd,105142
WARRINGTON BOROUGH COUNCIL,http://opendatacommunities.org/id/unitary-authority/warrington ,CYP,Primary,81001,Specific Work,200200,16-Sep-15,1900182535,11038,Wakefield Bros,114062
WARRINGTON BOROUGH COUNCIL,http://opendatacommunities.org/id/unitary-authority/warrington ,FWB,Older Peoples South Team,54421,CP-LongStayExternal,441150,16-Sep-15,1900182536,15786,Nethermoor House Ltd,114660
WARRINGTON BOROUGH COUNCIL,http://opendatacommunities.org/id/unitary-authority/warrington ,FWB,Care Purchase Budget,54490,CP ExternalOther Exp,440800,16-Sep-15,1900182537,152000,Bupa Care Homes,104572
WARRINGTON BOROUGH COUNCIL,http://opendatacommunities.org/id/unitary-authority/warrington ,ENO,Housing Projects,82008,Public Health Contract Payments,540000,16-Sep-15,1900182539,884,ThyssenKrupp Encasa Ltd,105382
WARRINGTON BOROUGH COUNCIL,http://opendatacommunities.org/id/unitary-authority/warrington ,ENO,Housing Projects,82008,Disabled Facilities Safe & Secure Grants,554300,16-Sep-15,1900182540,2875,The Excellent Ramp System,100407
WARRINGTON BOROUGH COUNCIL,http://opendatacommunities.org/id/unitary-authority/warrington ,FWB,Music Education Grant,32220,Consult.& Prof. Serv,440000,16-Sep-15,1900182546,50665,Halton & Warrington Music Support S,114685
WARRINGTON BOROUGH COUNCIL,http://opendatacommunities.org/id/unitary-authority/warrington ,CYP,Childrens Other,81004,Specific Work,200200,16-Sep-15,1900182547,3700,Crown Flooring,113945
WARRINGTON BOROUGH COUNCIL,http://opendatacommunities.org/id/unitary-authority/warrington ,FWB,Halton Music Expenditure,32219,Consult.& Prof. Serv,440000,16-Sep-15,1900182548,83805,Halton & Warrington Music Support S,114685
